Workbook

Sheet Index
B1: AER opex model
B2: Index
B4: Model index
C6: Sheet Name | D6: Sheet Description
C7: Input | General | D7: Inputs NSP name, regulatory years for the prior and forecast regulatory control period etc.
C8: Input | Inflation | D8: Inputs inflation data.
C9: Input | Reported opex | D9: Inputs the reported operating expenditure (opex) from the prior regulatory control period.
C10: Input | Rate of change | D10: Inputs the cost escalation weights, cost escalation forecast, and inflation actuals and forecast
C11: Input | Step changes | D11: Inputs the operating expenditure (opex) data, including historical opex by category, one-off costs, step changes, demand forecasts, carbon costs, self insurance, network growth, and partial factor productivity
C12: Input | Category specific | D12: Inputs operating expenditure data for cost categories for which a revealed cost approach is not used. Forecast estimates for these categories are based on estimates of inputs specific to each category
C13: Calc | Opex Forecast | D13: Calculates the opex forecast
C14: Output | Models | D14: Outputs the forecasts needed as a post tax revenue model inputs
C15: Output | RIN | D15: Outputs the forecasts needed as a Reset RIN input
C16: Lookup | Tables | D16: Includes the lookup tables used within this opex model.
C17: Check | List | D17: Shows checks on the calculations within the model
B19: End

Sheet Input|General
B1: =Index!$B$1 -> AER opex model | J1: Back to Index | L1: Key: | M1: Input | N1: External Link | O1: Internal Link | R1: Worksheet check: | S1: =IF(COUNTA($S$5:$S$15)=COUNTIF($S5:$S15,"OK"),"OK","Check") -> OK | U1: Overall Check: | V1: ='Check|List'!$S$1 -> Ok
B2: =Index!$C$7 -> Input | General
B4: Input | General inputs
C6: Inputs | D6: Source | G6: Value
C7: NSP name | D7: Evoenergy | G7: Evonergy Gas Network | S7: =IF(COUNTBLANK($G7),"Check","Ok") -> Ok
C8: Decision stage | D8: Evoenergy | G8: initial | S8: Ok
C9: Year ending | D9: Evoenergy | G9: 2000-06-01 | S9: Ok
C10: Previous regulatory control period, first year | D10: Evoenergy | G10: 2017 | S10: Ok
C11: Forecast base year | D11: Evoenergy | G11: 2020 | S11: Ok
C12: Previous regulatory control period, last year | D12: Evoenergy | G12: 2021 | S12: Ok
C13: Forecast regulatory control period, first year | D13: Evoenergy | G13: 2022 | S13: Ok
C14: Forecast regulatory control period, last year | D14: Evoenergy | G14: 2026 | S14: Ok
B16: End

Sheet Input|Inflation
B1: =Index!$B$1 -> AER opex model | K1: Back to Index | M1: Key: | N1: Input | O1: External Link | P1: Internal Link | S1: Worksheet check: | T1: =IF(COUNTA($T$5:$T$63)=COUNTIF($T5:$T63,"OK"),"OK","Check") -> OK | V1: Overall Check: | W1: ='Check|List'!$S$1 -> Ok
B2: =Index!$C$7 -> Input | General
B4: Input | General inputs
D6: Index value, new base | E6: Percentage Change from Corresponding Quarter of Previous Year | F6: Index value, new base | G6: Percentage Change from Corresponding Quarter of Previous Year
C7: Source | D7: ABS | E7: Calculated | F7: ABS | G7: Calculated
C8: Unit | D8: index | E8: Percent | F8: index | G8: Percent
C9: 2007-03-31 | D9: 155.6 | T9: =IF(C9>EOMONTH(DATE('Input|General'!$G$12,MONTH('Input|General'!$G$9),1),0),"Ok",IF(ISBLANK($D9),"Check","Ok")) -> Ok
C10: 2007-06-30 | D10: 157.5 | T10: =IF(C10>EOMONTH(DATE('Input|General'!$G$12,MONTH('Input|General'!$G$9),1),0),"Ok",IF(ISBLANK($D10),"Check","Ok")) -> Ok
C11: 2007-09-30 | D11: 158.6 | T11: =IF(C11>EOMONTH(DATE('Input|General'!$G$12,MONTH('Input|General'!$G$9),1),0),"Ok",IF(ISBLANK($D11),"Check","Ok")) -> Ok
C12: 2007-12-31 | D12: 160.1 | T12: =IF(C12>EOMONTH(DATE('Input|General'!$G$12,MONTH('Input|General'!$G$9),1),0),"Ok",IF(ISBLANK($D12),"Check","Ok")) -> Ok
C13: 2008-03-31 | D13: 162.2 | E13: =D13/D9-1 -> 0.04241645244 | T13: =IF(C13>EOMONTH(DATE('Input|General'!$G$12,MONTH('Input|General'!$G$9),1),0),"Ok",IF(ISBLANK($D13),"Check","Ok")) -> Ok
C14: 2008-06-30 | D14: 164.6 | E14: =D14/D10-1 -> 0.04507936508 | T14: =IF(C14>EOMONTH(DATE('Input|General'!$G$12,MONTH('Input|General'!$G$9),1),0),"Ok",IF(ISBLANK($D14),"Check","Ok")) -> Ok
C15: 2008-09-30 | D15: 166.5 | E15: 0.04981084489 | T15: =IF(C15>EOMONTH(DATE('Input|General'!$G$12,MONTH('Input|General'!$G$9),1),0),"Ok",IF(ISBLANK($D15),"Check","Ok")) -> Ok
C16: 2008-12-31 | D16: 166 | E16: 0.03685196752 | T16: =IF(C16>EOMONTH(DATE('Input|General'!$G$12,MONTH('Input|General'!$G$9),1),0),"Ok",IF(ISBLANK($D16),"Check","Ok")) -> Ok
C17: 2009-03-31 | D17: 166.2 | E17: 0.02466091245 | T17: =IF(C17>EOMONTH(DATE('Input|General'!$G$12,MONTH('Input|General'!$G$9),1),0),"Ok",IF(ISBLANK($D17),"Check","Ok")) -> Ok
C18: 2009-06-30 | D18: 167 | E18: 0.01458080194 | T18: =IF(C18>EOMONTH(DATE('Input|General'!$G$12,MONTH('Input|General'!$G$9),1),0),"Ok",IF(ISBLANK($D18),"Check","Ok")) -> Ok
C19: 2009-09-30 | D19: 168.6 | E19: 0.01261261261 | T19: =IF(C19>EOMONTH(DATE('Input|General'!$G$12,MONTH('Input|General'!$G$9),1),0),"Ok",IF(ISBLANK($D19),"Check","Ok")) -> Ok
C20: 2009-12-31 | D20: 169.5 | E20: 0.02108433735 | T20: =IF(C20>EOMONTH(DATE('Input|General'!$G$12,MONTH('Input|General'!$G$9),1),0),"Ok",IF(ISBLANK($D20),"Check","Ok")) -> Ok
C21: 2010-03-31 | D21: 171 | E21: 0.02888086643 | F21: 95.2 | T21: =IF(C21>EOMONTH(DATE('Input|General'!$G$12,MONTH('Input|General'!$G$9),1),0),"Ok",IF(ISBLANK($F21),"Check","Ok")) -> Ok
C22: 2010-06-30 | D22: 172.1 | E22: 0.03053892216 | F22: 95.8 | T22: =IF(C22>EOMONTH(DATE('Input|General'!$G$12,MONTH('Input|General'!$G$9),1),0),"Ok",IF(ISBLANK($F22),"Check","Ok")) -> Ok
C23: 2010-09-30 | D23: 173.3 | E23: 0.02787663108 | F23: 96.5 | T23: =IF(C23>EOMONTH(DATE('Input|General'!$G$12,MONTH('Input|General'!$G$9),1),0),"Ok",IF(ISBLANK($F23),"Check","Ok")) -> Ok
C24: 2010-12-31 | D24: 174 | E24: 0.02654867257 | F24: 96.9 | T24: =IF(C24>EOMONTH(DATE('Input|General'!$G$12,MONTH('Input|General'!$G$9),1),0),"Ok",IF(ISBLANK($F24),"Check","Ok")) -> Ok
C25: 2011-03-31 | D25: 176.7 | E25: 0.03333333333 | F25: 98.3 | G25: =IF(ISBLANK(F25),"",F25/F21-1) -> 0.03256302521 | T25: =IF(C25>EOMONTH(DATE('Input|General'!$G$12,MONTH('Input|General'!$G$9),1),0),"Ok",IF(ISBLANK($F25),"Check","Ok")) -> Ok
C26: 2011-06-30 | D26: 178.3 | E26: 0.03602556653 | F26: 99.2 | G26: =IF(ISBLANK(F26),"",F26/F22-1) -> 0.03549060543 | T26: =IF(C26>EOMONTH(DATE('Input|General'!$G$12,MONTH('Input|General'!$G$9),1),0),"Ok",IF(ISBLANK($F26),"Check","Ok")) -> Ok
C27: 2011-09-30 | D27: 179.4 | E27: 0.03519907675 | F27: 99.8 | G27: 0.03419689119 | T27: =IF(C27>EOMONTH(DATE('Input|General'!$G$12,MONTH('Input|General'!$G$9),1),0),"Ok",IF(ISBLANK($F27),"Check","Ok")) -> Ok
C28: 2011-12-31 | D28: 179.4 | E28: 0.03103448276 | F28: 99.8 | G28: 0.02992776058 | T28: =IF(C28>EOMONTH(DATE('Input|General'!$G$12,MONTH('Input|General'!$G$9),1),0),"Ok",IF(ISBLANK($F28),"Check","Ok")) -> Ok
C29: 2012-03-31 | D29: 179.5 | E29: 0.01584606678 | F29: 99.9 | G29: 0.01627670397 | T29: =IF(C29>EOMONTH(DATE('Input|General'!$G$12,MONTH('Input|General'!$G$9),1),0),"Ok",IF(ISBLANK($F29),"Check","Ok")) -> Ok
C30: 2012-06-30 | F30: 100.4 | G30: 0.01209677419 | T30: =IF(C30>EOMONTH(DATE('Input|General'!$G$12,MONTH('Input|General'!$G$9),1),0),"Ok",IF(ISBLANK($F30),"Check","Ok")) -> Ok
C31: 2012-09-30 | F31: 101.8 | G31: 0.02004008016 | T31: =IF(C31>EOMONTH(DATE('Input|General'!$G$12,MONTH('Input|General'!$G$9),1),0),"Ok",IF(ISBLANK($F31),"Check","Ok")) -> Ok
C32: 2012-12-31 | F32: 102 | G32: 0.02204408818 | T32: =IF(C32>EOMONTH(DATE('Input|General'!$G$12,MONTH('Input|General'!$G$9),1),0),"Ok",IF(ISBLANK($F32),"Check","Ok")) -> Ok
C33: 2013-03-31 | F33: 102.4 | G33: 0.02502502503 | T33: =IF(C33>EOMONTH(DATE('Input|General'!$G$12,MONTH('Input|General'!$G$9),1),0),"Ok",IF(ISBLANK($F33),"Check","Ok")) -> Ok
C34: 2013-06-30 | F34: 102.8 | G34: 0.02390438247 | T34: =IF(C34>EOMONTH(DATE('Input|General'!$G$12,MONTH('Input|General'!$G$9),1),0),"Ok",IF(ISBLANK($F34),"Check","Ok")) -> Ok
C35: 2013-09-30 | F35: 104 | G35: 0.02161100196 | T35: =IF(C35>EOMONTH(DATE('Input|General'!$G$12,MONTH('Input|General'!$G$9),1),0),"Ok",IF(ISBLANK($F35),"Check","Ok")) -> Ok
C36: 2013-12-31 | F36: 104.8 | G36: 0.02745098039 | T36: =IF(C36>EOMONTH(DATE('Input|General'!$G$12,MONTH('Input|General'!$G$9),1),0),"Ok",IF(ISBLANK($F36),"Check","Ok")) -> Ok
C37: 2014-03-31 | F37: 105.4 | G37: 0.029296875 | T37: =IF(C37>EOMONTH(DATE('Input|General'!$G$12,MONTH('Input|General'!$G$9),1),0),"Ok",IF(ISBLANK($F37),"Check","Ok")) -> Ok
C38: 2014-06-30 | F38: 105.9 | G38: 0.03015564202 | T38: =IF(C38>EOMONTH(DATE('Input|General'!$G$12,MONTH('Input|General'!$G$9),1),0),"Ok",IF(ISBLANK($F38),"Check","Ok")) -> Ok
C39: 2014-09-30 | F39: 106.4 | G39: 0.02307692308 | T39: =IF(C39>EOMONTH(DATE('Input|General'!$G$12,MONTH('Input|General'!$G$9),1),0),"Ok",IF(ISBLANK($F39),"Check","Ok")) -> Ok
C40: 2014-12-31 | F40: 106.6 | G40: 0.01717557252 | T40: =IF(C40>EOMONTH(DATE('Input|General'!$G$12,MONTH('Input|General'!$G$9),1),0),"Ok",IF(ISBLANK($F40),"Check","Ok")) -> Ok
C41: 2015-03-31 | F41: 106.8 | G41: 0.01328273245 | T41: =IF(C41>EOMONTH(DATE('Input|General'!$G$12,MONTH('Input|General'!$G$9),1),0),"Ok",IF(ISBLANK($F41),"Check","Ok")) -> Ok
C42: 2015-06-30 | F42: 107.5 | G42: 0.01510859301 | T42: =IF(C42>EOMONTH(DATE('Input|General'!$G$12,MONTH('Input|General'!$G$9),1),0),"Ok",IF(ISBLANK($F42),"Check","Ok")) -> Ok
C43: 2015-09-30 | F43: 108 | G43: 0.01503759398 | T43: =IF(C43>EOMONTH(DATE('Input|General'!$G$12,MONTH('Input|General'!$G$9),1),0),"Ok",IF(ISBLANK($F43),"Check","Ok")) -> Ok
C44: 2015-12-31 | F44: 108.4 | G44: 0.01688555347 | T44: =IF(C44>EOMONTH(DATE('Input|General'!$G$12,MONTH('Input|General'!$G$9),1),0),"Ok",IF(ISBLANK($F44),"Check","Ok")) -> Ok
C45: 2016-03-31 | F45: 108.2 | G45: 0.01310861423 | T45: =IF(C45>EOMONTH(DATE('Input|General'!$G$12,MONTH('Input|General'!$G$9),1),0),"Ok",IF(ISBLANK($F45),"Check","Ok")) -> Ok
C46: 2016-06-30 | F46: 108.6 | G46: 0.01023255814 | T46: =IF(C46>EOMONTH(DATE('Input|General'!$G$12,MONTH('Input|General'!$G$9),1),0),"Ok",IF(ISBLANK($F46),"Check","Ok")) -> Ok
C47: 2016-09-30 | F47: 109.4 | G47: 0.01296296296 | T47: =IF(C47>EOMONTH(DATE('Input|General'!$G$12,MONTH('Input|General'!$G$9),1),0),"Ok",IF(ISBLANK($F47),"Check","Ok")) -> Ok
C48: 2016-12-31 | F48: 110 | G48: 0.0147601476 | T48: =IF(C48>EOMONTH(DATE('Input|General'!$G$12,MONTH('Input|General'!$G$9),1),0),"Ok",IF(ISBLANK($F48),"Check","Ok")) -> Ok
C49: 2017-03-31 | F49: 110.5 | G49: 0.02125693161 | T49: =IF(C49>EOMONTH(DATE('Input|General'!$G$12,MONTH('Input|General'!$G$9),1),0),"Ok",IF(ISBLANK($F49),"Check","Ok")) -> Ok
C50: 2017-06-30 | F50: 110.7 | G50: 0.01933701657 | T50: =IF(C50>EOMONTH(DATE('Input|General'!$G$12,MONTH('Input|General'!$G$9),1),0),"Ok",IF(ISBLANK($F50),"Check","Ok")) -> Ok
C51: 2017-09-30 | F51: 111.4 | G51: 0.01828153565 | T51: =IF(C51>EOMONTH(DATE('Input|General'!$G$12,MONTH('Input|General'!$G$9),1),0),"Ok",IF(ISBLANK($F51),"Check","Ok")) -> Ok
C52: 2017-12-31 | F52: 112.1 | G52: 0.01909090909 | T52: =IF(C52>EOMONTH(DATE('Input|General'!$G$12,MONTH('Input|General'!$G$9),1),0),"Ok",IF(ISBLANK($F52),"Check","Ok")) -> Ok
C53: 2018-03-31 | F53: 112.6 | G53: 0.01900452489 | T53: =IF(C53>EOMONTH(DATE('Input|General'!$G$12,MONTH('Input|General'!$G$9),1),0),"Ok",IF(ISBLANK($F53),"Check","Ok")) -> Ok
C54: 2018-06-30 | F54: 113 | G54: 0.02077687444 | T54: =IF(C54>EOMONTH(DATE('Input|General'!$G$12,MONTH('Input|General'!$G$9),1),0),"Ok",IF(ISBLANK($F54),"Check","Ok")) -> Ok
C55: 2018-09-30 | F55: 113.5 | G55: 0.01885098743 | T55: =IF(C55>EOMONTH(DATE('Input|General'!$G$12,MONTH('Input|General'!$G$9),1),0),"Ok",IF(ISBLANK($F55),"Check","Ok")) -> Ok
C56: 2018-12-31 | F56: 114.1 | G56: 0.0178412132 | T56: =IF(C56>EOMONTH(DATE('Input|General'!$G$12,MONTH('Input|General'!$G$9),1),0),"Ok",IF(ISBLANK($F56),"Check","Ok")) -> Ok
C57: 2019-03-31 | F57: 114.1 | G57: 0.01332149201 | T57: =IF(C57>EOMONTH(DATE('Input|General'!$G$12,MONTH('Input|General'!$G$9),1),0),"Ok",IF(ISBLANK($F57),"Check","Ok")) -> Ok
C58: 2019-06-30 | F58: 114.8 | G58: 0.01592920354 | T58: =IF(C58>EOMONTH(DATE('Input|General'!$G$12,MONTH('Input|General'!$G$9),1),0),"Ok",IF(ISBLANK($F58),"Check","Ok")) -> Ok
C59: 2019-09-30 | F59: 115.4 | G59: 0.01674008811 | T59: =IF(C59>EOMONTH(DATE('Input|General'!$G$12,MONTH('Input|General'!$G$9),1),0),"Ok",IF(ISBLANK($F59),"Check","Ok")) -> Ok
C60: 2019-12-31 | F60: 116.2 | G60: 0.01840490798 | T60: =IF(C60>EOMONTH(DATE('Input|General'!$G$12,MONTH('Input|General'!$G$9),1),0),"Ok",IF(ISBLANK($F60),"Check","Ok")) -> Ok
C61: 2020-03-31 | F61: =$F$58+(C61-$C$58)*($F$62-$F$58)/($C$62-$C$58) -> 116.5251366 | G61: =IF(ISBLANK(F61),"",F61/F57-1) -> 0.02125448389 | T61: =IF(C61>EOMONTH(DATE('Input|General'!$G$12,MONTH('Input|General'!$G$9),1),0),"Ok",IF(ISBLANK($F61),"Check","Ok")) -> Ok
C62: 2020-06-30 | F62: =F58*(1+G62) -> 117.096 | G62: 0.02 | T62: =IF(C62>EOMONTH(DATE('Input|General'!$G$12,MONTH('Input|General'!$G$9),1),0),"Ok",IF(ISBLANK($F62),"Check","Ok")) -> Ok
B64: End

Sheet Input|Reported opex
C1: =Index!$B$1 -> AER opex model | J1: Back to Index | L1: Key: | M1: Input | N1: External Link | O1: Internal Link | R1: Worksheet check: | S1: =IF(COUNTA($W$8:$W$69)=COUNTIF($W$8:$W$69,"OK"),"OK","Check") -> OK | U1: Overall Check: | V1: ='Check|List'!$S$1 -> Ok
C2: =Index!$C$9 -> Input | Reported opex
J3: Year ending
D4: Source | E4: Unit | F4: Basis | J4: =DATE(PPFirstYear,MONTH('Input|General'!$G$9),1) -> 2017-06-01 | K4: =DATE(PPFirstYear+1,MONTH('Input|General'!$G$9),1) -> 2018-06-01 | L4: =DATE(PPFirstYear+2,MONTH('Input|General'!$G$9),1) -> 2019-06-01 | M4: =DATE(PPFirstYear+3,MONTH('Input|General'!$G$9),1) -> 2020-06-01 | N4: =DATE(PPFirstYear+4,MONTH('Input|General'!$G$9),1) -> 2021-06-01 | O4: =DATE(PPFirstYear+5,MONTH('Input|General'!$G$9),1) -> 2022-06-01 | P4: =DATE(PPFirstYear+6,MONTH('Input|General'!$G$9),1) -> 2023-06-01 | Q4: =DATE(PPFirstYear+7,MONTH('Input|General'!$G$9),1) -> 2024-06-01 | R4: =DATE(PPFirstYear+8,MONTH('Input|General'!$G$9),1) -> 2025-06-01 | S4: =DATE(PPFirstYear+9,MONTH('Input|General'!$G$9),1) -> 2026-06-01
B8: Input | Opex allowances
C10: Cost category | D10: Source | E10: Unit | F10: Basis | J10: =IF(YEAR(J$4)<=PPLastYear,J$4,"") -> 2017-06-01 | K10: 2018-06-01 | L10: 2019-06-01 | M10: 2020-06-01 | N10: 2021-06-01 | T10: Notes
C13: Total opex (excluding debt raising costs) | D13: AER | E13: $millions | F13: 2015-06-01 | J13: 29.80617702 | K13: 30.13595712 | L13: 30.68204799 | M13: 31.43971202 | N13: 31.45693231
C15: Total opex | D15: =D13 -> AER | E15: =E13 -> $millions | F15: 2015-06-01 | J15: =J13 -> 29.80617702 | K15: 30.13595712 | L15: 30.68204799 | M15: 31.43971202 | N15: 31.45693231 | O15: 0 | P15: =P13 -> 0 | Q15: =Q13 -> 0 | R15: =R13 -> 0 | S15: =S13 -> 0
C17: Allowances related to category specific forecasts
C19: less Utilities network facilities tax (UNFT) | D19: AER | E19: =$E$15 -> $millions | F19: =$F$15 -> 2015-06-01 | J19: -6.06322375 | K19: -6.329622169 | L19: -6.604037695 | M19: -6.888129233 | N19: -6.709355581
C20: less Unaccounted for gas (UAG) | D20: AER | E20: $millions | F20: 2015-06-01 | J20: -1.512782458 | K20: -1.4887237 | L20: -1.47682396 | M20: -1.46277754 | N20: -1.450903455
C21: less Energy industry levy (EIL) | D21: AER | E21: $millions | F21: 2015-06-01 | J21: -0.5407910079 | K21: -0.5332171008 | L21: -0.5311029573 | M21: -0.5286074284 | N21: -0.526497843
C22: less IT asset utilisation fee (ITAUF) | D22: AER | E22: $millions | F22: 2015-06-01 | J22: -0.911 | K22: -0.863 | L22: -0.815 | M22: -0.767 | N22: -0.72
D23: AER | E23: $millions | F23: 2015-06-01
D24: AER | E24: $millions | F24: 2015-06-01
D25: AER | E25: $millions | F25: 2015-06-01
D26: AER | E26: $millions | F26: 2015-06-01
D27: AER | E27: $millions | F27: 2015-06-01
C29: Total specific category forecast | D29: Calculated | E29: $millions | F29: =F27 -> 2015-06-01 | J29: =SUM(J19:J27) -> -9.027797216 | K29: -9.21456297 | L29: -9.426964612 | M29: -9.646514201 | N29: -9.406756879 | O29: 0 | P29: 0 | Q29: 0 | R29: 0 | S29: 0
B31: Input | Reported opex
V32: 1000000
J33: Actual | K33: Actual | L33: Actual | M33: Estimate | N33: Estimate
C34: Cost category | D34: Source | E34: Unit | F34: Basis | J34: =IF(YEAR(J$4)<=PPLastYear,J$4,"") -> 2017-06-01 | K34: 2018-06-01 | L34: 2019-06-01 | M34: 2020-06-01 | N34: 2021-06-01 | T34: Notes
C37: Total opex (excluding debt raising costs) | D37: RIN | E37: =$E$53 -> $millions | F37: =$F$53 -> nominal | J37: 27.52327795 | K37: 29.58305795 | L37: 29.82149636 | M37: 31.18960956
D38: RIN | E38: $millions | F38: nominal
D39: RIN | E39: $millions | F39: nominal
D40: RIN | E40: $millions | F40: nominal
D41: RIN | E41: $millions | F41: nominal
C42: Remove movement in provisions | D42: RIN | E42: $millions | F42: nominal | M42: 0.04879185
C44: Total opex | D44: Calculated | E44: =$E$53 -> $millions | F44: =$F$53 -> nominal | J44: =SUM(J37:J42) -> 27.52327795 | K44: =SUM(K37:K42) -> 29.58305795 | L44: =SUM(L37:L42) -> 29.82149636 | M44: =SUM(M37:M42) -> 31.23840141 | N44: =SUM(N37:N42) -> 0
C46: Expenditure related to category specific forecasts
C48: remove Utilities network facilities tax (UNFT) | D48: RIN | E48: =$E$53 -> $millions | F48: =$F$53 -> nominal | J48: -6.4820728 | K48: -6.91787429 | L48: -7.33986998 | M48: -7.50679533
C49: remove Unaccounted for gas (UAG) | D49: RIN | E49: =$E$53 -> $millions | F49: =$F$53 -> nominal | J49: -2.32660196 | K49: -1.88090397 | L49: -1.6183816 | M49: -1.83965451
C50: remove Energy industry levy (EIL) | D50: RIN | E50: =$E$53 -> $millions | F50: =$F$53 -> nominal | J50: -0.43920761 | K50: -0.78109854 | L50: -0.59831531 | M50: -0.52837935
C51: remove IT asset utilisation fee (ITAUF) | D51: RIN | E51: =$E$53 -> $millions | F51: =$F$53 -> nominal | J51: -0.91354968 | K51: -0.87667296 | L51: -0.8431416 | M51: -0.80626716
C53: Total specific category forecast | D53: Calculated | E53: $millions | F53: nominal | J53: =SUM(J48:J51) -> -10.16143205 | K53: -10.45654976 | L53: =SUM(L48:L51) -> -10.39970849 | M53: =SUM(M48:M51) -> -10.68109635 | N53: 0 | O53: 0 | P53: 0 | Q53: 0 | R53: 0 | S53: 0
B55: Input | Adjustments
C57: Adjustment | D57: Source | E57: Unit | F57: Basis | J57: =IF(YEAR(J$4)=PPLastYear,J$4,"") ->  | N57: 2021-06-01
D59: Evoenergy | E59: =$E$53 -> $millions | F59: 2020-06-01
D60: Evoenergy | E60: =$E$53 -> $millions | F60: 2020-06-01
D61: Evoenergy | E61: =$E$53 -> $millions | F61: 2020-06-01
D62: Evoenergy | E62: =$E$53 -> $millions | F62: 2020-06-01
D63: Evoenergy | E63: =$E$53 -> $millions | F63: 2020-06-01
C65: Remove non-recurrent efficiency gain in the base year | D65: Evoenergy | E65: =$E$53 -> $millions | F65: 2020-06-01
C67: Efficiency adjustment | D67: Evoenergy | E67: Per cent
B69: End

Sheet Input|Rate of change
B1: =Index!$B$1 -> AER opex model | K1: Back to Index | M1: Key: | N1: Input | O1: External Link | P1: Internal Link | S1: Worksheet check: | T1: =IF(COUNTIF(W5:W109,"Check")=0,"Ok","Check") -> Ok | V1: Overall Check: | W1: ='Check|List'!$S$1 -> Ok
B2: =Index!$C$10 -> Input | Rate of change
J3: Year ending
D4: Source | E4: Unit | F4: Basis | I4: =DATE(PPFirstYear-2,MONTH('Input|General'!$G$9),1) -> 2015-06-01 | J4: =DATE(PPFirstYear-1,MONTH('Input|General'!$G$9),1) -> 2016-06-01 | K4: =DATE(PPFirstYear,MONTH('Input|General'!$G$9),1) -> 2017-06-01 | L4: =DATE(PPFirstYear+1,MONTH('Input|General'!$G$9),1) -> 2018-06-01 | M4: =DATE(PPFirstYear+2,MONTH('Input|General'!$G$9),1) -> 2019-06-01 | N4: =DATE(PPFirstYear+3,MONTH('Input|General'!$G$9),1) -> 2020-06-01 | O4: =DATE(PPFirstYear+4,MONTH('Input|General'!$G$9),1) -> 2021-06-01 | P4: =DATE(PPFirstYear+5,MONTH('Input|General'!$G$9),1) -> 2022-06-01 | Q4: =DATE(PPFirstYear+6,MONTH('Input|General'!$G$9),1) -> 2023-06-01 | R4: =DATE(PPFirstYear+7,MONTH('Input|General'!$G$9),1) -> 2024-06-01 | S4: =DATE(PPFirstYear+8,MONTH('Input|General'!$G$9),1) -> 2025-06-01 | T4: =DATE(PPFirstYear+9,MONTH('Input|General'!$G$9),1) -> 2026-06-01
B8: Input | Inflation
C10: Inflation | I10: =IF(YEAR(I$4)<=PPLastYear,I$4,"") -> 2015-06-01 | J10: =IF(YEAR(J$4)<=PPLastYear,J$4,"") -> 2016-06-01 | K10: =IF(YEAR(K$4)<=PPLastYear,K$4,"") -> 2017-06-01 | L10: 2018-06-01 | M10: 2019-06-01 | N10: 2020-06-01 | O10: 2021-06-01
C12: Inflation | D12: calculated | E12: =percent -> Per cent | I12: 0.02487922705 | J12: ='Input|Inflation'!G46 -> 0.01023255814 | K12: ='Input|Inflation'!G50 -> 0.01933701657 | L12: ='Input|Inflation'!G54 -> 0.02077687444 | M12: ='Input|Inflation'!G58 -> 0.01592920354 | N12: ='Input|Inflation'!G62 -> 0.02 | O12: ='Input|Inflation'!G62 -> 0.02 | P12: =IF(P10=P4,LOOKUP(EOMONTH(P4,0),'Input|Inflation'!$C$9:$C$62,'Input|Inflation'!$G$9:$G$62),"") ->  | Q12: =IF(Q10=Q4,LOOKUP(EOMONTH(Q4,0),'Input|Inflation'!$C$9:$C$62,'Input|Inflation'!$G$9:$G$62),"") ->  | R12: =IF(R10=R4,LOOKUP(EOMONTH(R4,0),'Input|Inflation'!$C$9:$C$62,'Input|Inflation'!$G$9:$G$62),"") ->  | S12: =IF(S10=S4,LOOKUP(EOMONTH(S4,0),'Input|Inflation'!$C$9:$C$62,'Input|Inflation'!$G$9:$G$62),"") ->  | T12: =IF(T10=T4,LOOKUP(EOMONTH(T4,0),'Input|Inflation'!$C$9:$C$62,'Input|Inflation'!$G$9:$G$62),"") -> 
C14: CPI indexes (real to real) | I14: =IF(YEAR(I$4)<=PPLastYear,I$4,"") -> 2015-06-01 | J14: 2016-06-01 | K14: 2017-06-01 | L14: 2018-06-01 | M14: 2019-06-01 | N14: 2020-06-01 | O14: 2021-06-01
C16: 2015-06-01 | I16: =IF(AND($C16>I$14,ISNONTEXT($C16)),J16/(1+J$12),IF(AND($C16=I$14,I$14=I$4),1,IF(AND($C16<I$14,I$14=I$4),H16*(1+I$12),0))) -> 1 | J16: 1.010232558 | K16: 1.029767442 | L16: 1.051162791 | M16: 1.067906977 | N16: 1.089265116 | O16: 1.111050419
C17: =TRANSPOSE(J10:O10) -> 2016-06-01 | D17: =IF(ISNONTEXT($C17),"calculated","") -> calculated | E17: =IF(ISNONTEXT($C17),"index","") -> index | I17: =IF(AND($C17>I$14,ISNONTEXT($C17)),J17/(1+J$12),IF(AND($C17=I$14,I$14=I$4),1,IF(AND($C17<I$14,I$14=I$4),H17*(1+I$12),0))) -> 0.9898710866 | J17: 1 | K17: 1.019337017 | L17: 1.040515654 | M17: 1.057090239 | N17: 1.078232044 | O17: 1.099796685 | P17: =IF(AND($C17>P$14,ISNONTEXT($C17)),Q17/(1+P$12),IF(AND($C17=P$14,P$14=P$4),1,IF(AND($C17<P$14,P$14=P$4),O17*(1+P$12),0))) -> 0
C18: 2017-06-01 | D18: calculated | E18: index | I18: 0.9710930443 | J18: 0.9810298103 | K18: 1 | L18: 1.020776874 | M18: 1.037037037 | N18: 1.057777778 | O18: 1.078933333 | P18: =IF(AND($C18>P$14,ISNONTEXT($C18)),Q18/(1+P$12),IF(AND($C18=P$14,P$14=P$4),1,IF(AND($C18<P$14,P$14=P$4),O18*(1+P$12),0))) -> 0
C19: 2018-06-01 | D19: calculated | E19: index | I19: 0.9513274336 | J19: 0.9610619469 | K19: 0.9796460177 | L19: 1 | M19: 1.015929204 | N19: 1.036247788 | O19: 1.056972743 | P19: =IF(AND($C19>P$14,ISNONTEXT($C19)),Q19/(1+P$12),IF(AND($C19=P$14,P$14=P$4),1,IF(AND($C19<P$14,P$14=P$4),O19*(1+P$12),0))) -> 0
C20: 2019-06-01 | D20: calculated | E20: index | I20: 0.9364111498 | J20: 0.9459930314 | K20: 0.9642857143 | L20: 0.9843205575 | M20: 1 | N20: 1.02 | O20: 1.0404 | P20: =IF(AND($C20>P$14,ISNONTEXT($C20)),Q20/(1+P$12),IF(AND($C20=P$14,P$14=P$4),1,IF(AND($C20<P$14,P$14=P$4),O20*(1+P$12),0))) -> 0
C21: 2020-06-01 | D21: calculated | E21: index | I21: 0.9180501469 | J21: 0.9274441484 | K21: 0.9453781513 | L21: 0.9650201544 | M21: 0.9803921569 | N21: 1 | O21: 1.02 | P21: =IF(AND($C21>P$14,ISNONTEXT($C21)),Q21/(1+P$12),IF(AND($C21=P$14,P$14=P$4),1,IF(AND($C21<P$14,P$14=P$4),O21*(1+P$12),0))) -> 0
C22: 2021-06-01 | D22: calculated | E22: index | I22: 0.9000491636 | J22: 0.909258969 | K22: 0.9268413248 | L22: 0.9460981906 | M22: 0.9611687812 | N22: 0.9803921569 | O22: 1 | P22: =1/I22 -> 1.111050419
C24: CPI indexes (nominal to real) | I24: =IF(YEAR(I$4)<=PPLastYear,I$4,"") -> 2015-06-01 | J24: 2016-06-01 | K24: 2017-06-01 | L24: 2018-06-01 | M24: 2019-06-01 | N24: 2020-06-01 | O24: 2021-06-01
C26: 2015-06-01 | D26: =IF(ISNONTEXT($C26),"calculated","") -> calculated | E26: =IF(ISNONTEXT($C26),"index","") -> index | I26: =IF(AND(I$24=I$4,ISNONTEXT($C26)),1/I16*(1+I$12)^0.5,0) -> 1.012363189 | J26: 0.9949226536 | K26: 0.9804371101 | L26: 0.9611594319 | M26: 0.9438398254 | N26: 0.9271851992 | O26: 0.9090050973
C27: =TRANSPOSE(J10:O10) -> 2016-06-01 | D27: calculated | E27: index | I27: 1.022722254 | J27: 1.005103257 | K27: 0.9904694898 | L27: 0.9709945517 | M27: 0.9534977213 | N27: 0.9366726757 | O27: 0.9183065448 | P27: =IF(AND(P$24=P$4,ISNONTEXT($C27)),1/P17*(1+P$12)^0.5,0) -> 0 | Q27: 0 | R27: 0 | S27: 0 | T27: 0
C28: 2017-06-01 | D28: calculated | E28: index | I28: 1.042498652 | J28: 1.024538956 | K28: 1.009622215 | L28: 0.9897706895 | M28: 0.9719355225 | N28: 0.9547851307 | O28: 0.9360638537 | P28: 0 | Q28: 0 | R28: 0 | S28: 0 | T28: 0
C29: 2018-06-01 | D29: calculated | E29: index | I29: 1.064158515 | J29: 1.045825673 | K29: 1.030599009 | L29: 1.010335031 | M29: 0.9921293048 | N29: 0.9746225815 | O29: 0.9555123348 | P29: 0 | Q29: 0 | R29: 0 | S29: 0 | T29: 0
C30: 2019-06-01 | D30: calculated | E30: index | I30: 1.081109713 | J30: 1.062484843 | K30: 1.04701563 | L30: 1.026428863 | M30: 1.007933134 | N30: 0.990147543 | O30: 0.9707328853 | P30: 0 | Q30: 0 | R30: 0 | S30: 0 | T30: 0
C31: 2020-06-01 | D31: calculated | E31: index | I31: 1.102731907 | J31: 1.08373454 | K31: 1.067955943 | L31: 1.04695744 | M31: 1.028091797 | N31: 1.009950494 | O31: 0.990147543 | P31: 0 | Q31: 0 | R31: 0 | S31: 0 | T31: 0
C32: 2021-06-01 | D32: calculated | E32: index | I32: 1.124786545 | J32: 1.105409231 | K32: 1.089315062 | L32: 1.067896589 | M32: 1.048653633 | N32: 1.030149504 | O32: 1.009950494 | P32: 0 | Q32: 0 | R32: 0 | S32: 0 | T32: 0
B34: Input | Forecast price change
C36: Forecast price change | D36: Source | E36: Unit | F36: Basis | J36: =IF(YEAR(J$4)>=FPFirstYear,IF(YEAR(J$4)<=FPLastYear,J$4,""),"") ->  | P36: 2022-06-01 | Q36: 2023-06-01 | R36: 2024-06-01 | S36: 2025-06-01 | T36: 2026-06-01
C38: BIS Oxford (EGWWS WPI - ACT, 30 Sep 2019) | D38: BIS | E38: =percent -> Per cent | F38: n/a | P38: 0.01030665593 | Q38: 0.01002049013 | R38: 0.01331806171 | S38: 0.01449775275 | T38: 0.01191285989
C39: DAE (for 2021-22 to 2023-24: EGWWS WPI - ACT, 28 February 2019, P64 Section 6.2.4, for 2024-25: EGWWS WPI - National, 24 June 2019, Pxiii table vii, 2025-26 based on 2024-25 forecast) | D39: DAE | E39: Per cent | F39: n/a | P39: 0.004 | Q39: 0.004 | R39: 0.005 | S39: 0.005 | T39: 0.005
C40: Avg BIS and DAE | D40: Calculated | E40: Per cent | F40: n/a | P40: =AVERAGE(P38:P39) -> 0.007153327966 | Q40: =AVERAGE(Q38:Q39) -> 0.007010245067 | R40: =AVERAGE(R38:R39) -> 0.009159030854 | S40: =AVERAGE(S38:S39) -> 0.009748876376 | T40: =AVERAGE(T38:T39) -> 0.008456429946
D41: external | E41: Per cent | F41: n/a
D42: external | E42: Per cent | F42: n/a
D43: external | E43: Per cent | F43: n/a
D44: external | E44: Per cent | F44: n/a
D45: external | E45: Per cent | F45: n/a
C47: Check | D47: calculated | E47: Ok/Check | F47: n/a | J47: =IF(J36=J4,IF(COUNTA($C38:$C45)=COUNT(J38:J45),"Ok","Check"),"") ->  | P47: Ok | Q47: Ok | R47: Ok | S47: Ok | T47: Ok | W47: =IF(COUNTIF(J47:T47,"Check")=0,"Ok","Check") -> Ok
C49: Weights | D49: Source | E49: Unit | F49: Basis | J49: =IF(YEAR(J$4)>=FPFirstYear,IF(YEAR(J$4)<=FPLastYear,J$4,""),"") ->  | P49: 2022-06-01 | Q49: 2023-06-01 | R49: 2024-06-01 | S49: 2025-06-01 | T49: 2026-06-01
E51: =percent -> Per cent | F51: n/a
D52: external | E52: Per cent | F52: n/a
C53: =C40 -> Avg BIS and DAE | D53: Economic Insights | E53: Per cent | F53: n/a | P53: 0.597 | Q53: 0.597 | R53: 0.597 | S53: 0.597 | T53: 0.597
C54: =C41 -> 0 | D54: external | E54: Per cent | F54: n/a
C55: =C42 -> 0 | D55: external | E55: Per cent | F55: n/a
C56: =C43 -> 0 | D56: external | E56: Per cent | F56: n/a
C57: =C44 -> 0 | D57: external | E57: Per cent | F57: n/a
C58: Non-labour | D58: external | E58: Per cent | F58: n/a | P58: =1-SUM(P51:P57) -> 0.403 | Q58: =1-SUM(Q51:Q57) -> 0.403 | R58: =1-SUM(R51:R57) -> 0.403 | S58: =1-SUM(S51:S57) -> 0.403 | T58: =1-SUM(T51:T57) -> 0.403
C60: Check | D60: calculated | E60: Ok/Check | F60: n/a | J60: =IF(J49=J$4,IF(SUM(J51:J58)=1,"Ok","Check"),"") ->  | P60: =IF(P49=P$4,IF(SUM(P51:P58)=1,"Ok","Check"),"") -> Ok | Q60: =IF(Q49=Q$4,IF(SUM(Q51:Q58)=1,"Ok","Check"),"") -> Ok | R60: =IF(R49=R$4,IF(SUM(R51:R58)=1,"Ok","Check"),"") -> Ok | S60: =IF(S49=S$4,IF(SUM(S51:S58)=1,"Ok","Check"),"") -> Ok | T60: =IF(T49=T$4,IF(SUM(T51:T58)=1,"Ok","Check"),"") -> Ok | W60: =IF(COUNTIF(J60:T60,"Check")=0,"Ok","Check") -> Ok
B62: Input | Forecast output growth
C64: Output measure | D64: Source | E64: Unit | F64: Basis | J64: =IF(YEAR(J$4)>=PPLastYear,IF(YEAR(J$4)<=FPLastYear,J$4,""),"") ->  | N64: 2020-06-01 | O64: 2021-06-01 | P64: 2022-06-01 | Q64: 2023-06-01 | R64: 2024-06-01 | S64: 2025-06-01 | T64: 2026-06-01
C66: Customer Numbers (adjusted to include waded disconnections) | D66: PTRM | E66: number | F66: n/a | N66: 152710 | O66: 156325 | P66: 158810 | Q66: 160165 | R66: 161389 | S66: 162490 | T66: 163541
C67: Mains length | D67: RIN | E67: number | F67: n/a | N67: 4685.67104 | O67: 4732.10904 | P67: 4751.65004 | Q67: 4771.22004 | R67: 4790.61204 | S67: 4810.68004 | T67: 4831.19704
D68: external | E68: number | F68: n/a
D69: external | E69: number | F69: n/a
D70: external | E70: number | F70: n/a
D71: external | E71: number | F71: n/a
C73: Check | D73: calculated | E73: Ok/Check | F73: n/a | J73: =IF(J64=J$4,IF(COUNTA($C66:$C71)=COUNT(J66:J71),"Ok","Check"),"") ->  | N73: Ok | O73: Ok | P73: Ok | Q73: Ok | R73: Ok | S73: Ok | T73: Ok | W73: =IF(COUNTIF(J73:T73,"Check")=0,"Ok","Check") -> Ok
C75: Growth rate | D75: Source | E75: Unit | F75: Basis | J75: =IF(YEAR(J$4)>=FPFirstYear,IF(YEAR(J$4)<=FPLastYear,J$4,""),"") ->  | P75: 2022-06-01 | Q75: 2023-06-01 | R75: 2024-06-01 | S75: 2025-06-01 | T75: 2026-06-01 | U75: =IF(RIGHT(U$4,2)>=RIGHT('Input|General'!$G$13,2),IF(RIGHT(U$4,2)<='Input|General'!$G$14,'Input|Reported opex'!T$4,""),"") -> 
C77: =C66 -> Customer Numbers (adjusted to include waded disconnections) | D77: calculated | E77: =percent -> Per cent | F77: n/a | J77: =IF(ISBLANK(I66),"",IF(ISBLANK(J66),"",LN(J66)-LN(I66))) ->  | O77: 0.02339647549 | P77: =IFERROR(IF(ISBLANK(O66),"",IF(ISBLANK(P66),"",LN(P66)-LN(O66))),"N/A") -> 0.01577134567 | Q77: =IFERROR(IF(ISBLANK(P66),"",IF(ISBLANK(Q66),"",LN(Q66)-LN(P66))),"N/A") -> 0.008496014738 | R77: 0.007613065997 | S77: 0.006798861557 | T77: 0.006447262012
C78: Mains length | D78: calculated | E78: Per cent | F78: n/a | O78: 0.009861851937 | P78: 0.004120945606 | Q78: 0.004110111213 | R78: 0.00405613201 | S78: 0.004180276791 | T78: 0.004255816745
C79: 0 | D79: calculated | E79: Per cent | F79: n/a
C80: 0 | D80: calculated | E80: Per cent | F80: n/a
C81: 0 | D81: calculated | E81: Per cent | F81: n/a
C82: 0 | D82: calculated | E82: Per cent | F82: n/a
C84: Weights | D84: Source | E84: Unit | F84: Basis | J84: SFA CD | K84: FGLS CD
C86: =C66 -> Customer Numbers (adjusted to include waded disconnections) | D86: Economic Insights | E86: =percent -> Per cent | F86: n/a | J86: 0.2502912621 | K86: 0.4026741294
C87: Mains length | D87: Economic Insights | E87: Per cent | F87: n/a | J87: 0.7497087379 | K87: 0.5973258706
C88: 0 | D88: external | E88: Per cent | F88: n/a
C89: 0 | D89: external | E89: Per cent | F89: n/a
C90: 0 | D90: external | E90: Per cent | F90: n/a
C91: 0 | D91: external | E91: Per cent | F91: n/a
C93: Check | D93: calculated | E93: Ok/Check | F93: n/a | J93: =IF(ISBLANK(J86:J91),"",IF(SUM(J86:J91)=1,"Ok","Check")) -> Ok | K93: =IF(ISBLANK(K86:K91),"",IF(SUM(K86:K91)=1,"Ok","Check")) -> Ok | L93: =IF(ISBLANK(L86:L91),"",IF(SUM(L86:L91)=1,"Ok","Check")) ->  | M93: =IF(ISBLANK(M86:M91),"",IF(SUM(M86:M91)=1,"Ok","Check")) ->  | N93: =IF(ISBLANK(N86:N91),"",IF(SUM(N86:N91)=1,"Ok","Check")) -> 
C95: Forecast output growth | D95: Source | E95: Unit | F95: Basis | J95: =IF(YEAR(J$4)>=FPFirstYear,IF(YEAR(J$4)<=FPLastYear,J$4,""),"") ->  | O95: 2021-06-01 | P95: 2022-06-01 | Q95: 2023-06-01 | R95: =IF(YEAR(R$4)>BaseYear,IF(YEAR(R$4)<=FPLastYear,R$4,""),"") -> 2024-06-01 | S95: =IF(YEAR(S$4)>BaseYear,IF(YEAR(S$4)<=FPLastYear,S$4,""),"") -> 2025-06-01 | T95: =IF(YEAR(T$4)>BaseYear,IF(YEAR(T$4)<=FPLastYear,T$4,""),"") -> 2026-06-01
C97: =TRANSPOSE(J84:M84) -> SFA CD | D97: calculated | E97: =percent -> Per cent | F97: n/a | J97: =IF(J$95=J$4,SUMPRODUCT(J$77:J$82,$J$86:$J$91),"") ->  | K97: =IF(K$95=K$4,SUMPRODUCT(K$77:K$82,$J$86:$J$91),"") ->  | L97: =IF(L$95=L$4,SUMPRODUCT(L$77:L$82,$J$86:$J$91),"") ->  | M97: =IF(M$95=M$4,SUMPRODUCT(M$77:M$82,$J$86:$J$91),"") ->  | N97: =IF(N$95=N$4,SUMPRODUCT(N$77:N$82,$J$86:$J$91),"") ->  | O97: =IF(AND(O$95=O$4,$C97<>0),SUMPRODUCT(O$77:O$82,$J$86:$J$91),"") -> 0.01324944995 | P97: =IF(AND(P$95=P$4,$C97<>0),SUMPRODUCT(P$77:P$82,$J$86:$J$91),"") -> 0.007036938942 | Q97: 0.005207864542 | R97: 0.004946401507 | S97: 0.004835685677 | T97: 0.004804316347
C98: FGLS CD | D98: calculated | E98: =percent -> Per cent | F98: n/a | J98: =IF(J$95=J$4,SUMPRODUCT(J$77:J$82,$K$86:$K$91),"") ->  | K98: =IF(K$95=K$4,SUMPRODUCT(K$77:K$82,$K$86:$K$91),"") ->  | L98: =IF(L$95=L$4,SUMPRODUCT(L$77:L$82,$K$86:$K$91),"") ->  | M98: =IF(M$95=M$4,SUMPRODUCT(M$77:M$82,$K$86:$K$91),"") ->  | N98: =IF(N$95=N$4,SUMPRODUCT(N$77:N$82,$K$86:$K$91),"") ->  | O98: =IF(AND(O$95=O$4,$C98<>0),SUMPRODUCT(O$77:O$82,$K$86:$K$91),"") -> 0.01531189469 | P98: 0.008812260308 | Q98: 0.005876201097 | R98: 0.005488417306 | S98: 0.005234713132 | T98: 0.00513825506
C99: 0 | D99: calculated | E99: =percent -> Per cent | F99: n/a | J99: =IF(J$95=J$4,SUMPRODUCT(J$77:J$82,$L$86:$L$91),"") ->  | K99: =IF(K$95=K$4,SUMPRODUCT(K$77:K$82,$L$86:$L$91),"") ->  | L99: =IF(L$95=L$4,SUMPRODUCT(L$77:L$82,$L$86:$L$91),"") ->  | M99: =IF(M$95=M$4,SUMPRODUCT(M$77:M$82,$L$86:$L$91),"") ->  | N99: =IF(N$95=N$4,SUMPRODUCT(N$77:N$82,$L$86:$L$91),"") ->  | P99: =IF(AND(P$95=P$4,$C99<>0),SUMPRODUCT(P$77:P$82,$L$86:$L$91),"") ->  | Q99: =IF(AND(Q$95=Q$4,$C99<>0),SUMPRODUCT(Q$77:Q$82,$L$86:$L$91),"") ->  | R99: =IF(AND(R$95=R$4,$C99<>0),SUMPRODUCT(R$77:R$82,$L$86:$L$91),"") ->  | S99: =IF(AND(S$95=S$4,$C99<>0),SUMPRODUCT(S$77:S$82,$L$86:$L$91),"") ->  | T99: =IF(AND(T$95=T$4,$C99<>0),SUMPRODUCT(T$77:T$82,$L$86:$L$91),"") -> 
C100: 0 | D100: calculated | E100: =percent -> Per cent | F100: n/a | J100: =IF(J$95=J$4,SUMPRODUCT(J$77:J$82,$M$86:$M$91),"") ->  | K100: =IF(K$95=K$4,SUMPRODUCT(K$77:K$82,$M$86:$M$91),"") ->  | L100: =IF(L$95=L$4,SUMPRODUCT(L$77:L$82,$M$86:$M$91),"") ->  | M100: =IF(M$95=M$4,SUMPRODUCT(M$77:M$82,$M$86:$M$91),"") ->  | N100: =IF(N$95=N$4,SUMPRODUCT(N$77:N$82,$M$86:$M$91),"") ->  | P100: =IF(AND(P$95=P$4,$C100<>0),SUMPRODUCT(P$77:P$82,$M$86:$M$91),"") ->  | Q100: =IF(AND(Q$95=Q$4,$C100<>0),SUMPRODUCT(Q$77:Q$82,$M$86:$M$91),"") ->  | R100: =IF(AND(R$95=R$4,$C100<>0),SUMPRODUCT(R$77:R$82,$M$86:$M$91),"") ->  | S100: =IF(AND(S$95=S$4,$C100<>0),SUMPRODUCT(S$77:S$82,$M$86:$M$91),"") ->  | T100: =IF(AND(T$95=T$4,$C100<>0),SUMPRODUCT(T$77:T$82,$M$86:$M$91),"") -> 
B102: Input | Forecast productivity
C104: Partial factor productivity | D104: Source | E104: Unit | F104: Basis | J104: =IF(YEAR(J$4)>=FPFirstYear,IF(YEAR(J$4)<=FPLastYear,J$4,""),"") ->  | O104: 2021-06-01 | P104: 2022-06-01 | Q104: 2023-06-01 | R104: 2024-06-01 | S104: 2025-06-01 | T104: 2026-06-01
C106: Partial factor productivity | D106: Economic Insights | E106: =percent -> Per cent | F106: n/a | O106: 0.005 | P106: 0.005 | Q106: =P106 -> 0.005 | R106: =Q106 -> 0.005 | S106: =R106 -> 0.005 | T106: =S106 -> 0.005
C108: Check | D108: calculated | E108: Ok/Check | F108: n/a | J108: =IF(J104=J$4,IF(ISBLANK(J106),"Check","Ok"),"") ->  | O108: Ok | P108: Ok | Q108: Ok | R108: Ok | S108: Ok | T108: Ok | W108: =IF(COUNTIF(J108:T108,"Check")=0,"Ok","Check") -> Ok
B110: End

Sheet Input|Step changes
B1: =Index!$B$1 -> AER opex model | J1: Back to Index | L1: Key: | M1: Input | N1: External Link | O1: Internal Link | R1: Worksheet check: | S1: =IF(COUNTA($W$8:$W$44)=COUNTIF($W$8:$W$44,"OK"),"OK","Check") -> OK | U1: Overall Check: | V1: ='Check|List'!$S$1 -> Ok
B2: =Index!$C$11 -> Input | Step changes
J3: Year ending
D4: Source | E4: Unit | F4: Basis | J4: =DATE(PPFirstYear,MONTH('Input|General'!$G$9),1) -> 2017-06-01 | K4: =DATE(PPFirstYear+1,MONTH('Input|General'!$G$9),1) -> 2018-06-01 | L4: =DATE(PPFirstYear+2,MONTH('Input|General'!$G$9),1) -> 2019-06-01 | M4: =DATE(PPFirstYear+3,MONTH('Input|General'!$G$9),1) -> 2020-06-01 | N4: =DATE(PPFirstYear+4,MONTH('Input|General'!$G$9),1) -> 2021-06-01 | O4: =DATE(PPFirstYear+5,MONTH('Input|General'!$G$9),1) -> 2022-06-01 | P4: =DATE(PPFirstYear+6,MONTH('Input|General'!$G$9),1) -> 2023-06-01 | Q4: =DATE(PPFirstYear+7,MONTH('Input|General'!$G$9),1) -> 2024-06-01 | R4: =DATE(PPFirstYear+8,MONTH('Input|General'!$G$9),1) -> 2025-06-01 | S4: =DATE(PPFirstYear+9,MONTH('Input|General'!$G$9),1) -> 2026-06-01
B8: Input |Step changes
C10: Step change | D10: Source | E10: Unit | F10: Basis | J10: =IF(YEAR(J$4)>=FPFirstYear,IF(YEAR(J$4)<=FPLastYear,J$4,""),"") ->  | O10: 2022-06-01 | P10: 2023-06-01 | Q10: 2024-06-01 | R10: 2025-06-01 | S10: 2026-06-01
C12: Expensing of pigging | D12: Evoenergy | E12: $millions | F12: 2020-06-01 | O12: 0.445017391 | P12: 0.9214634254 | Q12: 0 | R12: 0.04932843828 | S12: 0.7992767314
D13: Evoenergy | E13: $millions | F13: 2020-06-01
D14: Evoenergy | E14: $millions | F14: 2020-06-01
D15: Evoenergy | E15: $millions | F15: 2020-06-01
D16: Evoenergy | E16: $millions | F16: 2020-06-01
D17: Evoenergy | E17: $millions | F17: 2020-06-01
D18: Evoenergy | E18: $millions | F18: 2020-06-01
D19: Evoenergy | E19: $millions | F19: 2020-06-01
D20: Evoenergy | E20: $millions | F20: 2020-06-01
C22: Check | D22: calculated | E22: Ok/Check | F22: n/a | J22: =IF(J10=J4,IF(COUNTA($C12:$C20)=COUNT(J12:J20),"Ok","Check"),"") ->  | O22: =IF(O10=O4,IF(COUNTA($C12:$C20)=COUNT(O12:O20),"Ok","Check"),"") -> Ok | P22: Ok | Q22: Ok | R22: Ok | S22: Ok | W22: =IF(COUNTIF(J22:T22,"Check")=0,"Ok","Check") -> Ok
B24: Input | Category specific forecasts
C26: Category specific forecasts | D26: Source | E26: Unit | F26: Basis | J26: =IF(YEAR(J$4)>=FPFirstYear,IF(YEAR(J$4)<=FPLastYear,J$4,""),"") ->  | K26: =IF(YEAR(K$4)>=FPFirstYear,IF(YEAR(K$4)<=FPLastYear,K$4,""),"") ->  | L26: =IF(YEAR(L$4)>=FPFirstYear,IF(YEAR(L$4)<=FPLastYear,L$4,""),"") ->  | N26: =IF(YEAR(N$4)>=FPFirstYear,IF(YEAR(N$4)<=FPLastYear,N$4,""),"") ->  | O26: 2022-06-01 | P26: 2023-06-01 | Q26: 2024-06-01 | R26: 2025-06-01 | S26: 2026-06-01
C28: UNFT | D28: Evoenergy | E28: $millions | F28: 2020-06-01 | O28: 8.372231899 | P28: 8.621761508 | Q28: 8.87652688 | R28: 9.137760042 | S28: 9.400737379
C29: EIL | D29: Evoenergy | E29: $millions | F29: 2020-06-01 | O29: 0.6822224407 | P29: 0.6573976558 | Q29: 0.6272899857 | R29: 0.5989658935 | S29: 0.5730146618
C30: UAG | D30: Evoenergy | E30: $millions | F30: 2020-06-01 | O30: 1.410214578 | P30: 1.939753835 | Q30: 1.905346932 | R30: 1.984488463 | S30: 2.036768042
C31: ITAUF | D31: Evoenergy | E31: $millions | F31: 2020-06-01 | O31: 0 | P31: 0 | Q31: 0 | R31: 0.2825 | S31: 0.276
D32: Evoenergy | E32: $millions | F32: 2020-06-01
C34: Check | D34: calculated | E34: Ok/Check | F34: n/a | J34: =IF(J26=J4,IF(COUNTA($C28:$C32)=COUNT(J28:J32),"Ok","Check"),"") ->  | K34: =IF(K26=K4,IF(COUNTA($C28:$C32)=COUNT(K28:K32),"Ok","Check"),"") ->  | L34: =IF(L26=L4,IF(COUNTA($C28:$C32)=COUNT(L28:L32),"Ok","Check"),"") ->  | M34: =IF(M26=M4,IF(COUNTA($C28:$C32)=COUNT(M28:M32),"Ok","Check"),"") ->  | N34: =IF(N26=N4,IF(COUNTA($C28:$C32)=COUNT(N28:N32),"Ok","Check"),"") ->  | O34: =IF(O26=O4,IF(COUNTA($C28:$C32)=COUNTA(O28:O32),"Ok","Check"),"") -> Ok | P34: =IF(P26=P4,IF(COUNTA($C28:$C32)=COUNTA(P28:P32),"Ok","Check"),"") -> Ok | Q34: =IF(Q26=Q4,IF(COUNTA($C28:$C32)=COUNTA(Q28:Q32),"Ok","Check"),"") -> Ok | R34: =IF(R26=R4,IF(COUNTA($C28:$C32)=COUNTA(R28:R32),"Ok","Check"),"") -> Ok | S34: =IF(S26=S4,IF(COUNTA($C28:$C32)=COUNTA(S28:S32),"Ok","Check"),"") -> Ok | W34: =IF(COUNTIF(J34:T34,"Check")=0,"Ok","Check") -> Ok
B36: Input | Debt raising costs
C38: Debt Raising Costs | D38: Source | E38: Unit | F38: Basis | J38: =IF(YEAR(J$4)>=FPFirstYear,IF(YEAR(J$4)<=FPLastYear,J$4,""),"") ->  | O38: 2022-06-01 | P38: 2023-06-01 | Q38: 2024-06-01 | R38: 2025-06-01 | S38: 2026-06-01
C40: Debt raising costs | D40: PTRM | E40: $millions | F40: =DATE(PPLastYear,MONTH('Input|General'!$G$9),1) -> 2021-06-01 | O40: 0.194062249 | P40: 0.1939098107 | Q40: 0.1931959724 | R40: 0.1907104873 | S40: 0.1872914243
C42: Check | D42: calculated | E42: Ok/Check | F42: n/a | J42: =IF(J38=J4,IF(ISBLANK(J40),"Check","Ok"),"") ->  | O42: Ok | P42: Ok | Q42: Ok | R42: Ok | S42: Ok | W42: =IF(COUNTIF(J42:T42,"Check")=0,"Ok","Check") -> Ok
B44: End

Sheet Calc|Opex forecast
B1: =Index!$B$1 -> AER opex model | J1: Back to Index | L1: Key: | M1: Input | N1: External Link | O1: Internal Link | R1: Worksheet check: | S1: =IF(COUNTA($W$8:$W$106)=COUNTIF($W$8:$W$106,"OK"),"OK","Check") -> OK | U1: Overall Check: | V1: ='Check|List'!$S$1 -> Ok
B2: =Index!$C$13 -> Calc | Opex Forecast
J3: Year ending
D4: Source | E4: Unit | F4: Basis | J4: =DATE(PPFirstYear,MONTH('Input|General'!$G$9),1) -> 2017-06-01 | K4: =DATE(PPFirstYear+1,MONTH('Input|General'!$G$9),1) -> 2018-06-01 | L4: =DATE(PPFirstYear+2,MONTH('Input|General'!$G$9),1) -> 2019-06-01 | M4: =DATE(PPFirstYear+3,MONTH('Input|General'!$G$9),1) -> 2020-06-01 | N4: =DATE(PPFirstYear+4,MONTH('Input|General'!$G$9),1) -> 2021-06-01 | O4: =DATE(PPFirstYear+5,MONTH('Input|General'!$G$9),1) -> 2022-06-01 | P4: =DATE(PPFirstYear+6,MONTH('Input|General'!$G$9),1) -> 2023-06-01 | Q4: =DATE(PPFirstYear+7,MONTH('Input|General'!$G$9),1) -> 2024-06-01 | R4: =DATE(PPFirstYear+8,MONTH('Input|General'!$G$9),1) -> 2025-06-01 | S4: =DATE(PPFirstYear+9,MONTH('Input|General'!$G$9),1) -> 2026-06-01
B8: Calc | Estimated final year expenditure | E8: $millions | F8: =DATE(PPLastYear,MONTH('Input|General'!$G$9),1) -> 2021-06-01
D10: Source | E10: Unit | F10: Basis | J10: =IF(YEAR(J$4)<=PPLastYear,J$4,"") -> 2017-06-01 | K10: 2018-06-01 | L10: 2019-06-01 | M10: 2020-06-01 | N10: 2021-06-01
C12: Reported opex, total | D12: Inputs|Reported opex | E12: ='Input|Reported opex'!E53 -> $millions | F12: ='Input|Reported opex'!F53 -> nominal | J12: =IF(YEAR(J$4)=BaseYear,'Input|Reported opex'!J44,0) -> 0 | K12: =IF(YEAR(K$4)=BaseYear,'Input|Reported opex'!K44,0) -> 0 | L12: =IF(YEAR(L$4)=BaseYear,'Input|Reported opex'!L44,0) -> 0 | M12: =IF(YEAR(M$4)=BaseYear,'Input|Reported opex'!M44,0) -> 31.23840141 | N12: =IF(YEAR(N$4)=BaseYear,'Input|Reported opex'!N44,0) -> 0 | O12: =IF(YEAR(O$4)=BaseYear,'Input|Reported opex'!O44,0) -> 0 | P12: =IF(YEAR(P$4)=BaseYear,'Input|Reported opex'!P44,0) -> 0 | Q12: =IF(YEAR(Q$4)=BaseYear,'Input|Reported opex'!Q44,0) -> 0 | R12: =IF(YEAR(R$4)=BaseYear,'Input|Reported opex'!R44,0) -> 0 | S12: =IF(YEAR(S$4)=BaseYear,'Input|Reported opex'!S44,0) -> 0
C13: Reported opex, total | D13: Calculated | E13: =$E$8 -> $millions | F13: =$F$8 -> 2021-06-01 | J13: =J12*IF($F12="nominal",LOOKUP($F13,Nominal_to_Real,'Input|Rate of change'!K$27:K$32),INDEX('Input|Rate of change'!$C$14:$O$22,MATCH('Calc|Opex forecast'!$F12,'Input|Rate of change'!$C$14:$C$22,0),MATCH('Calc|Opex forecast'!$F13,'Input|Rate of change'!$C$14:$O$14,0)))*IF($E12="$millions",1000000,IF($E12="$000",1000,1))/IF($E13="$millions",1000000,IF($E13="$000",1000,1)) -> 0 | K13: =K12*IF($F12="nominal",LOOKUP($F13,Nominal_to_Real,'Input|Rate of change'!L$27:L$32),INDEX('Input|Rate of change'!$C$14:$O$22,MATCH('Calc|Opex forecast'!$F12,'Input|Rate of change'!$C$14:$C$22,0),MATCH('Calc|Opex forecast'!$F13,'Input|Rate of change'!$C$14:$O$14,0)))*IF($E12="$millions",1000000,IF($E12="$000",1000,1))/IF($E13="$millions",1000000,IF($E13="$000",1000,1)) -> 0 | L13: =L12*IF($F12="nominal",LOOKUP($F13,Nominal_to_Real,'Input|Rate of change'!M$27:M$32),INDEX('Input|Rate of change'!$C$14:$O$22,MATCH('Calc|Opex forecast'!$F12,'Input|Rate of change'!$C$14:$C$22,0),MATCH('Calc|Opex forecast'!$F13,'Input|Rate of change'!$C$14:$O$14,0)))*IF($E12="$millions",1000000,IF($E12="$000",1000,1))/IF($E13="$millions",1000000,IF($E13="$000",1000,1)) -> 0 | M13: =M12*IF($F12="nominal",LOOKUP($F13,Nominal_to_Real,'Input|Rate of change'!N$27:N$32),INDEX('Input|Rate of change'!$C$14:$O$22,MATCH('Calc|Opex forecast'!$F12,'Input|Rate of change'!$C$14:$C$22,0),MATCH('Calc|Opex forecast'!$F13,'Input|Rate of change'!$C$14:$O$14,0)))*IF($E12="$millions",1000000,IF($E12="$000",1000,1))/IF($E13="$millions",1000000,IF($E13="$000",1000,1)) -> 32.18022371 | O13: =O12*IF($F12="nominal",LOOKUP($F13,Nominal_to_Real,'Input|Rate of change'!P$27:P$32),INDEX('Input|Rate of change'!$C$14:$O$22,MATCH('Calc|Opex forecast'!$F12,'Input|Rate of change'!$C$14:$C$22,0),MATCH('Calc|Opex forecast'!$F13,'Input|Rate of change'!$C$14:$O$14,0)))*IF($E12="$millions",1000000,IF($E12="$000",1000,1))/IF($E13="$millions",1000000,IF($E13="$000",1000,1)) -> 0 | P13: =P12*IF($F12="nominal",LOOKUP($F13,Nominal_to_Real,'Input|Rate of change'!Q$27:Q$32),INDEX('Input|Rate of change'!$C$14:$O$22,MATCH('Calc|Opex forecast'!$F12,'Input|Rate of change'!$C$14:$C$22,0),MATCH('Calc|Opex forecast'!$F13,'Input|Rate of change'!$C$14:$O$14,0)))*IF($E12="$millions",1000000,IF($E12="$000",1000,1))/IF($E13="$millions",1000000,IF($E13="$000",1000,1)) -> 0 | Q13: =Q12*IF($F12="nominal",LOOKUP($F13,Nominal_to_Real,'Input|Rate of change'!R$27:R$32),INDEX('Input|Rate of change'!$C$14:$O$22,MATCH('Calc|Opex forecast'!$F12,'Input|Rate of change'!$C$14:$C$22,0),MATCH('Calc|Opex forecast'!$F13,'Input|Rate of change'!$C$14:$O$14,0)))*IF($E12="$millions",1000000,IF($E12="$000",1000,1))/IF($E13="$millions",1000000,IF($E13="$000",1000,1)) -> 0 | R13: =R12*IF($F12="nominal",LOOKUP($F13,Nominal_to_Real,'Input|Rate of change'!S$27:S$32),INDEX('Input|Rate of change'!$C$14:$O$22,MATCH('Calc|Opex forecast'!$F12,'Input|Rate of change'!$C$14:$C$22,0),MATCH('Calc|Opex forecast'!$F13,'Input|Rate of change'!$C$14:$O$14,0)))*IF($E12="$millions",1000000,IF($E12="$000",1000,1))/IF($E13="$millions",1000000,IF($E13="$000",1000,1)) -> 0 | S13: =S12*IF($F12="nominal",LOOKUP($F13,Nominal_to_Real,'Input|Rate of change'!T$27:T$32),INDEX('Input|Rate of change'!$C$14:$O$22,MATCH('Calc|Opex forecast'!$F12,'Input|Rate of change'!$C$14:$C$22,0),MATCH('Calc|Opex forecast'!$F13,'Input|Rate of change'!$C$14:$O$14,0)))*IF($E12="$millions",1000000,IF($E12="$000",1000,1))/IF($E13="$millions",1000000,IF($E13="$000",1000,1)) -> 0
C14: Base year opex allowance, total | D14: Inputs|Reported opex | E14: ='Input|Reported opex'!E15 -> $millions | F14: ='Input|Reported opex'!F15 -> 2015-06-01 | J14: =IF(YEAR(J$4)=BaseYear,'Input|Reported opex'!J15,0) -> 0 | K14: =IF(YEAR(K$4)=BaseYear,'Input|Reported opex'!K15,0) -> 0 | L14: =IF(YEAR(L$4)=BaseYear,'Input|Reported opex'!L15,0) -> 0 | M14: =IF(YEAR(M$4)=BaseYear,'Input|Reported opex'!M15,0) -> 31.43971202 | N14: =IF(YEAR(N$4)=BaseYear,'Input|Reported opex'!N15,0) -> 0 | O14: =IF(YEAR(O$4)=BaseYear,'Input|Reported opex'!O15,0) -> 0 | P14: =IF(YEAR(P$4)=BaseYear,'Input|Reported opex'!P15,0) -> 0 | Q14: =IF(YEAR(Q$4)=BaseYear,'Input|Reported opex'!Q15,0) -> 0 | R14: =IF(YEAR(R$4)=BaseYear,'Input|Reported opex'!R15,0) -> 0 | S14: =IF(YEAR(S$4)=BaseYear,'Input|Reported opex'!S15,0) -> 0
C15: Base year opex allowance, total | D15: Calculated | E15: =$E$8 -> $millions | F15: =$F$8 -> 2021-06-01 | J15: =J14*IF($F14="nominal",LOOKUP($F15,Nominal_to_Real,'Input|Rate of change'!K$27:K$32),INDEX('Input|Rate of change'!$C$14:$O$22,MATCH('Calc|Opex forecast'!$F14,'Input|Rate of change'!$C$14:$C$22,0),MATCH('Calc|Opex forecast'!$F15,'Input|Rate of change'!$C$14:$O$14,0)))*IF($E14="$millions",1000000,IF($E14="$000",1000,1))/IF($E15="$millions",1000000,IF($E15="$000",1000,1)) -> 0 | K15: =K14*IF($F14="nominal",LOOKUP($F15,Nominal_to_Real,'Input|Rate of change'!L$27:L$32),INDEX('Input|Rate of change'!$C$14:$O$22,MATCH('Calc|Opex forecast'!$F14,'Input|Rate of change'!$C$14:$C$22,0),MATCH('Calc|Opex forecast'!$F15,'Input|Rate of change'!$C$14:$O$14,0)))*IF($E14="$millions",1000000,IF($E14="$000",1000,1))/IF($E15="$millions",1000000,IF($E15="$000",1000,1)) -> 0 | L15: =L14*IF($F14="nominal",LOOKUP($F15,Nominal_to_Real,'Input|Rate of change'!M$27:M$32),INDEX('Input|Rate of change'!$C$14:$O$22,MATCH('Calc|Opex forecast'!$F14,'Input|Rate of change'!$C$14:$C$22,0),MATCH('Calc|Opex forecast'!$F15,'Input|Rate of change'!$C$14:$O$14,0)))*IF($E14="$millions",1000000,IF($E14="$000",1000,1))/IF($E15="$millions",1000000,IF($E15="$000",1000,1)) -> 0 | M15: =M14*IF($F14="nominal",LOOKUP($F15,Nominal_to_Real,'Input|Rate of change'!N$27:N$32),INDEX('Input|Rate of change'!$C$14:$O$22,MATCH('Calc|Opex forecast'!$F14,'Input|Rate of change'!$C$14:$C$22,0),MATCH('Calc|Opex forecast'!$F15,'Input|Rate of change'!$C$14:$O$14,0)))*IF($E14="$millions",1000000,IF($E14="$000",1000,1))/IF($E15="$millions",1000000,IF($E15="$000",1000,1)) -> 34.9311052 | N15: =N14*IF($F14="nominal",LOOKUP($F15,Nominal_to_Real,'Input|Rate of change'!O$27:O$32),INDEX('Input|Rate of change'!$C$14:$O$22,MATCH('Calc|Opex forecast'!$F14,'Input|Rate of change'!$C$14:$C$22,0),MATCH('Calc|Opex forecast'!$F15,'Input|Rate of change'!$C$14:$O$14,0)))*IF($E14="$millions",1000000,IF($E14="$000",1000,1))/IF($E15="$millions",1000000,IF($E15="$000",1000,1)) -> 0 | O15: =O14*IF($F14="nominal",LOOKUP($F15,Nominal_to_Real,'Input|Rate of change'!P$27:P$32),INDEX('Input|Rate of change'!$C$14:$O$22,MATCH('Calc|Opex forecast'!$F14,'Input|Rate of change'!$C$14:$C$22,0),MATCH('Calc|Opex forecast'!$F15,'Input|Rate of change'!$C$14:$O$14,0)))*IF($E14="$millions",1000000,IF($E14="$000",1000,1))/IF($E15="$millions",1000000,IF($E15="$000",1000,1)) -> 0 | P15: =P14*IF($F14="nominal",LOOKUP($F15,Nominal_to_Real,'Input|Rate of change'!Q$27:Q$32),INDEX('Input|Rate of change'!$C$14:$O$22,MATCH('Calc|Opex forecast'!$F14,'Input|Rate of change'!$C$14:$C$22,0),MATCH('Calc|Opex forecast'!$F15,'Input|Rate of change'!$C$14:$O$14,0)))*IF($E14="$millions",1000000,IF($E14="$000",1000,1))/IF($E15="$millions",1000000,IF($E15="$000",1000,1)) -> 0 | Q15: =Q14*IF($F14="nominal",LOOKUP($F15,Nominal_to_Real,'Input|Rate of change'!R$27:R$32),INDEX('Input|Rate of change'!$C$14:$O$22,MATCH('Calc|Opex forecast'!$F14,'Input|Rate of change'!$C$14:$C$22,0),MATCH('Calc|Opex forecast'!$F15,'Input|Rate of change'!$C$14:$O$14,0)))*IF($E14="$millions",1000000,IF($E14="$000",1000,1))/IF($E15="$millions",1000000,IF($E15="$000",1000,1)) -> 0 | R15: =R14*IF($F14="nominal",LOOKUP($F15,Nominal_to_Real,'Input|Rate of change'!S$27:S$32),INDEX('Input|Rate of change'!$C$14:$O$22,MATCH('Calc|Opex forecast'!$F14,'Input|Rate of change'!$C$14:$C$22,0),MATCH('Calc|Opex forecast'!$F15,'Input|Rate of change'!$C$14:$O$14,0)))*IF($E14="$millions",1000000,IF($E14="$000",1000,1))/IF($E15="$millions",1000000,IF($E15="$000",1000,1)) -> 0 | S15: =S14*IF($F14="nominal",LOOKUP($F15,Nominal_to_Real,'Input|Rate of change'!T$27:T$32),INDEX('Input|Rate of change'!$C$14:$O$22,MATCH('Calc|Opex forecast'!$F14,'Input|Rate of change'!$C$14:$C$22,0),MATCH('Calc|Opex forecast'!$F15,'Input|Rate of change'!$C$14:$O$14,0)))*IF($E14="$millions",1000000,IF($E14="$000",1000,1))/IF($E15="$millions",1000000,IF($E15="$000",1000,1)) -> 0
C16: Final year opex allowance, total | D16: Inputs|Reported opex | E16: ='Input|Reported opex'!E15 -> $millions | F16: ='Input|Reported opex'!F15 -> 2015-06-01 | J16: =IF(YEAR(J$4)=PPLastYear,'Input|Reported opex'!J15,0) -> 0 | K16: =IF(YEAR(K$4)=PPLastYear,'Input|Reported opex'!K15,0) -> 0 | L16: =IF(YEAR(L$4)=PPLastYear,'Input|Reported opex'!L15,0) -> 0 | M16: =IF(YEAR(M$4)=PPLastYear,'Input|Reported opex'!M15,0) -> 0 | N16: =IF(YEAR(N$4)=PPLastYear,'Input|Reported opex'!N15,0) -> 31.45693231 | O16: =IF(YEAR(O$4)=PPLastYear,'Input|Reported opex'!O15,0) -> 0 | P16: =IF(YEAR(P$4)=PPLastYear,'Input|Reported opex'!P15,0) -> 0 | Q16: =IF(YEAR(Q$4)=PPLastYear,'Input|Reported opex'!Q15,0) -> 0 | R16: =IF(YEAR(R$4)=PPLastYear,'Input|Reported opex'!R15,0) -> 0 | S16: =IF(YEAR(S$4)=PPLastYear,'Input|Reported opex'!S15,0) -> 0
C17: Final year opex allowance, total | D17: Calculated | E17: =$E$8 -> $millions | F17: =$F$8 -> 2021-06-01 | J17: =J16*IF($F16="nominal",LOOKUP($F17,Nominal_to_Real,'Input|Rate of change'!K$27:K$32),INDEX('Input|Rate of change'!$C$14:$O$22,MATCH('Calc|Opex forecast'!$F16,'Input|Rate of change'!$C$14:$C$22,0),MATCH('Calc|Opex forecast'!$F17,'Input|Rate of change'!$C$14:$O$14,0)))*IF($E16="$millions",1000000,IF($E16="$000",1000,1))/IF($E17="$millions",1000000,IF($E17="$000",1000,1)) -> 0 | K17: =K16*IF($F16="nominal",LOOKUP($F17,Nominal_to_Real,'Input|Rate of change'!L$27:L$32),INDEX('Input|Rate of change'!$C$14:$O$22,MATCH('Calc|Opex forecast'!$F16,'Input|Rate of change'!$C$14:$C$22,0),MATCH('Calc|Opex forecast'!$F17,'Input|Rate of change'!$C$14:$O$14,0)))*IF($E16="$millions",1000000,IF($E16="$000",1000,1))/IF($E17="$millions",1000000,IF($E17="$000",1000,1)) -> 0 | L17: =L16*IF($F16="nominal",LOOKUP($F17,Nominal_to_Real,'Input|Rate of change'!M$27:M$32),INDEX('Input|Rate of change'!$C$14:$O$22,MATCH('Calc|Opex forecast'!$F16,'Input|Rate of change'!$C$14:$C$22,0),MATCH('Calc|Opex forecast'!$F17,'Input|Rate of change'!$C$14:$O$14,0)))*IF($E16="$millions",1000000,IF($E16="$000",1000,1))/IF($E17="$millions",1000000,IF($E17="$000",1000,1)) -> 0 | M17: =M16*IF($F16="nominal",LOOKUP($F17,Nominal_to_Real,'Input|Rate of change'!N$27:N$32),INDEX('Input|Rate of change'!$C$14:$O$22,MATCH('Calc|Opex forecast'!$F16,'Input|Rate of change'!$C$14:$C$22,0),MATCH('Calc|Opex forecast'!$F17,'Input|Rate of change'!$C$14:$O$14,0)))*IF($E16="$millions",1000000,IF($E16="$000",1000,1))/IF($E17="$millions",1000000,IF($E17="$000",1000,1)) -> 0 | N17: =N16*IF($F16="nominal",LOOKUP($F17,Nominal_to_Real,'Input|Rate of change'!O$27:O$32),INDEX('Input|Rate of change'!$C$14:$O$22,MATCH('Calc|Opex forecast'!$F16,'Input|Rate of change'!$C$14:$C$22,0),MATCH('Calc|Opex forecast'!$F17,'Input|Rate of change'!$C$14:$O$14,0)))*IF($E16="$millions",1000000,IF($E16="$000",1000,1))/IF($E17="$millions",1000000,IF($E17="$000",1000,1)) -> 34.95023781 | O17: =O16*IF($F16="nominal",LOOKUP($F17,Nominal_to_Real,'Input|Rate of change'!P$27:P$32),INDEX('Input|Rate of change'!$C$14:$O$22,MATCH('Calc|Opex forecast'!$F16,'Input|Rate of change'!$C$14:$C$22,0),MATCH('Calc|Opex forecast'!$F17,'Input|Rate of change'!$C$14:$O$14,0)))*IF($E16="$millions",1000000,IF($E16="$000",1000,1))/IF($E17="$millions",1000000,IF($E17="$000",1000,1)) -> 0 | P17: =P16*IF($F16="nominal",LOOKUP($F17,Nominal_to_Real,'Input|Rate of change'!Q$27:Q$32),INDEX('Input|Rate of change'!$C$14:$O$22,MATCH('Calc|Opex forecast'!$F16,'Input|Rate of change'!$C$14:$C$22,0),MATCH('Calc|Opex forecast'!$F17,'Input|Rate of change'!$C$14:$O$14,0)))*IF($E16="$millions",1000000,IF($E16="$000",1000,1))/IF($E17="$millions",1000000,IF($E17="$000",1000,1)) -> 0 | Q17: =Q16*IF($F16="nominal",LOOKUP($F17,Nominal_to_Real,'Input|Rate of change'!R$27:R$32),INDEX('Input|Rate of change'!$C$14:$O$22,MATCH('Calc|Opex forecast'!$F16,'Input|Rate of change'!$C$14:$C$22,0),MATCH('Calc|Opex forecast'!$F17,'Input|Rate of change'!$C$14:$O$14,0)))*IF($E16="$millions",1000000,IF($E16="$000",1000,1))/IF($E17="$millions",1000000,IF($E17="$000",1000,1)) -> 0 | R17: =R16*IF($F16="nominal",LOOKUP($F17,Nominal_to_Real,'Input|Rate of change'!S$27:S$32),INDEX('Input|Rate of change'!$C$14:$O$22,MATCH('Calc|Opex forecast'!$F16,'Input|Rate of change'!$C$14:$C$22,0),MATCH('Calc|Opex forecast'!$F17,'Input|Rate of change'!$C$14:$O$14,0)))*IF($E16="$millions",1000000,IF($E16="$000",1000,1))/IF($E17="$millions",1000000,IF($E17="$000",1000,1)) -> 0 | S17: =S16*IF($F16="nominal",LOOKUP($F17,Nominal_to_Real,'Input|Rate of change'!T$27:T$32),INDEX('Input|Rate of change'!$C$14:$O$22,MATCH('Calc|Opex forecast'!$F16,'Input|Rate of change'!$C$14:$C$22,0),MATCH('Calc|Opex forecast'!$F17,'Input|Rate of change'!$C$14:$O$14,0)))*IF($E16="$millions",1000000,IF($E16="$000",1000,1))/IF($E17="$millions",1000000,IF($E17="$000",1000,1)) -> 0
C19: Reported opex, category specific forecasts | D19: Inputs|Reported opex | E19: ='Input|Reported opex'!E60 -> $millions | F19: ='Input|Reported opex'!F53 -> nominal | J19: =IF(YEAR(J$4)=BaseYear,'Input|Reported opex'!J53,0) -> 0 | K19: =IF(YEAR(K$4)=BaseYear,'Input|Reported opex'!K53,0) -> 0 | L19: =IF(YEAR(L$4)=BaseYear,'Input|Reported opex'!L53,0) -> 0 | M19: =IF(YEAR(M$4)=BaseYear,'Input|Reported opex'!M53,0) -> -10.68109635 | N19: =IF(YEAR(N$4)=BaseYear,'Input|Reported opex'!N53,0) -> 0 | O19: =IF(YEAR(O$4)=BaseYear,'Input|Reported opex'!O53,0) -> 0 | P19: =IF(YEAR(P$4)=BaseYear,'Input|Reported opex'!P53,0) -> 0 | Q19: =IF(YEAR(Q$4)=BaseYear,'Input|Reported opex'!Q53,0) -> 0 | R19: =IF(YEAR(R$4)=BaseYear,'Input|Reported opex'!R53,0) -> 0 | S19: =IF(YEAR(S$4)=BaseYear,'Input|Reported opex'!S53,0) -> 0
C20: Reported opex, category specific forecasts | D20: Calculated | E20: =$E$8 -> $millions | F20: =$F$8 -> 2021-06-01 | J20: =J19*IF($F19="nominal",LOOKUP($F20,Nominal_to_Real,'Input|Rate of change'!K$27:K$32),INDEX('Input|Rate of change'!$C$14:$O$22,MATCH('Calc|Opex forecast'!$F19,'Input|Rate of change'!$C$14:$C$22,0),MATCH('Calc|Opex forecast'!$F20,'Input|Rate of change'!$C$14:$O$14,0)))*IF($E19="$millions",1000000,IF($E19="$000",1000,1))/IF($E20="$millions",1000000,IF($E20="$000",1000,1)) -> 0 | K20: =K19*IF($F19="nominal",LOOKUP($F20,Nominal_to_Real,'Input|Rate of change'!L$27:L$32),INDEX('Input|Rate of change'!$C$14:$O$22,MATCH('Calc|Opex forecast'!$F19,'Input|Rate of change'!$C$14:$C$22,0),MATCH('Calc|Opex forecast'!$F20,'Input|Rate of change'!$C$14:$O$14,0)))*IF($E19="$millions",1000000,IF($E19="$000",1000,1))/IF($E20="$millions",1000000,IF($E20="$000",1000,1)) -> 0 | L20: =L19*IF($F19="nominal",LOOKUP($F20,Nominal_to_Real,'Input|Rate of change'!M$27:M$32),INDEX('Input|Rate of change'!$C$14:$O$22,MATCH('Calc|Opex forecast'!$F19,'Input|Rate of change'!$C$14:$C$22,0),MATCH('Calc|Opex forecast'!$F20,'Input|Rate of change'!$C$14:$O$14,0)))*IF($E19="$millions",1000000,IF($E19="$000",1000,1))/IF($E20="$millions",1000000,IF($E20="$000",1000,1)) -> 0 | M20: =M19*IF($F19="nominal",LOOKUP($F20,Nominal_to_Real,'Input|Rate of change'!N$27:N$32),INDEX('Input|Rate of change'!$C$14:$O$22,MATCH('Calc|Opex forecast'!$F19,'Input|Rate of change'!$C$14:$C$22,0),MATCH('Calc|Opex forecast'!$F20,'Input|Rate of change'!$C$14:$O$14,0)))*IF($E19="$millions",1000000,IF($E19="$000",1000,1))/IF($E20="$millions",1000000,IF($E20="$000",1000,1)) -> -11.0031261 | N20: =N19*IF($F19="nominal",LOOKUP($F20,Nominal_to_Real,'Input|Rate of change'!O$27:O$32),INDEX('Input|Rate of change'!$C$14:$O$22,MATCH('Calc|Opex forecast'!$F19,'Input|Rate of change'!$C$14:$C$22,0),MATCH('Calc|Opex forecast'!$F20,'Input|Rate of change'!$C$14:$O$14,0)))*IF($E19="$millions",1000000,IF($E19="$000",1000,1))/IF($E20="$millions",1000000,IF($E20="$000",1000,1)) -> 0 | O20: =O19*IF($F19="nominal",LOOKUP($F20,Nominal_to_Real,'Input|Rate of change'!P$27:P$32),INDEX('Input|Rate of change'!$C$14:$O$22,MATCH('Calc|Opex forecast'!$F19,'Input|Rate of change'!$C$14:$C$22,0),MATCH('Calc|Opex forecast'!$F20,'Input|Rate of change'!$C$14:$O$14,0)))*IF($E19="$millions",1000000,IF($E19="$000",1000,1))/IF($E20="$millions",1000000,IF($E20="$000",1000,1)) -> 0 | P20: =P19*IF($F19="nominal",LOOKUP($F20,Nominal_to_Real,'Input|Rate of change'!Q$27:Q$32),INDEX('Input|Rate of change'!$C$14:$O$22,MATCH('Calc|Opex forecast'!$F19,'Input|Rate of change'!$C$14:$C$22,0),MATCH('Calc|Opex forecast'!$F20,'Input|Rate of change'!$C$14:$O$14,0)))*IF($E19="$millions",1000000,IF($E19="$000",1000,1))/IF($E20="$millions",1000000,IF($E20="$000",1000,1)) -> 0 | Q20: =Q19*IF($F19="nominal",LOOKUP($F20,Nominal_to_Real,'Input|Rate of change'!R$27:R$32),INDEX('Input|Rate of change'!$C$14:$O$22,MATCH('Calc|Opex forecast'!$F19,'Input|Rate of change'!$C$14:$C$22,0),MATCH('Calc|Opex forecast'!$F20,'Input|Rate of change'!$C$14:$O$14,0)))*IF($E19="$millions",1000000,IF($E19="$000",1000,1))/IF($E20="$millions",1000000,IF($E20="$000",1000,1)) -> 0 | R20: =R19*IF($F19="nominal",LOOKUP($F20,Nominal_to_Real,'Input|Rate of change'!S$27:S$32),INDEX('Input|Rate of change'!$C$14:$O$22,MATCH('Calc|Opex forecast'!$F19,'Input|Rate of change'!$C$14:$C$22,0),MATCH('Calc|Opex forecast'!$F20,'Input|Rate of change'!$C$14:$O$14,0)))*IF($E19="$millions",1000000,IF($E19="$000",1000,1))/IF($E20="$millions",1000000,IF($E20="$000",1000,1)) -> 0 | S20: =S19*IF($F19="nominal",LOOKUP($F20,Nominal_to_Real,'Input|Rate of change'!T$27:T$32),INDEX('Input|Rate of change'!$C$14:$O$22,MATCH('Calc|Opex forecast'!$F19,'Input|Rate of change'!$C$14:$C$22,0),MATCH('Calc|Opex forecast'!$F20,'Input|Rate of change'!$C$14:$O$14,0)))*IF($E19="$millions",1000000,IF($E19="$000",1000,1))/IF($E20="$millions",1000000,IF($E20="$000",1000,1)) -> 0
C21: Base year opex allowance, category specific forecasts | D21: Inputs|Reported opex | E21: ='Input|Reported opex'!E22 -> $millions | F21: ='Input|Reported opex'!F29 -> 2015-06-01 | J21: =IF(YEAR(J$4)=BaseYear,'Input|Reported opex'!J29,0) -> 0 | K21: =IF(YEAR(K$4)=BaseYear,'Input|Reported opex'!K29,0) -> 0 | L21: =IF(YEAR(L$4)=BaseYear,'Input|Reported opex'!L29,0) -> 0 | M21: =IF(YEAR(M$4)=BaseYear,'Input|Reported opex'!M29,0) -> -9.646514201 | N21: =IF(YEAR(N$4)=BaseYear,'Input|Reported opex'!N29,0) -> 0 | O21: =IF(YEAR(O$4)=BaseYear,'Input|Reported opex'!O29,0) -> 0 | P21: =IF(YEAR(P$4)=BaseYear,'Input|Reported opex'!P29,0) -> 0 | Q21: =IF(YEAR(Q$4)=BaseYear,'Input|Reported opex'!Q29,0) -> 0 | R21: =IF(YEAR(R$4)=BaseYear,'Input|Reported opex'!R29,0) -> 0 | S21: =IF(YEAR(S$4)=BaseYear,'Input|Reported opex'!S29,0) -> 0
C22: Base year opex allowance, category specific forecasts | D22: Calculated | E22: =$E$8 -> $millions | F22: =$F$8 -> 2021-06-01 | J22: =J21*IF($F21="nominal",LOOKUP($F22,Nominal_to_Real,'Input|Rate of change'!K$27:K$32),INDEX('Input|Rate of change'!$C$14:$O$22,MATCH('Calc|Opex forecast'!$F21,'Input|Rate of change'!$C$14:$C$22,0),MATCH('Calc|Opex forecast'!$F22,'Input|Rate of change'!$C$14:$O$14,0)))*IF($E21="$millions",1000000,IF($E21="$000",1000,1))/IF($E22="$millions",1000000,IF($E22="$000",1000,1)) -> 0 | K22: =K21*IF($F21="nominal",LOOKUP($F22,Nominal_to_Real,'Input|Rate of change'!L$27:L$32),INDEX('Input|Rate of change'!$C$14:$O$22,MATCH('Calc|Opex forecast'!$F21,'Input|Rate of change'!$C$14:$C$22,0),MATCH('Calc|Opex forecast'!$F22,'Input|Rate of change'!$C$14:$O$14,0)))*IF($E21="$millions",1000000,IF($E21="$000",1000,1))/IF($E22="$millions",1000000,IF($E22="$000",1000,1)) -> 0 | L22: =L21*IF($F21="nominal",LOOKUP($F22,Nominal_to_Real,'Input|Rate of change'!M$27:M$32),INDEX('Input|Rate of change'!$C$14:$O$22,MATCH('Calc|Opex forecast'!$F21,'Input|Rate of change'!$C$14:$C$22,0),MATCH('Calc|Opex forecast'!$F22,'Input|Rate of change'!$C$14:$O$14,0)))*IF($E21="$millions",1000000,IF($E21="$000",1000,1))/IF($E22="$millions",1000000,IF($E22="$000",1000,1)) -> 0 | M22: =M21*IF($F21="nominal",LOOKUP($F22,Nominal_to_Real,'Input|Rate of change'!N$27:N$32),INDEX('Input|Rate of change'!$C$14:$O$22,MATCH('Calc|Opex forecast'!$F21,'Input|Rate of change'!$C$14:$C$22,0),MATCH('Calc|Opex forecast'!$F22,'Input|Rate of change'!$C$14:$O$14,0)))*IF($E21="$millions",1000000,IF($E21="$000",1000,1))/IF($E22="$millions",1000000,IF($E22="$000",1000,1)) -> -10.71776364 | N22: =N21*IF($F21="nominal",LOOKUP($F22,Nominal_to_Real,'Input|Rate of change'!O$27:O$32),INDEX('Input|Rate of change'!$C$14:$O$22,MATCH('Calc|Opex forecast'!$F21,'Input|Rate of change'!$C$14:$C$22,0),MATCH('Calc|Opex forecast'!$F22,'Input|Rate of change'!$C$14:$O$14,0)))*IF($E21="$millions",1000000,IF($E21="$000",1000,1))/IF($E22="$millions",1000000,IF($E22="$000",1000,1)) -> 0 | O22: =O21*IF($F21="nominal",LOOKUP($F22,Nominal_to_Real,'Input|Rate of change'!P$27:P$32),INDEX('Input|Rate of change'!$C$14:$O$22,MATCH('Calc|Opex forecast'!$F21,'Input|Rate of change'!$C$14:$C$22,0),MATCH('Calc|Opex forecast'!$F22,'Input|Rate of change'!$C$14:$O$14,0)))*IF($E21="$millions",1000000,IF($E21="$000",1000,1))/IF($E22="$millions",1000000,IF($E22="$000",1000,1)) -> 0 | P22: =P21*IF($F21="nominal",LOOKUP($F22,Nominal_to_Real,'Input|Rate of change'!Q$27:Q$32),INDEX('Input|Rate of change'!$C$14:$O$22,MATCH('Calc|Opex forecast'!$F21,'Input|Rate of change'!$C$14:$C$22,0),MATCH('Calc|Opex forecast'!$F22,'Input|Rate of change'!$C$14:$O$14,0)))*IF($E21="$millions",1000000,IF($E21="$000",1000,1))/IF($E22="$millions",1000000,IF($E22="$000",1000,1)) -> 0 | Q22: =Q21*IF($F21="nominal",LOOKUP($F22,Nominal_to_Real,'Input|Rate of change'!R$27:R$32),INDEX('Input|Rate of change'!$C$14:$O$22,MATCH('Calc|Opex forecast'!$F21,'Input|Rate of change'!$C$14:$C$22,0),MATCH('Calc|Opex forecast'!$F22,'Input|Rate of change'!$C$14:$O$14,0)))*IF($E21="$millions",1000000,IF($E21="$000",1000,1))/IF($E22="$millions",1000000,IF($E22="$000",1000,1)) -> 0 | R22: =R21*IF($F21="nominal",LOOKUP($F22,Nominal_to_Real,'Input|Rate of change'!S$27:S$32),INDEX('Input|Rate of change'!$C$14:$O$22,MATCH('Calc|Opex forecast'!$F21,'Input|Rate of change'!$C$14:$C$22,0),MATCH('Calc|Opex forecast'!$F22,'Input|Rate of change'!$C$14:$O$14,0)))*IF($E21="$millions",1000000,IF($E21="$000",1000,1))/IF($E22="$millions",1000000,IF($E22="$000",1000,1)) -> 0 | S22: =S21*IF($F21="nominal",LOOKUP($F22,Nominal_to_Real,'Input|Rate of change'!T$27:T$32),INDEX('Input|Rate of change'!$C$14:$O$22,MATCH('Calc|Opex forecast'!$F21,'Input|Rate of change'!$C$14:$C$22,0),MATCH('Calc|Opex forecast'!$F22,'Input|Rate of change'!$C$14:$O$14,0)))*IF($E21="$millions",1000000,IF($E21="$000",1000,1))/IF($E22="$millions",1000000,IF($E22="$000",1000,1)) -> 0
C23: Final year opex allowance, category specific forecasts | D23: Inputs|Reported opex | E23: ='Input|Reported opex'!E22 -> $millions | F23: ='Input|Reported opex'!F29 -> 2015-06-01 | J23: =IF(YEAR(J$4)=PPLastYear,'Input|Reported opex'!J29,0) -> 0 | K23: =IF(YEAR(K$4)=PPLastYear,'Input|Reported opex'!K29,0) -> 0 | L23: =IF(YEAR(L$4)=PPLastYear,'Input|Reported opex'!L29,0) -> 0 | M23: =IF(YEAR(M$4)=PPLastYear,'Input|Reported opex'!M29,0) -> 0 | N23: =IF(YEAR(N$4)=PPLastYear,'Input|Reported opex'!N29,0) -> -9.406756879 | O23: =IF(YEAR(O$4)=PPLastYear,'Input|Reported opex'!O29,0) -> 0 | P23: =IF(YEAR(P$4)=PPLastYear,'Input|Reported opex'!P29,0) -> 0 | Q23: =IF(YEAR(Q$4)=PPLastYear,'Input|Reported opex'!Q29,0) -> 0 | R23: =IF(YEAR(R$4)=PPLastYear,'Input|Reported opex'!R29,0) -> 0 | S23: =IF(YEAR(S$4)=PPLastYear,'Input|Reported opex'!S29,0) -> 0
C24: Final year opex allowance, category specific forecasts | D24: Calculated | E24: =$E$8 -> $millions | F24: =$F$8 -> 2021-06-01 | J24: =J23*IF($F23="nominal",LOOKUP($F24,Nominal_to_Real,'Input|Rate of change'!K$27:K$32),INDEX('Input|Rate of change'!$C$14:$O$22,MATCH('Calc|Opex forecast'!$F23,'Input|Rate of change'!$C$14:$C$22,0),MATCH('Calc|Opex forecast'!$F24,'Input|Rate of change'!$C$14:$O$14,0)))*IF($E23="$millions",1000000,IF($E23="$000",1000,1))/IF($E24="$millions",1000000,IF($E24="$000",1000,1)) -> 0 | K24: =K23*IF($F23="nominal",LOOKUP($F24,Nominal_to_Real,'Input|Rate of change'!L$27:L$32),INDEX('Input|Rate of change'!$C$14:$O$22,MATCH('Calc|Opex forecast'!$F23,'Input|Rate of change'!$C$14:$C$22,0),MATCH('Calc|Opex forecast'!$F24,'Input|Rate of change'!$C$14:$O$14,0)))*IF($E23="$millions",1000000,IF($E23="$000",1000,1))/IF($E24="$millions",1000000,IF($E24="$000",1000,1)) -> 0 | L24: =L23*IF($F23="nominal",LOOKUP($F24,Nominal_to_Real,'Input|Rate of change'!M$27:M$32),INDEX('Input|Rate of change'!$C$14:$O$22,MATCH('Calc|Opex forecast'!$F23,'Input|Rate of change'!$C$14:$C$22,0),MATCH('Calc|Opex forecast'!$F24,'Input|Rate of change'!$C$14:$O$14,0)))*IF($E23="$millions",1000000,IF($E23="$000",1000,1))/IF($E24="$millions",1000000,IF($E24="$000",1000,1)) -> 0 | M24: =M23*IF($F23="nominal",LOOKUP($F24,Nominal_to_Real,'Input|Rate of change'!N$27:N$32),INDEX('Input|Rate of change'!$C$14:$O$22,MATCH('Calc|Opex forecast'!$F23,'Input|Rate of change'!$C$14:$C$22,0),MATCH('Calc|Opex forecast'!$F24,'Input|Rate of change'!$C$14:$O$14,0)))*IF($E23="$millions",1000000,IF($E23="$000",1000,1))/IF($E24="$millions",1000000,IF($E24="$000",1000,1)) -> 0 | N24: =N23*IF($F23="nominal",LOOKUP($F24,Nominal_to_Real,'Input|Rate of change'!O$27:O$32),INDEX('Input|Rate of change'!$C$14:$O$22,MATCH('Calc|Opex forecast'!$F23,'Input|Rate of change'!$C$14:$C$22,0),MATCH('Calc|Opex forecast'!$F24,'Input|Rate of change'!$C$14:$O$14,0)))*IF($E23="$millions",1000000,IF($E23="$000",1000,1))/IF($E24="$millions",1000000,IF($E24="$000",1000,1)) -> -10.45138117 | O24: =O23*IF($F23="nominal",LOOKUP($F24,Nominal_to_Real,'Input|Rate of change'!P$27:P$32),INDEX('Input|Rate of change'!$C$14:$O$22,MATCH('Calc|Opex forecast'!$F23,'Input|Rate of change'!$C$14:$C$22,0),MATCH('Calc|Opex forecast'!$F24,'Input|Rate of change'!$C$14:$O$14,0)))*IF($E23="$millions",1000000,IF($E23="$000",1000,1))/IF($E24="$millions",1000000,IF($E24="$000",1000,1)) -> 0 | P24: =P23*IF($F23="nominal",LOOKUP($F24,Nominal_to_Real,'Input|Rate of change'!Q$27:Q$32),INDEX('Input|Rate of change'!$C$14:$O$22,MATCH('Calc|Opex forecast'!$F23,'Input|Rate of change'!$C$14:$C$22,0),MATCH('Calc|Opex forecast'!$F24,'Input|Rate of change'!$C$14:$O$14,0)))*IF($E23="$millions",1000000,IF($E23="$000",1000,1))/IF($E24="$millions",1000000,IF($E24="$000",1000,1)) -> 0 | Q24: =Q23*IF($F23="nominal",LOOKUP($F24,Nominal_to_Real,'Input|Rate of change'!R$27:R$32),INDEX('Input|Rate of change'!$C$14:$O$22,MATCH('Calc|Opex forecast'!$F23,'Input|Rate of change'!$C$14:$C$22,0),MATCH('Calc|Opex forecast'!$F24,'Input|Rate of change'!$C$14:$O$14,0)))*IF($E23="$millions",1000000,IF($E23="$000",1000,1))/IF($E24="$millions",1000000,IF($E24="$000",1000,1)) -> 0 | R24: =R23*IF($F23="nominal",LOOKUP($F24,Nominal_to_Real,'Input|Rate of change'!S$27:S$32),INDEX('Input|Rate of change'!$C$14:$O$22,MATCH('Calc|Opex forecast'!$F23,'Input|Rate of change'!$C$14:$C$22,0),MATCH('Calc|Opex forecast'!$F24,'Input|Rate of change'!$C$14:$O$14,0)))*IF($E23="$millions",1000000,IF($E23="$000",1000,1))/IF($E24="$millions",1000000,IF($E24="$000",1000,1)) -> 0 | S24: =S23*IF($F23="nominal",LOOKUP($F24,Nominal_to_Real,'Input|Rate of change'!T$27:T$32),INDEX('Input|Rate of change'!$C$14:$O$22,MATCH('Calc|Opex forecast'!$F23,'Input|Rate of change'!$C$14:$C$22,0),MATCH('Calc|Opex forecast'!$F24,'Input|Rate of change'!$C$14:$O$14,0)))*IF($E23="$millions",1000000,IF($E23="$000",1000,1))/IF($E24="$millions",1000000,IF($E24="$000",1000,1)) -> 0
C26: Reported base year opex | D26: Calculated | E26: =$E$8 -> $millions | F26: =$F$8 -> 2021-06-01 | J26: =J13 -> 0 | K26: =K13 -> 0 | L26: 0 | M26: 32.18022371 | N26: 0 | O26: 0 | P26: 0 | Q26: 0 | R26: 0 | S26: 0
C28: Add back non-recurrent efficiency gains in the base year | D28: Inputs|Reported opex | E28: ='Input|Reported opex'!E65 -> $millions | F28: ='Input|Reported opex'!F65 -> 2020-06-01 | J28: =IF('Input|Reported opex'!J$57='Input|Reported opex'!J$10,'Input|Reported opex'!J65,0) -> 0 | K28: =IF('Input|Reported opex'!K$57='Input|Reported opex'!K$10,'Input|Reported opex'!K65,0) -> 0 | L28: =IF('Input|Reported opex'!L$57='Input|Reported opex'!L$10,'Input|Reported opex'!L65,0) -> 0 | M28: =IF('Input|Reported opex'!M$57='Input|Reported opex'!M$10,'Input|Reported opex'!M65,0) -> 0 | N28: =IF('Input|Reported opex'!N$57='Input|Reported opex'!N$10,'Input|Reported opex'!N65,0) -> 0 | O28: =IF('Input|Reported opex'!O$57='Input|Reported opex'!O$10,'Input|Reported opex'!O65,0) -> 0 | P28: =IF('Input|Reported opex'!P$57='Input|Reported opex'!P$10,'Input|Reported opex'!P65,0) -> 0 | Q28: =IF('Input|Reported opex'!Q$57='Input|Reported opex'!Q$10,'Input|Reported opex'!Q65,0) -> 0 | R28: =IF('Input|Reported opex'!R$57='Input|Reported opex'!R$10,'Input|Reported opex'!R65,0) -> 0 | S28: =IF('Input|Reported opex'!S$57='Input|Reported opex'!S$10,'Input|Reported opex'!S65,0) -> 0
C29: =C28 -> Add back non-recurrent efficiency gains in the base year | D29: Calculated | E29: =$E$8 -> $millions | F29: =$F$8 -> 2021-06-01 | J29: =J28*IF($F28="nominal",LOOKUP($F29,Nominal_to_Real,'Input|Rate of change'!K$27:K$32),INDEX('Input|Rate of change'!$C$14:$O$22,MATCH('Calc|Opex forecast'!$F28,'Input|Rate of change'!$C$14:$C$22,0),MATCH('Calc|Opex forecast'!$F29,'Input|Rate of change'!$C$14:$O$14,0)))*IF($E28="$millions",1000000,IF($E28="$000",1000,1))/IF($E29="$millions",1000000,IF($E29="$000",1000,1)) -> 0 | K29: =K28*IF($F28="nominal",LOOKUP($F29,Nominal_to_Real,'Input|Rate of change'!L$27:L$32),INDEX('Input|Rate of change'!$C$14:$O$22,MATCH('Calc|Opex forecast'!$F28,'Input|Rate of change'!$C$14:$C$22,0),MATCH('Calc|Opex forecast'!$F29,'Input|Rate of change'!$C$14:$O$14,0)))*IF($E28="$millions",1000000,IF($E28="$000",1000,1))/IF($E29="$millions",1000000,IF($E29="$000",1000,1)) -> 0 | L29: =L28*IF($F28="nominal",LOOKUP($F29,Nominal_to_Real,'Input|Rate of change'!M$27:M$32),INDEX('Input|Rate of change'!$C$14:$O$22,MATCH('Calc|Opex forecast'!$F28,'Input|Rate of change'!$C$14:$C$22,0),MATCH('Calc|Opex forecast'!$F29,'Input|Rate of change'!$C$14:$O$14,0)))*IF($E28="$millions",1000000,IF($E28="$000",1000,1))/IF($E29="$millions",1000000,IF($E29="$000",1000,1)) -> 0 | M29: =M28*IF($F28="nominal",LOOKUP($F29,Nominal_to_Real,'Input|Rate of change'!N$27:N$32),INDEX('Input|Rate of change'!$C$14:$O$22,MATCH('Calc|Opex forecast'!$F28,'Input|Rate of change'!$C$14:$C$22,0),MATCH('Calc|Opex forecast'!$F29,'Input|Rate of change'!$C$14:$O$14,0)))*IF($E28="$millions",1000000,IF($E28="$000",1000,1))/IF($E29="$millions",1000000,IF($E29="$000",1000,1)) -> 0 | N29: =N28*IF($F28="nominal",LOOKUP($F29,Nominal_to_Real,'Input|Rate of change'!O$27:O$32),INDEX('Input|Rate of change'!$C$14:$O$22,MATCH('Calc|Opex forecast'!$F28,'Input|Rate of change'!$C$14:$C$22,0),MATCH('Calc|Opex forecast'!$F29,'Input|Rate of change'!$C$14:$O$14,0)))*IF($E28="$millions",1000000,IF($E28="$000",1000,1))/IF($E29="$millions",1000000,IF($E29="$000",1000,1)) -> 0 | O29: =O28*IF($F28="nominal",LOOKUP($F29,Nominal_to_Real,'Input|Rate of change'!P$27:P$32),INDEX('Input|Rate of change'!$C$14:$O$22,MATCH('Calc|Opex forecast'!$F28,'Input|Rate of change'!$C$14:$C$22,0),MATCH('Calc|Opex forecast'!$F29,'Input|Rate of change'!$C$14:$O$14,0)))*IF($E28="$millions",1000000,IF($E28="$000",1000,1))/IF($E29="$millions",1000000,IF($E29="$000",1000,1)) -> 0 | P29: =P28*IF($F28="nominal",LOOKUP($F29,Nominal_to_Real,'Input|Rate of change'!Q$27:Q$32),INDEX('Input|Rate of change'!$C$14:$O$22,MATCH('Calc|Opex forecast'!$F28,'Input|Rate of change'!$C$14:$C$22,0),MATCH('Calc|Opex forecast'!$F29,'Input|Rate of change'!$C$14:$O$14,0)))*IF($E28="$millions",1000000,IF($E28="$000",1000,1))/IF($E29="$millions",1000000,IF($E29="$000",1000,1)) -> 0 | Q29: =Q28*IF($F28="nominal",LOOKUP($F29,Nominal_to_Real,'Input|Rate of change'!R$27:R$32),INDEX('Input|Rate of change'!$C$14:$O$22,MATCH('Calc|Opex forecast'!$F28,'Input|Rate of change'!$C$14:$C$22,0),MATCH('Calc|Opex forecast'!$F29,'Input|Rate of change'!$C$14:$O$14,0)))*IF($E28="$millions",1000000,IF($E28="$000",1000,1))/IF($E29="$millions",1000000,IF($E29="$000",1000,1)) -> 0 | R29: =R28*IF($F28="nominal",LOOKUP($F29,Nominal_to_Real,'Input|Rate of change'!S$27:S$32),INDEX('Input|Rate of change'!$C$14:$O$22,MATCH('Calc|Opex forecast'!$F28,'Input|Rate of change'!$C$14:$C$22,0),MATCH('Calc|Opex forecast'!$F29,'Input|Rate of change'!$C$14:$O$14,0)))*IF($E28="$millions",1000000,IF($E28="$000",1000,1))/IF($E29="$millions",1000000,IF($E29="$000",1000,1)) -> 0 | S29: =S28*IF($F28="nominal",LOOKUP($F29,Nominal_to_Real,'Input|Rate of change'!T$27:T$32),INDEX('Input|Rate of change'!$C$14:$O$22,MATCH('Calc|Opex forecast'!$F28,'Input|Rate of change'!$C$14:$C$22,0),MATCH('Calc|Opex forecast'!$F29,'Input|Rate of change'!$C$14:$O$14,0)))*IF($E28="$millions",1000000,IF($E28="$000",1000,1))/IF($E29="$millions",1000000,IF($E29="$000",1000,1)) -> 0
C31: Add estimated change in opex between the base year and the final year | D31: Calculated | E31: =$E$8 -> $millions | F31: =$F$8 -> 2021-06-01 | J31: =IF(YEAR(J$4)=PPLastYear,-SUM($J15:$S15)+SUM($J17:$S17),0) -> 0 | K31: 0 | L31: 0 | M31: 0 | N31: =IF(YEAR(N$4)=PPLastYear,-SUM($J15:$S15)+SUM($J17:$S17),0) -> 0.01913261505 | O31: 0 | P31: 0 | Q31: 0 | R31: 0 | S31: 0
C33: Estimated final year opex | D33: Calculated | E33: =$E$8 -> $millions | F33: =$F$8 -> 2021-06-01 | J33: =IF(YEAR(J$4)=PPLastYear,SUM($J26:$S26,$J29:$S29,$J31:$S31),0) -> 0 | K33: 0 | L33: 0 | M33: 0 | N33: =IF(YEAR(N$4)=PPLastYear,SUM($J26:$S26,$J29:$S29,$J31:$S31),0) -> 32.19935632 | O33: 0 | P33: 0 | Q33: 0 | R33: 0 | S33: 0
C35: Remove estimated final year opex for categories forecast specifically | D35: Calculated | E35: =$E$8 -> $millions | F35: =$F$8 -> 2021-06-01 | J35: =IF(YEAR(J$4)=PPLastYear,SUM($J20:$S20)-SUM($J22:$S22)+SUM($J24:$S24),0) -> 0 | K35: 0 | L35: 0 | M35: 0 | N35: =IF(YEAR(N$4)=PPLastYear,SUM($J20:$S20)-SUM($J22:$S22)+SUM($J24:$S24),0) -> -10.73674363 | O35: 0 | P35: 0 | Q35: 0 | R35: 0 | S35: 0
C37: ='Input|Reported opex'!$C$59 -> 0 | D37: Inputs|Reported opex | E37: ='Input|Reported opex'!E59 -> $millions | F37: ='Input|Reported opex'!F59 -> 2020-06-01 | J37: =IF(YEAR(J$4)=PPLastYear,'Input|Reported opex'!J59,0) -> 0 | K37: =IF(YEAR(K$4)=PPLastYear,'Input|Reported opex'!K59,0) -> 0 | L37: =IF(YEAR(L$4)=PPLastYear,'Input|Reported opex'!L59,0) -> 0 | M37: =IF(YEAR(M$4)=PPLastYear,'Input|Reported opex'!M59,0) -> 0 | N37: =IF(YEAR(N$4)=PPLastYear,'Input|Reported opex'!N59,0) -> 0 | O37: =IF(YEAR(O$4)=PPLastYear,'Input|Reported opex'!O59,0) -> 0 | P37: =IF(YEAR(P$4)=PPLastYear,'Input|Reported opex'!P59,0) -> 0 | Q37: =IF(YEAR(Q$4)=PPLastYear,'Input|Reported opex'!Q59,0) -> 0 | R37: =IF(YEAR(R$4)=PPLastYear,'Input|Reported opex'!R59,0) -> 0 | S37: =IF(YEAR(S$4)=PPLastYear,'Input|Reported opex'!S59,0) -> 0
C38: =C37 -> 0 | D38: Calculated | E38: =$E$8 -> $millions | F38: =$F$8 -> 2021-06-01 | J38: =J37*IF($F37="nominal",LOOKUP($F38,Nominal_to_Real,'Input|Rate of change'!K$27:K$32),INDEX('Input|Rate of change'!$C$14:$O$22,MATCH('Calc|Opex forecast'!$F37,'Input|Rate of change'!$C$14:$C$22,0),MATCH('Calc|Opex forecast'!$F38,'Input|Rate of change'!$C$14:$O$14,0)))*IF($E37="$millions",1000000,IF($E37="$000",1000,1))/IF($E38="$millions",1000000,IF($E38="$000",1000,1)) -> 0 | K38: =K37*IF($F37="nominal",LOOKUP($F38,Nominal_to_Real,'Input|Rate of change'!L$27:L$32),INDEX('Input|Rate of change'!$C$14:$O$22,MATCH('Calc|Opex forecast'!$F37,'Input|Rate of change'!$C$14:$C$22,0),MATCH('Calc|Opex forecast'!$F38,'Input|Rate of change'!$C$14:$O$14,0)))*IF($E37="$millions",1000000,IF($E37="$000",1000,1))/IF($E38="$millions",1000000,IF($E38="$000",1000,1)) -> 0 | L38: =L37*IF($F37="nominal",LOOKUP($F38,Nominal_to_Real,'Input|Rate of change'!M$27:M$32),INDEX('Input|Rate of change'!$C$14:$O$22,MATCH('Calc|Opex forecast'!$F37,'Input|Rate of change'!$C$14:$C$22,0),MATCH('Calc|Opex forecast'!$F38,'Input|Rate of change'!$C$14:$O$14,0)))*IF($E37="$millions",1000000,IF($E37="$000",1000,1))/IF($E38="$millions",1000000,IF($E38="$000",1000,1)) -> 0 | M38: =M37*IF($F37="nominal",LOOKUP($F38,Nominal_to_Real,'Input|Rate of change'!N$27:N$32),INDEX('Input|Rate of change'!$C$14:$O$22,MATCH('Calc|Opex forecast'!$F37,'Input|Rate of change'!$C$14:$C$22,0),MATCH('Calc|Opex forecast'!$F38,'Input|Rate of change'!$C$14:$O$14,0)))*IF($E37="$millions",1000000,IF($E37="$000",1000,1))/IF($E38="$millions",1000000,IF($E38="$000",1000,1)) -> 0 | N38: =N37*IF($F37="nominal",LOOKUP($F38,Nominal_to_Real,'Input|Rate of change'!O$27:O$32),INDEX('Input|Rate of change'!$C$14:$O$22,MATCH('Calc|Opex forecast'!$F37,'Input|Rate of change'!$C$14:$C$22,0),MATCH('Calc|Opex forecast'!$F38,'Input|Rate of change'!$C$14:$O$14,0)))*IF($E37="$millions",1000000,IF($E37="$000",1000,1))/IF($E38="$millions",1000000,IF($E38="$000",1000,1)) -> 0 | O38: =O37*IF($F37="nominal",LOOKUP($F38,Nominal_to_Real,'Input|Rate of change'!P$27:P$32),INDEX('Input|Rate of change'!$C$14:$O$22,MATCH('Calc|Opex forecast'!$F37,'Input|Rate of change'!$C$14:$C$22,0),MATCH('Calc|Opex forecast'!$F38,'Input|Rate of change'!$C$14:$O$14,0)))*IF($E37="$millions",1000000,IF($E37="$000",1000,1))/IF($E38="$millions",1000000,IF($E38="$000",1000,1)) -> 0 | P38: =P37*IF($F37="nominal",LOOKUP($F38,Nominal_to_Real,'Input|Rate of change'!Q$27:Q$32),INDEX('Input|Rate of change'!$C$14:$O$22,MATCH('Calc|Opex forecast'!$F37,'Input|Rate of change'!$C$14:$C$22,0),MATCH('Calc|Opex forecast'!$F38,'Input|Rate of change'!$C$14:$O$14,0)))*IF($E37="$millions",1000000,IF($E37="$000",1000,1))/IF($E38="$millions",1000000,IF($E38="$000",1000,1)) -> 0 | Q38: =Q37*IF($F37="nominal",LOOKUP($F38,Nominal_to_Real,'Input|Rate of change'!R$27:R$32),INDEX('Input|Rate of change'!$C$14:$O$22,MATCH('Calc|Opex forecast'!$F37,'Input|Rate of change'!$C$14:$C$22,0),MATCH('Calc|Opex forecast'!$F38,'Input|Rate of change'!$C$14:$O$14,0)))*IF($E37="$millions",1000000,IF($E37="$000",1000,1))/IF($E38="$millions",1000000,IF($E38="$000",1000,1)) -> 0 | R38: =R37*IF($F37="nominal",LOOKUP($F38,Nominal_to_Real,'Input|Rate of change'!S$27:S$32),INDEX('Input|Rate of change'!$C$14:$O$22,MATCH('Calc|Opex forecast'!$F37,'Input|Rate of change'!$C$14:$C$22,0),MATCH('Calc|Opex forecast'!$F38,'Input|Rate of change'!$C$14:$O$14,0)))*IF($E37="$millions",1000000,IF($E37="$000",1000,1))/IF($E38="$millions",1000000,IF($E38="$000",1000,1)) -> 0 | S38: =S37*IF($F37="nominal",LOOKUP($F38,Nominal_to_Real,'Input|Rate of change'!T$27:T$32),INDEX('Input|Rate of change'!$C$14:$O$22,MATCH('Calc|Opex forecast'!$F37,'Input|Rate of change'!$C$14:$C$22,0),MATCH('Calc|Opex forecast'!$F38,'Input|Rate of change'!$C$14:$O$14,0)))*IF($E37="$millions",1000000,IF($E37="$000",1000,1))/IF($E38="$millions",1000000,IF($E38="$000",1000,1)) -> 0
C40: ='Input|Reported opex'!$C$60 -> 0 | D40: Inputs|Reported opex | E40: ='Input|Reported opex'!$E$60 -> $millions | F40: ='Input|Reported opex'!$F$60 -> 2020-06-01 | J40: =IF(YEAR(J$4)=PPLastYear,'Input|Reported opex'!J60,0) -> 0 | K40: =IF(YEAR(K$4)=PPLastYear,'Input|Reported opex'!K60,0) -> 0 | L40: =IF(YEAR(L$4)=PPLastYear,'Input|Reported opex'!L60,0) -> 0 | M40: =IF(YEAR(M$4)=PPLastYear,'Input|Reported opex'!M60,0) -> 0 | N40: =IF(YEAR(N$4)=PPLastYear,'Input|Reported opex'!N60,0) -> 0 | O40: =IF(YEAR(O$4)=PPLastYear,'Input|Reported opex'!O60,0) -> 0 | P40: =IF(YEAR(P$4)=PPLastYear,'Input|Reported opex'!P60,0) -> 0 | Q40: =IF(YEAR(Q$4)=PPLastYear,'Input|Reported opex'!Q60,0) -> 0 | R40: =IF(YEAR(R$4)=PPLastYear,'Input|Reported opex'!R60,0) -> 0 | S40: =IF(YEAR(S$4)=PPLastYear,'Input|Reported opex'!S60,0) -> 0
C41: =C40 -> 0 | D41: Calculated | E41: =$E$8 -> $millions | F41: =$F$8 -> 2021-06-01 | J41: =J40*IF($F40="nominal",LOOKUP($F41,Nominal_to_Real,'Input|Rate of change'!K$27:K$32),INDEX('Input|Rate of change'!$C$14:$O$22,MATCH('Calc|Opex forecast'!$F40,'Input|Rate of change'!$C$14:$C$22,0),MATCH('Calc|Opex forecast'!$F41,'Input|Rate of change'!$C$14:$O$14,0)))*IF($E40="$millions",1000000,IF($E40="$000",1000,1))/IF($E41="$millions",1000000,IF($E41="$000",1000,1)) -> 0 | K41: =K40*IF($F40="nominal",LOOKUP($F41,Nominal_to_Real,'Input|Rate of change'!L$27:L$32),INDEX('Input|Rate of change'!$C$14:$O$22,MATCH('Calc|Opex forecast'!$F40,'Input|Rate of change'!$C$14:$C$22,0),MATCH('Calc|Opex forecast'!$F41,'Input|Rate of change'!$C$14:$O$14,0)))*IF($E40="$millions",1000000,IF($E40="$000",1000,1))/IF($E41="$millions",1000000,IF($E41="$000",1000,1)) -> 0 | L41: =L40*IF($F40="nominal",LOOKUP($F41,Nominal_to_Real,'Input|Rate of change'!M$27:M$32),INDEX('Input|Rate of change'!$C$14:$O$22,MATCH('Calc|Opex forecast'!$F40,'Input|Rate of change'!$C$14:$C$22,0),MATCH('Calc|Opex forecast'!$F41,'Input|Rate of change'!$C$14:$O$14,0)))*IF($E40="$millions",1000000,IF($E40="$000",1000,1))/IF($E41="$millions",1000000,IF($E41="$000",1000,1)) -> 0 | M41: =M40*IF($F40="nominal",LOOKUP($F41,Nominal_to_Real,'Input|Rate of change'!N$27:N$32),INDEX('Input|Rate of change'!$C$14:$O$22,MATCH('Calc|Opex forecast'!$F40,'Input|Rate of change'!$C$14:$C$22,0),MATCH('Calc|Opex forecast'!$F41,'Input|Rate of change'!$C$14:$O$14,0)))*IF($E40="$millions",1000000,IF($E40="$000",1000,1))/IF($E41="$millions",1000000,IF($E41="$000",1000,1)) -> 0 | N41: =N40*IF($F40="nominal",LOOKUP($F41,Nominal_to_Real,'Input|Rate of change'!O$27:O$32),INDEX('Input|Rate of change'!$C$14:$O$22,MATCH('Calc|Opex forecast'!$F40,'Input|Rate of change'!$C$14:$C$22,0),MATCH('Calc|Opex forecast'!$F41,'Input|Rate of change'!$C$14:$O$14,0)))*IF($E40="$millions",1000000,IF($E40="$000",1000,1))/IF($E41="$millions",1000000,IF($E41="$000",1000,1)) -> 0 | O41: =O40*IF($F40="nominal",LOOKUP($F41,Nominal_to_Real,'Input|Rate of change'!P$27:P$32),INDEX('Input|Rate of change'!$C$14:$O$22,MATCH('Calc|Opex forecast'!$F40,'Input|Rate of change'!$C$14:$C$22,0),MATCH('Calc|Opex forecast'!$F41,'Input|Rate of change'!$C$14:$O$14,0)))*IF($E40="$millions",1000000,IF($E40="$000",1000,1))/IF($E41="$millions",1000000,IF($E41="$000",1000,1)) -> 0 | P41: =P40*IF($F40="nominal",LOOKUP($F41,Nominal_to_Real,'Input|Rate of change'!Q$27:Q$32),INDEX('Input|Rate of change'!$C$14:$O$22,MATCH('Calc|Opex forecast'!$F40,'Input|Rate of change'!$C$14:$C$22,0),MATCH('Calc|Opex forecast'!$F41,'Input|Rate of change'!$C$14:$O$14,0)))*IF($E40="$millions",1000000,IF($E40="$000",1000,1))/IF($E41="$millions",1000000,IF($E41="$000",1000,1)) -> 0 | Q41: =Q40*IF($F40="nominal",LOOKUP($F41,Nominal_to_Real,'Input|Rate of change'!R$27:R$32),INDEX('Input|Rate of change'!$C$14:$O$22,MATCH('Calc|Opex forecast'!$F40,'Input|Rate of change'!$C$14:$C$22,0),MATCH('Calc|Opex forecast'!$F41,'Input|Rate of change'!$C$14:$O$14,0)))*IF($E40="$millions",1000000,IF($E40="$000",1000,1))/IF($E41="$millions",1000000,IF($E41="$000",1000,1)) -> 0 | R41: =R40*IF($F40="nominal",LOOKUP($F41,Nominal_to_Real,'Input|Rate of change'!S$27:S$32),INDEX('Input|Rate of change'!$C$14:$O$22,MATCH('Calc|Opex forecast'!$F40,'Input|Rate of change'!$C$14:$C$22,0),MATCH('Calc|Opex forecast'!$F41,'Input|Rate of change'!$C$14:$O$14,0)))*IF($E40="$millions",1000000,IF($E40="$000",1000,1))/IF($E41="$millions",1000000,IF($E41="$000",1000,1)) -> 0 | S41: =S40*IF($F40="nominal",LOOKUP($F41,Nominal_to_Real,'Input|Rate of change'!T$27:T$32),INDEX('Input|Rate of change'!$C$14:$O$22,MATCH('Calc|Opex forecast'!$F40,'Input|Rate of change'!$C$14:$C$22,0),MATCH('Calc|Opex forecast'!$F41,'Input|Rate of change'!$C$14:$O$14,0)))*IF($E40="$millions",1000000,IF($E40="$000",1000,1))/IF($E41="$millions",1000000,IF($E41="$000",1000,1)) -> 0
C43: ='Input|Reported opex'!$C$61 -> 0 | D43: Inputs|Reported opex | E43: ='Input|Reported opex'!$E$61 -> $millions | F43: ='Input|Reported opex'!$F$61 -> 2020-06-01 | J43: =IF(YEAR(J$4)=PPLastYear,'Input|Reported opex'!J61,0) -> 0 | K43: =IF(YEAR(K$4)=PPLastYear,'Input|Reported opex'!K61,0) -> 0 | L43: =IF(YEAR(L$4)=PPLastYear,'Input|Reported opex'!L61,0) -> 0 | M43: =IF(YEAR(M$4)=PPLastYear,'Input|Reported opex'!M61,0) -> 0 | N43: =IF(YEAR(N$4)=PPLastYear,'Input|Reported opex'!N61,0) -> 0 | O43: =IF(YEAR(O$4)=PPLastYear,'Input|Reported opex'!O61,0) -> 0 | P43: =IF(YEAR(P$4)=PPLastYear,'Input|Reported opex'!P61,0) -> 0 | Q43: =IF(YEAR(Q$4)=PPLastYear,'Input|Reported opex'!Q61,0) -> 0 | R43: =IF(YEAR(R$4)=PPLastYear,'Input|Reported opex'!R61,0) -> 0 | S43: =IF(YEAR(S$4)=PPLastYear,'Input|Reported opex'!S61,0) -> 0
C44: =C43 -> 0 | D44: Calculated | E44: =$E$8 -> $millions | F44: =$F$8 -> 2021-06-01 | J44: =J43*IF($F43="nominal",LOOKUP($F44,Nominal_to_Real,'Input|Rate of change'!K$27:K$32),INDEX('Input|Rate of change'!$C$14:$O$22,MATCH('Calc|Opex forecast'!$F43,'Input|Rate of change'!$C$14:$C$22,0),MATCH('Calc|Opex forecast'!$F44,'Input|Rate of change'!$C$14:$O$14,0)))*IF($E43="$millions",1000000,IF($E43="$000",1000,1))/IF($E44="$millions",1000000,IF($E44="$000",1000,1)) -> 0 | K44: =K43*IF($F43="nominal",LOOKUP($F44,Nominal_to_Real,'Input|Rate of change'!L$27:L$32),INDEX('Input|Rate of change'!$C$14:$O$22,MATCH('Calc|Opex forecast'!$F43,'Input|Rate of change'!$C$14:$C$22,0),MATCH('Calc|Opex forecast'!$F44,'Input|Rate of change'!$C$14:$O$14,0)))*IF($E43="$millions",1000000,IF($E43="$000",1000,1))/IF($E44="$millions",1000000,IF($E44="$000",1000,1)) -> 0 | L44: =L43*IF($F43="nominal",LOOKUP($F44,Nominal_to_Real,'Input|Rate of change'!M$27:M$32),INDEX('Input|Rate of change'!$C$14:$O$22,MATCH('Calc|Opex forecast'!$F43,'Input|Rate of change'!$C$14:$C$22,0),MATCH('Calc|Opex forecast'!$F44,'Input|Rate of change'!$C$14:$O$14,0)))*IF($E43="$millions",1000000,IF($E43="$000",1000,1))/IF($E44="$millions",1000000,IF($E44="$000",1000,1)) -> 0 | M44: =M43*IF($F43="nominal",LOOKUP($F44,Nominal_to_Real,'Input|Rate of change'!N$27:N$32),INDEX('Input|Rate of change'!$C$14:$O$22,MATCH('Calc|Opex forecast'!$F43,'Input|Rate of change'!$C$14:$C$22,0),MATCH('Calc|Opex forecast'!$F44,'Input|Rate of change'!$C$14:$O$14,0)))*IF($E43="$millions",1000000,IF($E43="$000",1000,1))/IF($E44="$millions",1000000,IF($E44="$000",1000,1)) -> 0 | N44: =N43*IF($F43="nominal",LOOKUP($F44,Nominal_to_Real,'Input|Rate of change'!O$27:O$32),INDEX('Input|Rate of change'!$C$14:$O$22,MATCH('Calc|Opex forecast'!$F43,'Input|Rate of change'!$C$14:$C$22,0),MATCH('Calc|Opex forecast'!$F44,'Input|Rate of change'!$C$14:$O$14,0)))*IF($E43="$millions",1000000,IF($E43="$000",1000,1))/IF($E44="$millions",1000000,IF($E44="$000",1000,1)) -> 0 | O44: =O43*IF($F43="nominal",LOOKUP($F44,Nominal_to_Real,'Input|Rate of change'!P$27:P$32),INDEX('Input|Rate of change'!$C$14:$O$22,MATCH('Calc|Opex forecast'!$F43,'Input|Rate of change'!$C$14:$C$22,0),MATCH('Calc|Opex forecast'!$F44,'Input|Rate of change'!$C$14:$O$14,0)))*IF($E43="$millions",1000000,IF($E43="$000",1000,1))/IF($E44="$millions",1000000,IF($E44="$000",1000,1)) -> 0 | P44: =P43*IF($F43="nominal",LOOKUP($F44,Nominal_to_Real,'Input|Rate of change'!Q$27:Q$32),INDEX('Input|Rate of change'!$C$14:$O$22,MATCH('Calc|Opex forecast'!$F43,'Input|Rate of change'!$C$14:$C$22,0),MATCH('Calc|Opex forecast'!$F44,'Input|Rate of change'!$C$14:$O$14,0)))*IF($E43="$millions",1000000,IF($E43="$000",1000,1))/IF($E44="$millions",1000000,IF($E44="$000",1000,1)) -> 0 | Q44: =Q43*IF($F43="nominal",LOOKUP($F44,Nominal_to_Real,'Input|Rate of change'!R$27:R$32),INDEX('Input|Rate of change'!$C$14:$O$22,MATCH('Calc|Opex forecast'!$F43,'Input|Rate of change'!$C$14:$C$22,0),MATCH('Calc|Opex forecast'!$F44,'Input|Rate of change'!$C$14:$O$14,0)))*IF($E43="$millions",1000000,IF($E43="$000",1000,1))/IF($E44="$millions",1000000,IF($E44="$000",1000,1)) -> 0 | R44: =R43*IF($F43="nominal",LOOKUP($F44,Nominal_to_Real,'Input|Rate of change'!S$27:S$32),INDEX('Input|Rate of change'!$C$14:$O$22,MATCH('Calc|Opex forecast'!$F43,'Input|Rate of change'!$C$14:$C$22,0),MATCH('Calc|Opex forecast'!$F44,'Input|Rate of change'!$C$14:$O$14,0)))*IF($E43="$millions",1000000,IF($E43="$000",1000,1))/IF($E44="$millions",1000000,IF($E44="$000",1000,1)) -> 0 | S44: =S43*IF($F43="nominal",LOOKUP($F44,Nominal_to_Real,'Input|Rate of change'!T$27:T$32),INDEX('Input|Rate of change'!$C$14:$O$22,MATCH('Calc|Opex forecast'!$F43,'Input|Rate of change'!$C$14:$C$22,0),MATCH('Calc|Opex forecast'!$F44,'Input|Rate of change'!$C$14:$O$14,0)))*IF($E43="$millions",1000000,IF($E43="$000",1000,1))/IF($E44="$millions",1000000,IF($E44="$000",1000,1)) -> 0
C46: ='Input|Reported opex'!$C$62 -> 0 | D46: Inputs|Reported opex | E46: ='Input|Reported opex'!$E$62 -> $millions | F46: ='Input|Reported opex'!$F$62 -> 2020-06-01 | J46: =IF(YEAR(J$4)=PPLastYear,'Input|Reported opex'!J62,0) -> 0 | K46: =IF(YEAR(K$4)=PPLastYear,'Input|Reported opex'!K62,0) -> 0 | L46: =IF(YEAR(L$4)=PPLastYear,'Input|Reported opex'!L62,0) -> 0 | M46: =IF(YEAR(M$4)=PPLastYear,'Input|Reported opex'!M62,0) -> 0 | N46: =IF(YEAR(N$4)=PPLastYear,'Input|Reported opex'!N62,0) -> 0 | O46: =IF(YEAR(O$4)=PPLastYear,'Input|Reported opex'!O62,0) -> 0 | P46: =IF(YEAR(P$4)=PPLastYear,'Input|Reported opex'!P62,0) -> 0 | Q46: =IF(YEAR(Q$4)=PPLastYear,'Input|Reported opex'!Q62,0) -> 0 | R46: =IF(YEAR(R$4)=PPLastYear,'Input|Reported opex'!R62,0) -> 0 | S46: =IF(YEAR(S$4)=PPLastYear,'Input|Reported opex'!S62,0) -> 0
C47: =C46 -> 0 | D47: Calculated | E47: =$E$8 -> $millions | F47: =$F$8 -> 2021-06-01 | J47: =J46*IF($F46="nominal",LOOKUP($F47,Nominal_to_Real,'Input|Rate of change'!K$27:K$32),INDEX('Input|Rate of change'!$C$14:$O$22,MATCH('Calc|Opex forecast'!$F46,'Input|Rate of change'!$C$14:$C$22,0),MATCH('Calc|Opex forecast'!$F47,'Input|Rate of change'!$C$14:$O$14,0)))*IF($E46="$millions",1000000,IF($E46="$000",1000,1))/IF($E47="$millions",1000000,IF($E47="$000",1000,1)) -> 0 | K47: =K46*IF($F46="nominal",LOOKUP($F47,Nominal_to_Real,'Input|Rate of change'!L$27:L$32),INDEX('Input|Rate of change'!$C$14:$O$22,MATCH('Calc|Opex forecast'!$F46,'Input|Rate of change'!$C$14:$C$22,0),MATCH('Calc|Opex forecast'!$F47,'Input|Rate of change'!$C$14:$O$14,0)))*IF($E46="$millions",1000000,IF($E46="$000",1000,1))/IF($E47="$millions",1000000,IF($E47="$000",1000,1)) -> 0 | L47: =L46*IF($F46="nominal",LOOKUP($F47,Nominal_to_Real,'Input|Rate of change'!M$27:M$32),INDEX('Input|Rate of change'!$C$14:$O$22,MATCH('Calc|Opex forecast'!$F46,'Input|Rate of change'!$C$14:$C$22,0),MATCH('Calc|Opex forecast'!$F47,'Input|Rate of change'!$C$14:$O$14,0)))*IF($E46="$millions",1000000,IF($E46="$000",1000,1))/IF($E47="$millions",1000000,IF($E47="$000",1000,1)) -> 0 | M47: =M46*IF($F46="nominal",LOOKUP($F47,Nominal_to_Real,'Input|Rate of change'!N$27:N$32),INDEX('Input|Rate of change'!$C$14:$O$22,MATCH('Calc|Opex forecast'!$F46,'Input|Rate of change'!$C$14:$C$22,0),MATCH('Calc|Opex forecast'!$F47,'Input|Rate of change'!$C$14:$O$14,0)))*IF($E46="$millions",1000000,IF($E46="$000",1000,1))/IF($E47="$millions",1000000,IF($E47="$000",1000,1)) -> 0 | N47: =N46*IF($F46="nominal",LOOKUP($F47,Nominal_to_Real,'Input|Rate of change'!O$27:O$32),INDEX('Input|Rate of change'!$C$14:$O$22,MATCH('Calc|Opex forecast'!$F46,'Input|Rate of change'!$C$14:$C$22,0),MATCH('Calc|Opex forecast'!$F47,'Input|Rate of change'!$C$14:$O$14,0)))*IF($E46="$millions",1000000,IF($E46="$000",1000,1))/IF($E47="$millions",1000000,IF($E47="$000",1000,1)) -> 0 | O47: =O46*IF($F46="nominal",LOOKUP($F47,Nominal_to_Real,'Input|Rate of change'!P$27:P$32),INDEX('Input|Rate of change'!$C$14:$O$22,MATCH('Calc|Opex forecast'!$F46,'Input|Rate of change'!$C$14:$C$22,0),MATCH('Calc|Opex forecast'!$F47,'Input|Rate of change'!$C$14:$O$14,0)))*IF($E46="$millions",1000000,IF($E46="$000",1000,1))/IF($E47="$millions",1000000,IF($E47="$000",1000,1)) -> 0 | P47: =P46*IF($F46="nominal",LOOKUP($F47,Nominal_to_Real,'Input|Rate of change'!Q$27:Q$32),INDEX('Input|Rate of change'!$C$14:$O$22,MATCH('Calc|Opex forecast'!$F46,'Input|Rate of change'!$C$14:$C$22,0),MATCH('Calc|Opex forecast'!$F47,'Input|Rate of change'!$C$14:$O$14,0)))*IF($E46="$millions",1000000,IF($E46="$000",1000,1))/IF($E47="$millions",1000000,IF($E47="$000",1000,1)) -> 0 | Q47: =Q46*IF($F46="nominal",LOOKUP($F47,Nominal_to_Real,'Input|Rate of change'!R$27:R$32),INDEX('Input|Rate of change'!$C$14:$O$22,MATCH('Calc|Opex forecast'!$F46,'Input|Rate of change'!$C$14:$C$22,0),MATCH('Calc|Opex forecast'!$F47,'Input|Rate of change'!$C$14:$O$14,0)))*IF($E46="$millions",1000000,IF($E46="$000",1000,1))/IF($E47="$millions",1000000,IF($E47="$000",1000,1)) -> 0 | R47: =R46*IF($F46="nominal",LOOKUP($F47,Nominal_to_Real,'Input|Rate of change'!S$27:S$32),INDEX('Input|Rate of change'!$C$14:$O$22,MATCH('Calc|Opex forecast'!$F46,'Input|Rate of change'!$C$14:$C$22,0),MATCH('Calc|Opex forecast'!$F47,'Input|Rate of change'!$C$14:$O$14,0)))*IF($E46="$millions",1000000,IF($E46="$000",1000,1))/IF($E47="$millions",1000000,IF($E47="$000",1000,1)) -> 0 | S47: =S46*IF($F46="nominal",LOOKUP($F47,Nominal_to_Real,'Input|Rate of change'!T$27:T$32),INDEX('Input|Rate of change'!$C$14:$O$22,MATCH('Calc|Opex forecast'!$F46,'Input|Rate of change'!$C$14:$C$22,0),MATCH('Calc|Opex forecast'!$F47,'Input|Rate of change'!$C$14:$O$14,0)))*IF($E46="$millions",1000000,IF($E46="$000",1000,1))/IF($E47="$millions",1000000,IF($E47="$000",1000,1)) -> 0
C49: ='Input|Reported opex'!$C$63 -> 0 | D49: Inputs|Reported opex | E49: ='Input|Reported opex'!$E$63 -> $millions | F49: ='Input|Reported opex'!$F$63 -> 2020-06-01 | J49: =IF(YEAR(J$4)=PPLastYear,'Input|Reported opex'!J63,0) -> 0 | K49: =IF(YEAR(K$4)=PPLastYear,'Input|Reported opex'!K63,0) -> 0 | L49: =IF(YEAR(L$4)=PPLastYear,'Input|Reported opex'!L63,0) -> 0 | M49: =IF(YEAR(M$4)=PPLastYear,'Input|Reported opex'!M63,0) -> 0 | N49: =IF(YEAR(N$4)=PPLastYear,'Input|Reported opex'!N63,0) -> 0 | O49: =IF(YEAR(O$4)=PPLastYear,'Input|Reported opex'!O63,0) -> 0 | P49: =IF(YEAR(P$4)=PPLastYear,'Input|Reported opex'!P63,0) -> 0 | Q49: =IF(YEAR(Q$4)=PPLastYear,'Input|Reported opex'!Q63,0) -> 0 | R49: =IF(YEAR(R$4)=PPLastYear,'Input|Reported opex'!R63,0) -> 0 | S49: =IF(YEAR(S$4)=PPLastYear,'Input|Reported opex'!S63,0) -> 0
C50: =C49 -> 0 | D50: Calculated | E50: =$E$8 -> $millions | F50: =$F$8 -> 2021-06-01 | J50: =J49*IF($F49="nominal",LOOKUP($F50,Nominal_to_Real,'Input|Rate of change'!K$27:K$32),INDEX('Input|Rate of change'!$C$14:$O$22,MATCH('Calc|Opex forecast'!$F49,'Input|Rate of change'!$C$14:$C$22,0),MATCH('Calc|Opex forecast'!$F50,'Input|Rate of change'!$C$14:$O$14,0)))*IF($E49="$millions",1000000,IF($E49="$000",1000,1))/IF($E50="$millions",1000000,IF($E50="$000",1000,1)) -> 0 | K50: =K49*IF($F49="nominal",LOOKUP($F50,Nominal_to_Real,'Input|Rate of change'!L$27:L$32),INDEX('Input|Rate of change'!$C$14:$O$22,MATCH('Calc|Opex forecast'!$F49,'Input|Rate of change'!$C$14:$C$22,0),MATCH('Calc|Opex forecast'!$F50,'Input|Rate of change'!$C$14:$O$14,0)))*IF($E49="$millions",1000000,IF($E49="$000",1000,1))/IF($E50="$millions",1000000,IF($E50="$000",1000,1)) -> 0 | L50: =L49*IF($F49="nominal",LOOKUP($F50,Nominal_to_Real,'Input|Rate of change'!M$27:M$32),INDEX('Input|Rate of change'!$C$14:$O$22,MATCH('Calc|Opex forecast'!$F49,'Input|Rate of change'!$C$14:$C$22,0),MATCH('Calc|Opex forecast'!$F50,'Input|Rate of change'!$C$14:$O$14,0)))*IF($E49="$millions",1000000,IF($E49="$000",1000,1))/IF($E50="$millions",1000000,IF($E50="$000",1000,1)) -> 0 | M50: =M49*IF($F49="nominal",LOOKUP($F50,Nominal_to_Real,'Input|Rate of change'!N$27:N$32),INDEX('Input|Rate of change'!$C$14:$O$22,MATCH('Calc|Opex forecast'!$F49,'Input|Rate of change'!$C$14:$C$22,0),MATCH('Calc|Opex forecast'!$F50,'Input|Rate of change'!$C$14:$O$14,0)))*IF($E49="$millions",1000000,IF($E49="$000",1000,1))/IF($E50="$millions",1000000,IF($E50="$000",1000,1)) -> 0 | N50: =N49*IF($F49="nominal",LOOKUP($F50,Nominal_to_Real,'Input|Rate of change'!O$27:O$32),INDEX('Input|Rate of change'!$C$14:$O$22,MATCH('Calc|Opex forecast'!$F49,'Input|Rate of change'!$C$14:$C$22,0),MATCH('Calc|Opex forecast'!$F50,'Input|Rate of change'!$C$14:$O$14,0)))*IF($E49="$millions",1000000,IF($E49="$000",1000,1))/IF($E50="$millions",1000000,IF($E50="$000",1000,1)) -> 0 | O50: =O49*IF($F49="nominal",LOOKUP($F50,Nominal_to_Real,'Input|Rate of change'!P$27:P$32),INDEX('Input|Rate of change'!$C$14:$O$22,MATCH('Calc|Opex forecast'!$F49,'Input|Rate of change'!$C$14:$C$22,0),MATCH('Calc|Opex forecast'!$F50,'Input|Rate of change'!$C$14:$O$14,0)))*IF($E49="$millions",1000000,IF($E49="$000",1000,1))/IF($E50="$millions",1000000,IF($E50="$000",1000,1)) -> 0 | P50: =P49*IF($F49="nominal",LOOKUP($F50,Nominal_to_Real,'Input|Rate of change'!Q$27:Q$32),INDEX('Input|Rate of change'!$C$14:$O$22,MATCH('Calc|Opex forecast'!$F49,'Input|Rate of change'!$C$14:$C$22,0),MATCH('Calc|Opex forecast'!$F50,'Input|Rate of change'!$C$14:$O$14,0)))*IF($E49="$millions",1000000,IF($E49="$000",1000,1))/IF($E50="$millions",1000000,IF($E50="$000",1000,1)) -> 0 | Q50: =Q49*IF($F49="nominal",LOOKUP($F50,Nominal_to_Real,'Input|Rate of change'!R$27:R$32),INDEX('Input|Rate of change'!$C$14:$O$22,MATCH('Calc|Opex forecast'!$F49,'Input|Rate of change'!$C$14:$C$22,0),MATCH('Calc|Opex forecast'!$F50,'Input|Rate of change'!$C$14:$O$14,0)))*IF($E49="$millions",1000000,IF($E49="$000",1000,1))/IF($E50="$millions",1000000,IF($E50="$000",1000,1)) -> 0 | R50: =R49*IF($F49="nominal",LOOKUP($F50,Nominal_to_Real,'Input|Rate of change'!S$27:S$32),INDEX('Input|Rate of change'!$C$14:$O$22,MATCH('Calc|Opex forecast'!$F49,'Input|Rate of change'!$C$14:$C$22,0),MATCH('Calc|Opex forecast'!$F50,'Input|Rate of change'!$C$14:$O$14,0)))*IF($E49="$millions",1000000,IF($E49="$000",1000,1))/IF($E50="$millions",1000000,IF($E50="$000",1000,1)) -> 0 | S50: =S49*IF($F49="nominal",LOOKUP($F50,Nominal_to_Real,'Input|Rate of change'!T$27:T$32),INDEX('Input|Rate of change'!$C$14:$O$22,MATCH('Calc|Opex forecast'!$F49,'Input|Rate of change'!$C$14:$C$22,0),MATCH('Calc|Opex forecast'!$F50,'Input|Rate of change'!$C$14:$O$14,0)))*IF($E49="$millions",1000000,IF($E49="$000",1000,1))/IF($E50="$millions",1000000,IF($E50="$000",1000,1)) -> 0
C52: Efficiency adjustment | D52: calculated | E52: =$E$8 -> $millions | F52: =$F$8 -> 2021-06-01 | J52: =SUM(J33,J38,J41,J44,J47,J50)*'Input|Reported opex'!J67 -> 0 | K52: =SUM(K33,K38,K41,K44,K47,K50)*'Input|Reported opex'!K67 -> 0 | L52: =SUM(L33,L38,L41,L44,L47,L50)*'Input|Reported opex'!L67 -> 0 | M52: =SUM(M33,M38,M41,M44,M47,M50)*'Input|Reported opex'!M67 -> 0 | N52: =SUM(N33,N38,N41,N44,N47,N50)*'Input|Reported opex'!N67 -> 0 | O52: =SUM(O33,O38,O41,O44,O47,O50)*'Input|Reported opex'!O67 -> 0 | P52: =SUM(P33,P38,P41,P44,P47,P50)*'Input|Reported opex'!P67 -> 0 | Q52: =SUM(Q33,Q38,Q41,Q44,Q47,Q50)*'Input|Reported opex'!Q67 -> 0 | R52: =SUM(R33,R38,R41,R44,R47,R50)*'Input|Reported opex'!R67 -> 0 | S52: =SUM(S33,S38,S41,S44,S47,S50)*'Input|Reported opex'!S67 -> 0
C54: Adjusted final year opex | D54: calculated | E54: =$E$8 -> $millions | F54: =$F$8 -> 2021-06-01 | J54: =SUM(J33,J35,J38,J41,J44,J47,J50,J52) -> 0 | K54: =SUM(K33,K35,K38,K41,K44,K47,K50,K52) -> 0 | L54: 0 | M54: 0 | N54: =SUM(N33,N35,N38,N41,N44,N47,N50,N52) -> 21.46261269 | O54: 0 | P54: 0 | Q54: 0 | R54: 0 | S54: 0
N55: =N54*5 -> 107.3130635
B56: Calc | Rate of change
C58: Rate of change | D58: Source | E58: Unit | F58: Basis | J58: =IF(YEAR(J$4)>='Input|General'!$G$13,IF(YEAR(J$4)<='Input|General'!$G$14,J$4,""),"") ->  | K58: =IF(YEAR(K$4)>='Input|General'!$G$13,IF(YEAR(K$4)<='Input|General'!$G$14,K$4,""),"") ->  | L58: =IF(YEAR(L$4)>='Input|General'!$G$13,IF(YEAR(L$4)<='Input|General'!$G$14,L$4,""),"") ->  | M58: =IF(YEAR(M$4)>='Input|General'!$G$13,IF(YEAR(M$4)<='Input|General'!$G$14,M$4,""),"") ->  | N58: =IF(YEAR(N$4)>='Input|General'!$G$13,IF(YEAR(N$4)<='Input|General'!$G$14,N$4,""),"") ->  | O58: =IF(YEAR(O$4)>='Input|General'!$G$13,IF(YEAR(O$4)<='Input|General'!$G$14,O$4,""),"") -> 2022-06-01 | P58: =IF(YEAR(P$4)>='Input|General'!$G$13,IF(YEAR(P$4)<='Input|General'!$G$14,P$4,""),"") -> 2023-06-01 | Q58: =IF(YEAR(Q$4)>='Input|General'!$G$13,IF(YEAR(Q$4)<='Input|General'!$G$14,Q$4,""),"") -> 2024-06-01 | R58: =IF(YEAR(R$4)>='Input|General'!$G$13,IF(YEAR(R$4)<='Input|General'!$G$14,R$4,""),"") -> 2025-06-01 | S58: =IF(YEAR(S$4)>='Input|General'!$G$13,IF(YEAR(S$4)<='Input|General'!$G$14,S$4,""),"") -> 2026-06-01
C61: Forecast output change | D61: Calculated | E61: Per cent | F61: n/a | J61: =IF(J58=J4,AVERAGE('Input|Rate of change'!K97:K100),0) -> 0 | K61: =IF(K58=K4,AVERAGE('Input|Rate of change'!L97:L100),0) -> 0 | L61: =IF(L58=L4,AVERAGE('Input|Rate of change'!M97:M100),0) -> 0 | M61: =IF(M58=M4,AVERAGE('Input|Rate of change'!N97:N100),0) -> 0 | O61: =IF(O58=O4,AVERAGE('Input|Rate of change'!P97:P100),0) -> 0.007924599625 | P61: =IF(P58=P4,AVERAGE('Input|Rate of change'!Q97:Q100),0) -> 0.005542032819 | Q61: =IF(Q58=Q4,AVERAGE('Input|Rate of change'!R97:R100),0) -> 0.005217409407 | R61: =IF(R58=R4,AVERAGE('Input|Rate of change'!S97:S100),0) -> 0.005035199405 | S61: =IF(S58=S4,AVERAGE('Input|Rate of change'!T97:T100),0) -> 0.004971285704
C63: Forecast price change | D63: Calculated | E63: Per cent | F63: n/a | J63: =SUMPRODUCT('Input|Rate of change'!K38:K45,'Input|Rate of change'!K51:K58) -> 0 | K63: =SUMPRODUCT('Input|Rate of change'!L38:L45,'Input|Rate of change'!L51:L58) -> 0 | L63: =SUMPRODUCT('Input|Rate of change'!M38:M45,'Input|Rate of change'!M51:M58) -> 0 | M63: =SUMPRODUCT('Input|Rate of change'!N38:N45,'Input|Rate of change'!N51:N58) -> 0 | O63: =SUMPRODUCT('Input|Rate of change'!P38:P45,'Input|Rate of change'!P51:P58) -> 0.004270536796 | P63: =SUMPRODUCT('Input|Rate of change'!Q38:Q45,'Input|Rate of change'!Q51:Q58) -> 0.004185116305 | Q63: =SUMPRODUCT('Input|Rate of change'!R38:R45,'Input|Rate of change'!R51:R58) -> 0.00546794142 | R63: =SUMPRODUCT('Input|Rate of change'!S38:S45,'Input|Rate of change'!S51:S58) -> 0.005820079196 | S63: =SUMPRODUCT('Input|Rate of change'!T38:T45,'Input|Rate of change'!T51:T58) -> 0.005048488678
C65: Forecast productivity change | D65: Calculated | E65: Per cent | F65: n/a | J65: ='Input|Rate of change'!K106 -> 0 | K65: ='Input|Rate of change'!L106 -> 0 | L65: ='Input|Rate of change'!M106 -> 0 | M65: ='Input|Rate of change'!N106 -> 0 | O65: ='Input|Rate of change'!P106 -> 0.005 | P65: ='Input|Rate of change'!Q106 -> 0.005 | Q65: ='Input|Rate of change'!R106 -> 0.005 | R65: ='Input|Rate of change'!S106 -> 0.005 | S65: ='Input|Rate of change'!T106 -> 0.005
C67: Forecast rate of change, year-on-year | D67: Calculated | E67: Per cent | F67: n/a | J67: =(1+J61)*(1+J63)*(1-J65)-1 -> 0 | K67: =(1+K61)*(1+K63)*(1-K65)-1 -> 0 | L67: 0 | M67: 0 | N67: 0 | O67: 0.007167833821 | P67: 0.00470159146 | Q67: 0.005660309919 | R67: 0.005830160941 | S67: 0.004994647502
C68: Forecast rate of change, cumulative | D68: Calculated | E68: Per cent | F68: n/a | J68: =IF(J$58=J$4,PRODUCT(1+$J67:J67)-1,"") ->  | K68: =IF(K$58=K$4,PRODUCT(1+$J67:K67)-1,"") ->  | L68: =IF(L$58=L$4,PRODUCT(1+$J67:L67)-1,"") ->  | M68: =IF(M$58=M$4,PRODUCT(1+$J67:M67)-1,"") ->  | N68: =IF(N$58=N$4,PRODUCT(1+$J67:N67)-1,"") ->  | O68: =IF(O$58=O$4,PRODUCT(1+$J67:O67)-1,"") -> 0.007167833821 | P68: =IF(P$58=P$4,PRODUCT(1+$J67:P67)-1,"") -> 0.01190312551 | Q68: =IF(Q$58=Q$4,PRODUCT(1+$J67:Q67)-1,"") -> 0.01763081081 | R68: =IF(R$58=R$4,PRODUCT(1+$J67:R67)-1,"") -> 0.02356376221 | S68: =IF(S$58=S$4,PRODUCT(1+$J67:S67)-1,"") -> 0.0286761024
B70: Calc | Step changes
C72: Step changes | D72: Source | E72: Unit | F72: Basis | J72: =IF(YEAR(J$4)>='Input|General'!$G$13,IF(YEAR(J$4)<='Input|General'!$G$14,J$4,""),"") ->  | K72: =IF(YEAR(K$4)>='Input|General'!$G$13,IF(YEAR(K$4)<='Input|General'!$G$14,K$4,""),"") ->  | L72: =IF(YEAR(L$4)>='Input|General'!$G$13,IF(YEAR(L$4)<='Input|General'!$G$14,L$4,""),"") ->  | M72: =IF(YEAR(M$4)>='Input|General'!$G$13,IF(YEAR(M$4)<='Input|General'!$G$14,M$4,""),"") ->  | N72: =IF(YEAR(N$4)>='Input|General'!$G$13,IF(YEAR(N$4)<='Input|General'!$G$14,N$4,""),"") ->  | O72: =IF(YEAR(O$4)>='Input|General'!$G$13,IF(YEAR(O$4)<='Input|General'!$G$14,O$4,""),"") -> 2022-06-01 | P72: =IF(YEAR(P$4)>='Input|General'!$G$13,IF(YEAR(P$4)<='Input|General'!$G$14,P$4,""),"") -> 2023-06-01 | Q72: =IF(YEAR(Q$4)>='Input|General'!$G$13,IF(YEAR(Q$4)<='Input|General'!$G$14,Q$4,""),"") -> 2024-06-01 | R72: =IF(YEAR(R$4)>='Input|General'!$G$13,IF(YEAR(R$4)<='Input|General'!$G$14,R$4,""),"") -> 2025-06-01 | S72: =IF(YEAR(S$4)>='Input|General'!$G$13,IF(YEAR(S$4)<='Input|General'!$G$14,S$4,""),"") -> 2026-06-01
C74: ='Input|Step changes'!C12 -> Expensing of pigging | D74: Calculated | E74: =$E$8 -> $millions | F74: =$F$8 -> 2021-06-01 | J74: ='Input|Step changes'!J12*IF('Input|Step changes'!$F12="nominal",LOOKUP($F74,Nominal_to_Real,'Input|Rate of change'!N$27:N$32),INDEX('Input|Rate of change'!$C$14:$O$22,MATCH('Input|Step changes'!$F12,'Input|Rate of change'!$C$14:$C$22,0),MATCH('Calc|Opex forecast'!$F74,'Input|Rate of change'!$C$14:$O$14,0)))*IF('Input|Step changes'!$E12="$millions",1000000,IF('Input|Step changes'!$E12="$000",1000,1))/IF($E74="$millions",1000000,IF($E74="$000",1000,1)) -> 0 | K74: ='Input|Step changes'!K12*IF('Input|Step changes'!$F12="nominal",LOOKUP($F74,Nominal_to_Real,'Input|Rate of change'!O$27:O$32),INDEX('Input|Rate of change'!$C$14:$O$22,MATCH('Input|Step changes'!$F12,'Input|Rate of change'!$C$14:$C$22,0),MATCH('Calc|Opex forecast'!$F74,'Input|Rate of change'!$C$14:$O$14,0)))*IF('Input|Step changes'!$E12="$millions",1000000,IF('Input|Step changes'!$E12="$000",1000,1))/IF($E74="$millions",1000000,IF($E74="$000",1000,1)) -> 0 | L74: ='Input|Step changes'!L12*IF('Input|Step changes'!$F12="nominal",LOOKUP($F74,Nominal_to_Real,'Input|Rate of change'!P$27:P$32),INDEX('Input|Rate of change'!$C$14:$O$22,MATCH('Input|Step changes'!$F12,'Input|Rate of change'!$C$14:$C$22,0),MATCH('Calc|Opex forecast'!$F74,'Input|Rate of change'!$C$14:$O$14,0)))*IF('Input|Step changes'!$E12="$millions",1000000,IF('Input|Step changes'!$E12="$000",1000,1))/IF($E74="$millions",1000000,IF($E74="$000",1000,1)) -> 0 | M74: ='Input|Step changes'!M12*IF('Input|Step changes'!$F12="nominal",LOOKUP($F74,Nominal_to_Real,'Input|Rate of change'!Q$27:Q$32),INDEX('Input|Rate of change'!$C$14:$O$22,MATCH('Input|Step changes'!$F12,'Input|Rate of change'!$C$14:$C$22,0),MATCH('Calc|Opex forecast'!$F74,'Input|Rate of change'!$C$14:$O$14,0)))*IF('Input|Step changes'!$E12="$millions",1000000,IF('Input|Step changes'!$E12="$000",1000,1))/IF($E74="$millions",1000000,IF($E74="$000",1000,1)) -> 0 | N74: ='Input|Step changes'!N12*IF('Input|Step changes'!$F12="nominal",LOOKUP($F74,Nominal_to_Real,'Input|Rate of change'!R$27:R$32),INDEX('Input|Rate of change'!$C$14:$O$22,MATCH('Input|Step changes'!$F12,'Input|Rate of change'!$C$14:$C$22,0),MATCH('Calc|Opex forecast'!$F74,'Input|Rate of change'!$C$14:$O$14,0)))*IF('Input|Step changes'!$E12="$millions",1000000,IF('Input|Step changes'!$E12="$000",1000,1))/IF($E74="$millions",1000000,IF($E74="$000",1000,1)) -> 0 | O74: ='Input|Step changes'!O12*IF('Input|Step changes'!$F12="nominal",LOOKUP($F74,Nominal_to_Real,'Input|Rate of change'!S$27:S$32),INDEX('Input|Rate of change'!$C$14:$O$22,MATCH('Input|Step changes'!$F12,'Input|Rate of change'!$C$14:$C$22,0),MATCH('Calc|Opex forecast'!$F74,'Input|Rate of change'!$C$14:$O$14,0)))*IF('Input|Step changes'!$E12="$millions",1000000,IF('Input|Step changes'!$E12="$000",1000,1))/IF($E74="$millions",1000000,IF($E74="$000",1000,1)) -> 0.4539177388 | P74: ='Input|Step changes'!P12*IF('Input|Step changes'!$F12="nominal",LOOKUP($F74,Nominal_to_Real,'Input|Rate of change'!T$27:T$32),INDEX('Input|Rate of change'!$C$14:$O$22,MATCH('Input|Step changes'!$F12,'Input|Rate of change'!$C$14:$C$22,0),MATCH('Calc|Opex forecast'!$F74,'Input|Rate of change'!$C$14:$O$14,0)))*IF('Input|Step changes'!$E12="$millions",1000000,IF('Input|Step changes'!$E12="$000",1000,1))/IF($E74="$millions",1000000,IF($E74="$000",1000,1)) -> 0.9398926939 | Q74: ='Input|Step changes'!Q12*IF('Input|Step changes'!$F12="nominal",LOOKUP($F74,Nominal_to_Real,'Input|Rate of change'!U$27:U$32),INDEX('Input|Rate of change'!$C$14:$O$22,MATCH('Input|Step changes'!$F12,'Input|Rate of change'!$C$14:$C$22,0),MATCH('Calc|Opex forecast'!$F74,'Input|Rate of change'!$C$14:$O$14,0)))*IF('Input|Step changes'!$E12="$millions",1000000,IF('Input|Step changes'!$E12="$000",1000,1))/IF($E74="$millions",1000000,IF($E74="$000",1000,1)) -> 0 | R74: ='Input|Step changes'!R12*IF('Input|Step changes'!$F12="nominal",LOOKUP($F74,Nominal_to_Real,'Input|Rate of change'!V$27:V$32),INDEX('Input|Rate of change'!$C$14:$O$22,MATCH('Input|Step changes'!$F12,'Input|Rate of change'!$C$14:$C$22,0),MATCH('Calc|Opex forecast'!$F74,'Input|Rate of change'!$C$14:$O$14,0)))*IF('Input|Step changes'!$E12="$millions",1000000,IF('Input|Step changes'!$E12="$000",1000,1))/IF($E74="$millions",1000000,IF($E74="$000",1000,1)) -> 0.05031500704 | S74: ='Input|Step changes'!S12*IF('Input|Step changes'!$F12="nominal",LOOKUP($F74,Nominal_to_Real,'Input|Rate of change'!W$27:W$32),INDEX('Input|Rate of change'!$C$14:$O$22,MATCH('Input|Step changes'!$F12,'Input|Rate of change'!$C$14:$C$22,0),MATCH('Calc|Opex forecast'!$F74,'Input|Rate of change'!$C$14:$O$14,0)))*IF('Input|Step changes'!$E12="$millions",1000000,IF('Input|Step changes'!$E12="$000",1000,1))/IF($E74="$millions",1000000,IF($E74="$000",1000,1)) -> 0.815262266
C75: ='Input|Step changes'!C13 -> 0 | D75: Calculated | E75: $millions | F75: 2021-06-01 | J75: ='Input|Step changes'!J13*IF('Input|Step changes'!$F13="nominal",LOOKUP($F75,Nominal_to_Real,'Input|Rate of change'!N$27:N$32),INDEX('Input|Rate of change'!$C$14:$O$22,MATCH('Input|Step changes'!$F13,'Input|Rate of change'!$C$14:$C$22,0),MATCH('Calc|Opex forecast'!$F75,'Input|Rate of change'!$C$14:$O$14,0)))*IF('Input|Step changes'!$E13="$millions",1000000,IF('Input|Step changes'!$E13="$000",1000,1))/IF($E75="$millions",1000000,IF($E75="$000",1000,1)) -> 0 | K75: ='Input|Step changes'!K13*IF('Input|Step changes'!$F13="nominal",LOOKUP($F75,Nominal_to_Real,'Input|Rate of change'!O$27:O$32),INDEX('Input|Rate of change'!$C$14:$O$22,MATCH('Input|Step changes'!$F13,'Input|Rate of change'!$C$14:$C$22,0),MATCH('Calc|Opex forecast'!$F75,'Input|Rate of change'!$C$14:$O$14,0)))*IF('Input|Step changes'!$E13="$millions",1000000,IF('Input|Step changes'!$E13="$000",1000,1))/IF($E75="$millions",1000000,IF($E75="$000",1000,1)) -> 0 | L75: ='Input|Step changes'!L13*IF('Input|Step changes'!$F13="nominal",LOOKUP($F75,Nominal_to_Real,'Input|Rate of change'!P$27:P$32),INDEX('Input|Rate of change'!$C$14:$O$22,MATCH('Input|Step changes'!$F13,'Input|Rate of change'!$C$14:$C$22,0),MATCH('Calc|Opex forecast'!$F75,'Input|Rate of change'!$C$14:$O$14,0)))*IF('Input|Step changes'!$E13="$millions",1000000,IF('Input|Step changes'!$E13="$000",1000,1))/IF($E75="$millions",1000000,IF($E75="$000",1000,1)) -> 0 | M75: ='Input|Step changes'!M13*IF('Input|Step changes'!$F13="nominal",LOOKUP($F75,Nominal_to_Real,'Input|Rate of change'!Q$27:Q$32),INDEX('Input|Rate of change'!$C$14:$O$22,MATCH('Input|Step changes'!$F13,'Input|Rate of change'!$C$14:$C$22,0),MATCH('Calc|Opex forecast'!$F75,'Input|Rate of change'!$C$14:$O$14,0)))*IF('Input|Step changes'!$E13="$millions",1000000,IF('Input|Step changes'!$E13="$000",1000,1))/IF($E75="$millions",1000000,IF($E75="$000",1000,1)) -> 0 | N75: ='Input|Step changes'!N13*IF('Input|Step changes'!$F13="nominal",LOOKUP($F75,Nominal_to_Real,'Input|Rate of change'!R$27:R$32),INDEX('Input|Rate of change'!$C$14:$O$22,MATCH('Input|Step changes'!$F13,'Input|Rate of change'!$C$14:$C$22,0),MATCH('Calc|Opex forecast'!$F75,'Input|Rate of change'!$C$14:$O$14,0)))*IF('Input|Step changes'!$E13="$millions",1000000,IF('Input|Step changes'!$E13="$000",1000,1))/IF($E75="$millions",1000000,IF($E75="$000",1000,1)) -> 0 | O75: ='Input|Step changes'!O13*IF('Input|Step changes'!$F13="nominal",LOOKUP($F75,Nominal_to_Real,'Input|Rate of change'!S$27:S$32),INDEX('Input|Rate of change'!$C$14:$O$22,MATCH('Input|Step changes'!$F13,'Input|Rate of change'!$C$14:$C$22,0),MATCH('Calc|Opex forecast'!$F75,'Input|Rate of change'!$C$14:$O$14,0)))*IF('Input|Step changes'!$E13="$millions",1000000,IF('Input|Step changes'!$E13="$000",1000,1))/IF($E75="$millions",1000000,IF($E75="$000",1000,1)) -> 0 | P75: ='Input|Step changes'!P13*IF('Input|Step changes'!$F13="nominal",LOOKUP($F75,Nominal_to_Real,'Input|Rate of change'!T$27:T$32),INDEX('Input|Rate of change'!$C$14:$O$22,MATCH('Input|Step changes'!$F13,'Input|Rate of change'!$C$14:$C$22,0),MATCH('Calc|Opex forecast'!$F75,'Input|Rate of change'!$C$14:$O$14,0)))*IF('Input|Step changes'!$E13="$millions",1000000,IF('Input|Step changes'!$E13="$000",1000,1))/IF($E75="$millions",1000000,IF($E75="$000",1000,1)) -> 0 | Q75: ='Input|Step changes'!Q13*IF('Input|Step changes'!$F13="nominal",LOOKUP($F75,Nominal_to_Real,'Input|Rate of change'!U$27:U$32),INDEX('Input|Rate of change'!$C$14:$O$22,MATCH('Input|Step changes'!$F13,'Input|Rate of change'!$C$14:$C$22,0),MATCH('Calc|Opex forecast'!$F75,'Input|Rate of change'!$C$14:$O$14,0)))*IF('Input|Step changes'!$E13="$millions",1000000,IF('Input|Step changes'!$E13="$000",1000,1))/IF($E75="$millions",1000000,IF($E75="$000",1000,1)) -> 0 | R75: ='Input|Step changes'!R13*IF('Input|Step changes'!$F13="nominal",LOOKUP($F75,Nominal_to_Real,'Input|Rate of change'!V$27:V$32),INDEX('Input|Rate of change'!$C$14:$O$22,MATCH('Input|Step changes'!$F13,'Input|Rate of change'!$C$14:$C$22,0),MATCH('Calc|Opex forecast'!$F75,'Input|Rate of change'!$C$14:$O$14,0)))*IF('Input|Step changes'!$E13="$millions",1000000,IF('Input|Step changes'!$E13="$000",1000,1))/IF($E75="$millions",1000000,IF($E75="$000",1000,1)) -> 0 | S75: ='Input|Step changes'!S13*IF('Input|Step changes'!$F13="nominal",LOOKUP($F75,Nominal_to_Real,'Input|Rate of change'!W$27:W$32),INDEX('Input|Rate of change'!$C$14:$O$22,MATCH('Input|Step changes'!$F13,'Input|Rate of change'!$C$14:$C$22,0),MATCH('Calc|Opex forecast'!$F75,'Input|Rate of change'!$C$14:$O$14,0)))*IF('Input|Step changes'!$E13="$millions",1000000,IF('Input|Step changes'!$E13="$000",1000,1))/IF($E75="$millions",1000000,IF($E75="$000",1000,1)) -> 0
C76: ='Input|Step changes'!C14 -> 0 | D76: Calculated | E76: $millions | F76: 2021-06-01 | J76: ='Input|Step changes'!J14*IF('Input|Step changes'!$F14="nominal",LOOKUP($F76,Nominal_to_Real,'Input|Rate of change'!N$27:N$32),INDEX('Input|Rate of change'!$C$14:$O$22,MATCH('Input|Step changes'!$F14,'Input|Rate of change'!$C$14:$C$22,0),MATCH('Calc|Opex forecast'!$F76,'Input|Rate of change'!$C$14:$O$14,0)))*IF('Input|Step changes'!$E14="$millions",1000000,IF('Input|Step changes'!$E14="$000",1000,1))/IF($E76="$millions",1000000,IF($E76="$000",1000,1)) -> 0 | K76: ='Input|Step changes'!K14*IF('Input|Step changes'!$F14="nominal",LOOKUP($F76,Nominal_to_Real,'Input|Rate of change'!O$27:O$32),INDEX('Input|Rate of change'!$C$14:$O$22,MATCH('Input|Step changes'!$F14,'Input|Rate of change'!$C$14:$C$22,0),MATCH('Calc|Opex forecast'!$F76,'Input|Rate of change'!$C$14:$O$14,0)))*IF('Input|Step changes'!$E14="$millions",1000000,IF('Input|Step changes'!$E14="$000",1000,1))/IF($E76="$millions",1000000,IF($E76="$000",1000,1)) -> 0 | L76: ='Input|Step changes'!L14*IF('Input|Step changes'!$F14="nominal",LOOKUP($F76,Nominal_to_Real,'Input|Rate of change'!P$27:P$32),INDEX('Input|Rate of change'!$C$14:$O$22,MATCH('Input|Step changes'!$F14,'Input|Rate of change'!$C$14:$C$22,0),MATCH('Calc|Opex forecast'!$F76,'Input|Rate of change'!$C$14:$O$14,0)))*IF('Input|Step changes'!$E14="$millions",1000000,IF('Input|Step changes'!$E14="$000",1000,1))/IF($E76="$millions",1000000,IF($E76="$000",1000,1)) -> 0 | M76: ='Input|Step changes'!M14*IF('Input|Step changes'!$F14="nominal",LOOKUP($F76,Nominal_to_Real,'Input|Rate of change'!Q$27:Q$32),INDEX('Input|Rate of change'!$C$14:$O$22,MATCH('Input|Step changes'!$F14,'Input|Rate of change'!$C$14:$C$22,0),MATCH('Calc|Opex forecast'!$F76,'Input|Rate of change'!$C$14:$O$14,0)))*IF('Input|Step changes'!$E14="$millions",1000000,IF('Input|Step changes'!$E14="$000",1000,1))/IF($E76="$millions",1000000,IF($E76="$000",1000,1)) -> 0 | N76: ='Input|Step changes'!N14*IF('Input|Step changes'!$F14="nominal",LOOKUP($F76,Nominal_to_Real,'Input|Rate of change'!R$27:R$32),INDEX('Input|Rate of change'!$C$14:$O$22,MATCH('Input|Step changes'!$F14,'Input|Rate of change'!$C$14:$C$22,0),MATCH('Calc|Opex forecast'!$F76,'Input|Rate of change'!$C$14:$O$14,0)))*IF('Input|Step changes'!$E14="$millions",1000000,IF('Input|Step changes'!$E14="$000",1000,1))/IF($E76="$millions",1000000,IF($E76="$000",1000,1)) -> 0 | O76: ='Input|Step changes'!O14*IF('Input|Step changes'!$F14="nominal",LOOKUP($F76,Nominal_to_Real,'Input|Rate of change'!S$27:S$32),INDEX('Input|Rate of change'!$C$14:$O$22,MATCH('Input|Step changes'!$F14,'Input|Rate of change'!$C$14:$C$22,0),MATCH('Calc|Opex forecast'!$F76,'Input|Rate of change'!$C$14:$O$14,0)))*IF('Input|Step changes'!$E14="$millions",1000000,IF('Input|Step changes'!$E14="$000",1000,1))/IF($E76="$millions",1000000,IF($E76="$000",1000,1)) -> 0 | P76: ='Input|Step changes'!P14*IF('Input|Step changes'!$F14="nominal",LOOKUP($F76,Nominal_to_Real,'Input|Rate of change'!T$27:T$32),INDEX('Input|Rate of change'!$C$14:$O$22,MATCH('Input|Step changes'!$F14,'Input|Rate of change'!$C$14:$C$22,0),MATCH('Calc|Opex forecast'!$F76,'Input|Rate of change'!$C$14:$O$14,0)))*IF('Input|Step changes'!$E14="$millions",1000000,IF('Input|Step changes'!$E14="$000",1000,1))/IF($E76="$millions",1000000,IF($E76="$000",1000,1)) -> 0 | Q76: ='Input|Step changes'!Q14*IF('Input|Step changes'!$F14="nominal",LOOKUP($F76,Nominal_to_Real,'Input|Rate of change'!U$27:U$32),INDEX('Input|Rate of change'!$C$14:$O$22,MATCH('Input|Step changes'!$F14,'Input|Rate of change'!$C$14:$C$22,0),MATCH('Calc|Opex forecast'!$F76,'Input|Rate of change'!$C$14:$O$14,0)))*IF('Input|Step changes'!$E14="$millions",1000000,IF('Input|Step changes'!$E14="$000",1000,1))/IF($E76="$millions",1000000,IF($E76="$000",1000,1)) -> 0 | R76: ='Input|Step changes'!R14*IF('Input|Step changes'!$F14="nominal",LOOKUP($F76,Nominal_to_Real,'Input|Rate of change'!V$27:V$32),INDEX('Input|Rate of change'!$C$14:$O$22,MATCH('Input|Step changes'!$F14,'Input|Rate of change'!$C$14:$C$22,0),MATCH('Calc|Opex forecast'!$F76,'Input|Rate of change'!$C$14:$O$14,0)))*IF('Input|Step changes'!$E14="$millions",1000000,IF('Input|Step changes'!$E14="$000",1000,1))/IF($E76="$millions",1000000,IF($E76="$000",1000,1)) -> 0 | S76: ='Input|Step changes'!S14*IF('Input|Step changes'!$F14="nominal",LOOKUP($F76,Nominal_to_Real,'Input|Rate of change'!W$27:W$32),INDEX('Input|Rate of change'!$C$14:$O$22,MATCH('Input|Step changes'!$F14,'Input|Rate of change'!$C$14:$C$22,0),MATCH('Calc|Opex forecast'!$F76,'Input|Rate of change'!$C$14:$O$14,0)))*IF('Input|Step changes'!$E14="$millions",1000000,IF('Input|Step changes'!$E14="$000",1000,1))/IF($E76="$millions",1000000,IF($E76="$000",1000,1)) -> 0
C77: ='Input|Step changes'!C15 -> 0 | D77: Calculated | E77: $millions | F77: 2021-06-01 | J77: ='Input|Step changes'!J15*IF('Input|Step changes'!$F15="nominal",LOOKUP($F77,Nominal_to_Real,'Input|Rate of change'!N$27:N$32),INDEX('Input|Rate of change'!$C$14:$O$22,MATCH('Input|Step changes'!$F15,'Input|Rate of change'!$C$14:$C$22,0),MATCH('Calc|Opex forecast'!$F77,'Input|Rate of change'!$C$14:$O$14,0)))*IF('Input|Step changes'!$E15="$millions",1000000,IF('Input|Step changes'!$E15="$000",1000,1))/IF($E77="$millions",1000000,IF($E77="$000",1000,1)) -> 0 | K77: ='Input|Step changes'!K15*IF('Input|Step changes'!$F15="nominal",LOOKUP($F77,Nominal_to_Real,'Input|Rate of change'!O$27:O$32),INDEX('Input|Rate of change'!$C$14:$O$22,MATCH('Input|Step changes'!$F15,'Input|Rate of change'!$C$14:$C$22,0),MATCH('Calc|Opex forecast'!$F77,'Input|Rate of change'!$C$14:$O$14,0)))*IF('Input|Step changes'!$E15="$millions",1000000,IF('Input|Step changes'!$E15="$000",1000,1))/IF($E77="$millions",1000000,IF($E77="$000",1000,1)) -> 0 | L77: ='Input|Step changes'!L15*IF('Input|Step changes'!$F15="nominal",LOOKUP($F77,Nominal_to_Real,'Input|Rate of change'!P$27:P$32),INDEX('Input|Rate of change'!$C$14:$O$22,MATCH('Input|Step changes'!$F15,'Input|Rate of change'!$C$14:$C$22,0),MATCH('Calc|Opex forecast'!$F77,'Input|Rate of change'!$C$14:$O$14,0)))*IF('Input|Step changes'!$E15="$millions",1000000,IF('Input|Step changes'!$E15="$000",1000,1))/IF($E77="$millions",1000000,IF($E77="$000",1000,1)) -> 0 | M77: ='Input|Step changes'!M15*IF('Input|Step changes'!$F15="nominal",LOOKUP($F77,Nominal_to_Real,'Input|Rate of change'!Q$27:Q$32),INDEX('Input|Rate of change'!$C$14:$O$22,MATCH('Input|Step changes'!$F15,'Input|Rate of change'!$C$14:$C$22,0),MATCH('Calc|Opex forecast'!$F77,'Input|Rate of change'!$C$14:$O$14,0)))*IF('Input|Step changes'!$E15="$millions",1000000,IF('Input|Step changes'!$E15="$000",1000,1))/IF($E77="$millions",1000000,IF($E77="$000",1000,1)) -> 0 | N77: ='Input|Step changes'!N15*IF('Input|Step changes'!$F15="nominal",LOOKUP($F77,Nominal_to_Real,'Input|Rate of change'!R$27:R$32),INDEX('Input|Rate of change'!$C$14:$O$22,MATCH('Input|Step changes'!$F15,'Input|Rate of change'!$C$14:$C$22,0),MATCH('Calc|Opex forecast'!$F77,'Input|Rate of change'!$C$14:$O$14,0)))*IF('Input|Step changes'!$E15="$millions",1000000,IF('Input|Step changes'!$E15="$000",1000,1))/IF($E77="$millions",1000000,IF($E77="$000",1000,1)) -> 0 | O77: ='Input|Step changes'!O15*IF('Input|Step changes'!$F15="nominal",LOOKUP($F77,Nominal_to_Real,'Input|Rate of change'!S$27:S$32),INDEX('Input|Rate of change'!$C$14:$O$22,MATCH('Input|Step changes'!$F15,'Input|Rate of change'!$C$14:$C$22,0),MATCH('Calc|Opex forecast'!$F77,'Input|Rate of change'!$C$14:$O$14,0)))*IF('Input|Step changes'!$E15="$millions",1000000,IF('Input|Step changes'!$E15="$000",1000,1))/IF($E77="$millions",1000000,IF($E77="$000",1000,1)) -> 0 | P77: ='Input|Step changes'!P15*IF('Input|Step changes'!$F15="nominal",LOOKUP($F77,Nominal_to_Real,'Input|Rate of change'!T$27:T$32),INDEX('Input|Rate of change'!$C$14:$O$22,MATCH('Input|Step changes'!$F15,'Input|Rate of change'!$C$14:$C$22,0),MATCH('Calc|Opex forecast'!$F77,'Input|Rate of change'!$C$14:$O$14,0)))*IF('Input|Step changes'!$E15="$millions",1000000,IF('Input|Step changes'!$E15="$000",1000,1))/IF($E77="$millions",1000000,IF($E77="$000",1000,1)) -> 0 | Q77: ='Input|Step changes'!Q15*IF('Input|Step changes'!$F15="nominal",LOOKUP($F77,Nominal_to_Real,'Input|Rate of change'!U$27:U$32),INDEX('Input|Rate of change'!$C$14:$O$22,MATCH('Input|Step changes'!$F15,'Input|Rate of change'!$C$14:$C$22,0),MATCH('Calc|Opex forecast'!$F77,'Input|Rate of change'!$C$14:$O$14,0)))*IF('Input|Step changes'!$E15="$millions",1000000,IF('Input|Step changes'!$E15="$000",1000,1))/IF($E77="$millions",1000000,IF($E77="$000",1000,1)) -> 0 | R77: ='Input|Step changes'!R15*IF('Input|Step changes'!$F15="nominal",LOOKUP($F77,Nominal_to_Real,'Input|Rate of change'!V$27:V$32),INDEX('Input|Rate of change'!$C$14:$O$22,MATCH('Input|Step changes'!$F15,'Input|Rate of change'!$C$14:$C$22,0),MATCH('Calc|Opex forecast'!$F77,'Input|Rate of change'!$C$14:$O$14,0)))*IF('Input|Step changes'!$E15="$millions",1000000,IF('Input|Step changes'!$E15="$000",1000,1))/IF($E77="$millions",1000000,IF($E77="$000",1000,1)) -> 0 | S77: ='Input|Step changes'!S15*IF('Input|Step changes'!$F15="nominal",LOOKUP($F77,Nominal_to_Real,'Input|Rate of change'!W$27:W$32),INDEX('Input|Rate of change'!$C$14:$O$22,MATCH('Input|Step changes'!$F15,'Input|Rate of change'!$C$14:$C$22,0),MATCH('Calc|Opex forecast'!$F77,'Input|Rate of change'!$C$14:$O$14,0)))*IF('Input|Step changes'!$E15="$millions",1000000,IF('Input|Step changes'!$E15="$000",1000,1))/IF($E77="$millions",1000000,IF($E77="$000",1000,1)) -> 0
C78: ='Input|Step changes'!C16 -> 0 | D78: Calculated | E78: $millions | F78: 2021-06-01 | J78: ='Input|Step changes'!J16*IF('Input|Step changes'!$F16="nominal",LOOKUP($F78,Nominal_to_Real,'Input|Rate of change'!N$27:N$32),INDEX('Input|Rate of change'!$C$14:$O$22,MATCH('Input|Step changes'!$F16,'Input|Rate of change'!$C$14:$C$22,0),MATCH('Calc|Opex forecast'!$F78,'Input|Rate of change'!$C$14:$O$14,0)))*IF('Input|Step changes'!$E16="$millions",1000000,IF('Input|Step changes'!$E16="$000",1000,1))/IF($E78="$millions",1000000,IF($E78="$000",1000,1)) -> 0 | K78: ='Input|Step changes'!K16*IF('Input|Step changes'!$F16="nominal",LOOKUP($F78,Nominal_to_Real,'Input|Rate of change'!O$27:O$32),INDEX('Input|Rate of change'!$C$14:$O$22,MATCH('Input|Step changes'!$F16,'Input|Rate of change'!$C$14:$C$22,0),MATCH('Calc|Opex forecast'!$F78,'Input|Rate of change'!$C$14:$O$14,0)))*IF('Input|Step changes'!$E16="$millions",1000000,IF('Input|Step changes'!$E16="$000",1000,1))/IF($E78="$millions",1000000,IF($E78="$000",1000,1)) -> 0 | L78: ='Input|Step changes'!L16*IF('Input|Step changes'!$F16="nominal",LOOKUP($F78,Nominal_to_Real,'Input|Rate of change'!P$27:P$32),INDEX('Input|Rate of change'!$C$14:$O$22,MATCH('Input|Step changes'!$F16,'Input|Rate of change'!$C$14:$C$22,0),MATCH('Calc|Opex forecast'!$F78,'Input|Rate of change'!$C$14:$O$14,0)))*IF('Input|Step changes'!$E16="$millions",1000000,IF('Input|Step changes'!$E16="$000",1000,1))/IF($E78="$millions",1000000,IF($E78="$000",1000,1)) -> 0 | M78: ='Input|Step changes'!M16*IF('Input|Step changes'!$F16="nominal",LOOKUP($F78,Nominal_to_Real,'Input|Rate of change'!Q$27:Q$32),INDEX('Input|Rate of change'!$C$14:$O$22,MATCH('Input|Step changes'!$F16,'Input|Rate of change'!$C$14:$C$22,0),MATCH('Calc|Opex forecast'!$F78,'Input|Rate of change'!$C$14:$O$14,0)))*IF('Input|Step changes'!$E16="$millions",1000000,IF('Input|Step changes'!$E16="$000",1000,1))/IF($E78="$millions",1000000,IF($E78="$000",1000,1)) -> 0 | N78: ='Input|Step changes'!N16*IF('Input|Step changes'!$F16="nominal",LOOKUP($F78,Nominal_to_Real,'Input|Rate of change'!R$27:R$32),INDEX('Input|Rate of change'!$C$14:$O$22,MATCH('Input|Step changes'!$F16,'Input|Rate of change'!$C$14:$C$22,0),MATCH('Calc|Opex forecast'!$F78,'Input|Rate of change'!$C$14:$O$14,0)))*IF('Input|Step changes'!$E16="$millions",1000000,IF('Input|Step changes'!$E16="$000",1000,1))/IF($E78="$millions",1000000,IF($E78="$000",1000,1)) -> 0 | O78: ='Input|Step changes'!O16*IF('Input|Step changes'!$F16="nominal",LOOKUP($F78,Nominal_to_Real,'Input|Rate of change'!S$27:S$32),INDEX('Input|Rate of change'!$C$14:$O$22,MATCH('Input|Step changes'!$F16,'Input|Rate of change'!$C$14:$C$22,0),MATCH('Calc|Opex forecast'!$F78,'Input|Rate of change'!$C$14:$O$14,0)))*IF('Input|Step changes'!$E16="$millions",1000000,IF('Input|Step changes'!$E16="$000",1000,1))/IF($E78="$millions",1000000,IF($E78="$000",1000,1)) -> 0 | P78: ='Input|Step changes'!P16*IF('Input|Step changes'!$F16="nominal",LOOKUP($F78,Nominal_to_Real,'Input|Rate of change'!T$27:T$32),INDEX('Input|Rate of change'!$C$14:$O$22,MATCH('Input|Step changes'!$F16,'Input|Rate of change'!$C$14:$C$22,0),MATCH('Calc|Opex forecast'!$F78,'Input|Rate of change'!$C$14:$O$14,0)))*IF('Input|Step changes'!$E16="$millions",1000000,IF('Input|Step changes'!$E16="$000",1000,1))/IF($E78="$millions",1000000,IF($E78="$000",1000,1)) -> 0 | Q78: ='Input|Step changes'!Q16*IF('Input|Step changes'!$F16="nominal",LOOKUP($F78,Nominal_to_Real,'Input|Rate of change'!U$27:U$32),INDEX('Input|Rate of change'!$C$14:$O$22,MATCH('Input|Step changes'!$F16,'Input|Rate of change'!$C$14:$C$22,0),MATCH('Calc|Opex forecast'!$F78,'Input|Rate of change'!$C$14:$O$14,0)))*IF('Input|Step changes'!$E16="$millions",1000000,IF('Input|Step changes'!$E16="$000",1000,1))/IF($E78="$millions",1000000,IF($E78="$000",1000,1)) -> 0 | R78: ='Input|Step changes'!R16*IF('Input|Step changes'!$F16="nominal",LOOKUP($F78,Nominal_to_Real,'Input|Rate of change'!V$27:V$32),INDEX('Input|Rate of change'!$C$14:$O$22,MATCH('Input|Step changes'!$F16,'Input|Rate of change'!$C$14:$C$22,0),MATCH('Calc|Opex forecast'!$F78,'Input|Rate of change'!$C$14:$O$14,0)))*IF('Input|Step changes'!$E16="$millions",1000000,IF('Input|Step changes'!$E16="$000",1000,1))/IF($E78="$millions",1000000,IF($E78="$000",1000,1)) -> 0 | S78: ='Input|Step changes'!S16*IF('Input|Step changes'!$F16="nominal",LOOKUP($F78,Nominal_to_Real,'Input|Rate of change'!W$27:W$32),INDEX('Input|Rate of change'!$C$14:$O$22,MATCH('Input|Step changes'!$F16,'Input|Rate of change'!$C$14:$C$22,0),MATCH('Calc|Opex forecast'!$F78,'Input|Rate of change'!$C$14:$O$14,0)))*IF('Input|Step changes'!$E16="$millions",1000000,IF('Input|Step changes'!$E16="$000",1000,1))/IF($E78="$millions",1000000,IF($E78="$000",1000,1)) -> 0
C79: ='Input|Step changes'!C17 -> 0 | D79: Calculated | E79: $millions | F79: 2021-06-01 | J79: ='Input|Step changes'!J17*IF('Input|Step changes'!$F17="nominal",LOOKUP($F79,Nominal_to_Real,'Input|Rate of change'!N$27:N$32),INDEX('Input|Rate of change'!$C$14:$O$22,MATCH('Input|Step changes'!$F17,'Input|Rate of change'!$C$14:$C$22,0),MATCH('Calc|Opex forecast'!$F79,'Input|Rate of change'!$C$14:$O$14,0)))*IF('Input|Step changes'!$E17="$millions",1000000,IF('Input|Step changes'!$E17="$000",1000,1))/IF($E79="$millions",1000000,IF($E79="$000",1000,1)) -> 0 | K79: ='Input|Step changes'!K17*IF('Input|Step changes'!$F17="nominal",LOOKUP($F79,Nominal_to_Real,'Input|Rate of change'!O$27:O$32),INDEX('Input|Rate of change'!$C$14:$O$22,MATCH('Input|Step changes'!$F17,'Input|Rate of change'!$C$14:$C$22,0),MATCH('Calc|Opex forecast'!$F79,'Input|Rate of change'!$C$14:$O$14,0)))*IF('Input|Step changes'!$E17="$millions",1000000,IF('Input|Step changes'!$E17="$000",1000,1))/IF($E79="$millions",1000000,IF($E79="$000",1000,1)) -> 0 | L79: ='Input|Step changes'!L17*IF('Input|Step changes'!$F17="nominal",LOOKUP($F79,Nominal_to_Real,'Input|Rate of change'!P$27:P$32),INDEX('Input|Rate of change'!$C$14:$O$22,MATCH('Input|Step changes'!$F17,'Input|Rate of change'!$C$14:$C$22,0),MATCH('Calc|Opex forecast'!$F79,'Input|Rate of change'!$C$14:$O$14,0)))*IF('Input|Step changes'!$E17="$millions",1000000,IF('Input|Step changes'!$E17="$000",1000,1))/IF($E79="$millions",1000000,IF($E79="$000",1000,1)) -> 0 | M79: ='Input|Step changes'!M17*IF('Input|Step changes'!$F17="nominal",LOOKUP($F79,Nominal_to_Real,'Input|Rate of change'!Q$27:Q$32),INDEX('Input|Rate of change'!$C$14:$O$22,MATCH('Input|Step changes'!$F17,'Input|Rate of change'!$C$14:$C$22,0),MATCH('Calc|Opex forecast'!$F79,'Input|Rate of change'!$C$14:$O$14,0)))*IF('Input|Step changes'!$E17="$millions",1000000,IF('Input|Step changes'!$E17="$000",1000,1))/IF($E79="$millions",1000000,IF($E79="$000",1000,1)) -> 0 | N79: ='Input|Step changes'!N17*IF('Input|Step changes'!$F17="nominal",LOOKUP($F79,Nominal_to_Real,'Input|Rate of change'!R$27:R$32),INDEX('Input|Rate of change'!$C$14:$O$22,MATCH('Input|Step changes'!$F17,'Input|Rate of change'!$C$14:$C$22,0),MATCH('Calc|Opex forecast'!$F79,'Input|Rate of change'!$C$14:$O$14,0)))*IF('Input|Step changes'!$E17="$millions",1000000,IF('Input|Step changes'!$E17="$000",1000,1))/IF($E79="$millions",1000000,IF($E79="$000",1000,1)) -> 0 | O79: ='Input|Step changes'!O17*IF('Input|Step changes'!$F17="nominal",LOOKUP($F79,Nominal_to_Real,'Input|Rate of change'!S$27:S$32),INDEX('Input|Rate of change'!$C$14:$O$22,MATCH('Input|Step changes'!$F17,'Input|Rate of change'!$C$14:$C$22,0),MATCH('Calc|Opex forecast'!$F79,'Input|Rate of change'!$C$14:$O$14,0)))*IF('Input|Step changes'!$E17="$millions",1000000,IF('Input|Step changes'!$E17="$000",1000,1))/IF($E79="$millions",1000000,IF($E79="$000",1000,1)) -> 0 | P79: ='Input|Step changes'!P17*IF('Input|Step changes'!$F17="nominal",LOOKUP($F79,Nominal_to_Real,'Input|Rate of change'!T$27:T$32),INDEX('Input|Rate of change'!$C$14:$O$22,MATCH('Input|Step changes'!$F17,'Input|Rate of change'!$C$14:$C$22,0),MATCH('Calc|Opex forecast'!$F79,'Input|Rate of change'!$C$14:$O$14,0)))*IF('Input|Step changes'!$E17="$millions",1000000,IF('Input|Step changes'!$E17="$000",1000,1))/IF($E79="$millions",1000000,IF($E79="$000",1000,1)) -> 0 | Q79: ='Input|Step changes'!Q17*IF('Input|Step changes'!$F17="nominal",LOOKUP($F79,Nominal_to_Real,'Input|Rate of change'!U$27:U$32),INDEX('Input|Rate of change'!$C$14:$O$22,MATCH('Input|Step changes'!$F17,'Input|Rate of change'!$C$14:$C$22,0),MATCH('Calc|Opex forecast'!$F79,'Input|Rate of change'!$C$14:$O$14,0)))*IF('Input|Step changes'!$E17="$millions",1000000,IF('Input|Step changes'!$E17="$000",1000,1))/IF($E79="$millions",1000000,IF($E79="$000",1000,1)) -> 0 | R79: ='Input|Step changes'!R17*IF('Input|Step changes'!$F17="nominal",LOOKUP($F79,Nominal_to_Real,'Input|Rate of change'!V$27:V$32),INDEX('Input|Rate of change'!$C$14:$O$22,MATCH('Input|Step changes'!$F17,'Input|Rate of change'!$C$14:$C$22,0),MATCH('Calc|Opex forecast'!$F79,'Input|Rate of change'!$C$14:$O$14,0)))*IF('Input|Step changes'!$E17="$millions",1000000,IF('Input|Step changes'!$E17="$000",1000,1))/IF($E79="$millions",1000000,IF($E79="$000",1000,1)) -> 0 | S79: ='Input|Step changes'!S17*IF('Input|Step changes'!$F17="nominal",LOOKUP($F79,Nominal_to_Real,'Input|Rate of change'!W$27:W$32),INDEX('Input|Rate of change'!$C$14:$O$22,MATCH('Input|Step changes'!$F17,'Input|Rate of change'!$C$14:$C$22,0),MATCH('Calc|Opex forecast'!$F79,'Input|Rate of change'!$C$14:$O$14,0)))*IF('Input|Step changes'!$E17="$millions",1000000,IF('Input|Step changes'!$E17="$000",1000,1))/IF($E79="$millions",1000000,IF($E79="$000",1000,1)) -> 0
C80: ='Input|Step changes'!C18 -> 0 | D80: Calculated | E80: $millions | F80: 2021-06-01 | J80: ='Input|Step changes'!J18*IF('Input|Step changes'!$F18="nominal",LOOKUP($F80,Nominal_to_Real,'Input|Rate of change'!N$27:N$32),INDEX('Input|Rate of change'!$C$14:$O$22,MATCH('Input|Step changes'!$F18,'Input|Rate of change'!$C$14:$C$22,0),MATCH('Calc|Opex forecast'!$F80,'Input|Rate of change'!$C$14:$O$14,0)))*IF('Input|Step changes'!$E18="$millions",1000000,IF('Input|Step changes'!$E18="$000",1000,1))/IF($E80="$millions",1000000,IF($E80="$000",1000,1)) -> 0 | K80: ='Input|Step changes'!K18*IF('Input|Step changes'!$F18="nominal",LOOKUP($F80,Nominal_to_Real,'Input|Rate of change'!O$27:O$32),INDEX('Input|Rate of change'!$C$14:$O$22,MATCH('Input|Step changes'!$F18,'Input|Rate of change'!$C$14:$C$22,0),MATCH('Calc|Opex forecast'!$F80,'Input|Rate of change'!$C$14:$O$14,0)))*IF('Input|Step changes'!$E18="$millions",1000000,IF('Input|Step changes'!$E18="$000",1000,1))/IF($E80="$millions",1000000,IF($E80="$000",1000,1)) -> 0 | L80: ='Input|Step changes'!L18*IF('Input|Step changes'!$F18="nominal",LOOKUP($F80,Nominal_to_Real,'Input|Rate of change'!P$27:P$32),INDEX('Input|Rate of change'!$C$14:$O$22,MATCH('Input|Step changes'!$F18,'Input|Rate of change'!$C$14:$C$22,0),MATCH('Calc|Opex forecast'!$F80,'Input|Rate of change'!$C$14:$O$14,0)))*IF('Input|Step changes'!$E18="$millions",1000000,IF('Input|Step changes'!$E18="$000",1000,1))/IF($E80="$millions",1000000,IF($E80="$000",1000,1)) -> 0 | M80: ='Input|Step changes'!M18*IF('Input|Step changes'!$F18="nominal",LOOKUP($F80,Nominal_to_Real,'Input|Rate of change'!Q$27:Q$32),INDEX('Input|Rate of change'!$C$14:$O$22,MATCH('Input|Step changes'!$F18,'Input|Rate of change'!$C$14:$C$22,0),MATCH('Calc|Opex forecast'!$F80,'Input|Rate of change'!$C$14:$O$14,0)))*IF('Input|Step changes'!$E18="$millions",1000000,IF('Input|Step changes'!$E18="$000",1000,1))/IF($E80="$millions",1000000,IF($E80="$000",1000,1)) -> 0 | N80: ='Input|Step changes'!N18*IF('Input|Step changes'!$F18="nominal",LOOKUP($F80,Nominal_to_Real,'Input|Rate of change'!R$27:R$32),INDEX('Input|Rate of change'!$C$14:$O$22,MATCH('Input|Step changes'!$F18,'Input|Rate of change'!$C$14:$C$22,0),MATCH('Calc|Opex forecast'!$F80,'Input|Rate of change'!$C$14:$O$14,0)))*IF('Input|Step changes'!$E18="$millions",1000000,IF('Input|Step changes'!$E18="$000",1000,1))/IF($E80="$millions",1000000,IF($E80="$000",1000,1)) -> 0 | O80: ='Input|Step changes'!O18*IF('Input|Step changes'!$F18="nominal",LOOKUP($F80,Nominal_to_Real,'Input|Rate of change'!S$27:S$32),INDEX('Input|Rate of change'!$C$14:$O$22,MATCH('Input|Step changes'!$F18,'Input|Rate of change'!$C$14:$C$22,0),MATCH('Calc|Opex forecast'!$F80,'Input|Rate of change'!$C$14:$O$14,0)))*IF('Input|Step changes'!$E18="$millions",1000000,IF('Input|Step changes'!$E18="$000",1000,1))/IF($E80="$millions",1000000,IF($E80="$000",1000,1)) -> 0 | P80: ='Input|Step changes'!P18*IF('Input|Step changes'!$F18="nominal",LOOKUP($F80,Nominal_to_Real,'Input|Rate of change'!T$27:T$32),INDEX('Input|Rate of change'!$C$14:$O$22,MATCH('Input|Step changes'!$F18,'Input|Rate of change'!$C$14:$C$22,0),MATCH('Calc|Opex forecast'!$F80,'Input|Rate of change'!$C$14:$O$14,0)))*IF('Input|Step changes'!$E18="$millions",1000000,IF('Input|Step changes'!$E18="$000",1000,1))/IF($E80="$millions",1000000,IF($E80="$000",1000,1)) -> 0 | Q80: ='Input|Step changes'!Q18*IF('Input|Step changes'!$F18="nominal",LOOKUP($F80,Nominal_to_Real,'Input|Rate of change'!U$27:U$32),INDEX('Input|Rate of change'!$C$14:$O$22,MATCH('Input|Step changes'!$F18,'Input|Rate of change'!$C$14:$C$22,0),MATCH('Calc|Opex forecast'!$F80,'Input|Rate of change'!$C$14:$O$14,0)))*IF('Input|Step changes'!$E18="$millions",1000000,IF('Input|Step changes'!$E18="$000",1000,1))/IF($E80="$millions",1000000,IF($E80="$000",1000,1)) -> 0 | R80: ='Input|Step changes'!R18*IF('Input|Step changes'!$F18="nominal",LOOKUP($F80,Nominal_to_Real,'Input|Rate of change'!V$27:V$32),INDEX('Input|Rate of change'!$C$14:$O$22,MATCH('Input|Step changes'!$F18,'Input|Rate of change'!$C$14:$C$22,0),MATCH('Calc|Opex forecast'!$F80,'Input|Rate of change'!$C$14:$O$14,0)))*IF('Input|Step changes'!$E18="$millions",1000000,IF('Input|Step changes'!$E18="$000",1000,1))/IF($E80="$millions",1000000,IF($E80="$000",1000,1)) -> 0 | S80: ='Input|Step changes'!S18*IF('Input|Step changes'!$F18="nominal",LOOKUP($F80,Nominal_to_Real,'Input|Rate of change'!W$27:W$32),INDEX('Input|Rate of change'!$C$14:$O$22,MATCH('Input|Step changes'!$F18,'Input|Rate of change'!$C$14:$C$22,0),MATCH('Calc|Opex forecast'!$F80,'Input|Rate of change'!$C$14:$O$14,0)))*IF('Input|Step changes'!$E18="$millions",1000000,IF('Input|Step changes'!$E18="$000",1000,1))/IF($E80="$millions",1000000,IF($E80="$000",1000,1)) -> 0
C81: ='Input|Step changes'!C19 -> 0 | D81: Calculated | E81: $millions | F81: 2021-06-01 | J81: ='Input|Step changes'!J19*IF('Input|Step changes'!$F19="nominal",LOOKUP($F81,Nominal_to_Real,'Input|Rate of change'!N$27:N$32),INDEX('Input|Rate of change'!$C$14:$O$22,MATCH('Input|Step changes'!$F19,'Input|Rate of change'!$C$14:$C$22,0),MATCH('Calc|Opex forecast'!$F81,'Input|Rate of change'!$C$14:$O$14,0)))*IF('Input|Step changes'!$E19="$millions",1000000,IF('Input|Step changes'!$E19="$000",1000,1))/IF($E81="$millions",1000000,IF($E81="$000",1000,1)) -> 0 | K81: ='Input|Step changes'!K19*IF('Input|Step changes'!$F19="nominal",LOOKUP($F81,Nominal_to_Real,'Input|Rate of change'!O$27:O$32),INDEX('Input|Rate of change'!$C$14:$O$22,MATCH('Input|Step changes'!$F19,'Input|Rate of change'!$C$14:$C$22,0),MATCH('Calc|Opex forecast'!$F81,'Input|Rate of change'!$C$14:$O$14,0)))*IF('Input|Step changes'!$E19="$millions",1000000,IF('Input|Step changes'!$E19="$000",1000,1))/IF($E81="$millions",1000000,IF($E81="$000",1000,1)) -> 0 | L81: ='Input|Step changes'!L19*IF('Input|Step changes'!$F19="nominal",LOOKUP($F81,Nominal_to_Real,'Input|Rate of change'!P$27:P$32),INDEX('Input|Rate of change'!$C$14:$O$22,MATCH('Input|Step changes'!$F19,'Input|Rate of change'!$C$14:$C$22,0),MATCH('Calc|Opex forecast'!$F81,'Input|Rate of change'!$C$14:$O$14,0)))*IF('Input|Step changes'!$E19="$millions",1000000,IF('Input|Step changes'!$E19="$000",1000,1))/IF($E81="$millions",1000000,IF($E81="$000",1000,1)) -> 0 | M81: ='Input|Step changes'!M19*IF('Input|Step changes'!$F19="nominal",LOOKUP($F81,Nominal_to_Real,'Input|Rate of change'!Q$27:Q$32),INDEX('Input|Rate of change'!$C$14:$O$22,MATCH('Input|Step changes'!$F19,'Input|Rate of change'!$C$14:$C$22,0),MATCH('Calc|Opex forecast'!$F81,'Input|Rate of change'!$C$14:$O$14,0)))*IF('Input|Step changes'!$E19="$millions",1000000,IF('Input|Step changes'!$E19="$000",1000,1))/IF($E81="$millions",1000000,IF($E81="$000",1000,1)) -> 0 | N81: ='Input|Step changes'!N19*IF('Input|Step changes'!$F19="nominal",LOOKUP($F81,Nominal_to_Real,'Input|Rate of change'!R$27:R$32),INDEX('Input|Rate of change'!$C$14:$O$22,MATCH('Input|Step changes'!$F19,'Input|Rate of change'!$C$14:$C$22,0),MATCH('Calc|Opex forecast'!$F81,'Input|Rate of change'!$C$14:$O$14,0)))*IF('Input|Step changes'!$E19="$millions",1000000,IF('Input|Step changes'!$E19="$000",1000,1))/IF($E81="$millions",1000000,IF($E81="$000",1000,1)) -> 0 | O81: ='Input|Step changes'!O19*IF('Input|Step changes'!$F19="nominal",LOOKUP($F81,Nominal_to_Real,'Input|Rate of change'!S$27:S$32),INDEX('Input|Rate of change'!$C$14:$O$22,MATCH('Input|Step changes'!$F19,'Input|Rate of change'!$C$14:$C$22,0),MATCH('Calc|Opex forecast'!$F81,'Input|Rate of change'!$C$14:$O$14,0)))*IF('Input|Step changes'!$E19="$millions",1000000,IF('Input|Step changes'!$E19="$000",1000,1))/IF($E81="$millions",1000000,IF($E81="$000",1000,1)) -> 0 | P81: ='Input|Step changes'!P19*IF('Input|Step changes'!$F19="nominal",LOOKUP($F81,Nominal_to_Real,'Input|Rate of change'!T$27:T$32),INDEX('Input|Rate of change'!$C$14:$O$22,MATCH('Input|Step changes'!$F19,'Input|Rate of change'!$C$14:$C$22,0),MATCH('Calc|Opex forecast'!$F81,'Input|Rate of change'!$C$14:$O$14,0)))*IF('Input|Step changes'!$E19="$millions",1000000,IF('Input|Step changes'!$E19="$000",1000,1))/IF($E81="$millions",1000000,IF($E81="$000",1000,1)) -> 0 | Q81: ='Input|Step changes'!Q19*IF('Input|Step changes'!$F19="nominal",LOOKUP($F81,Nominal_to_Real,'Input|Rate of change'!U$27:U$32),INDEX('Input|Rate of change'!$C$14:$O$22,MATCH('Input|Step changes'!$F19,'Input|Rate of change'!$C$14:$C$22,0),MATCH('Calc|Opex forecast'!$F81,'Input|Rate of change'!$C$14:$O$14,0)))*IF('Input|Step changes'!$E19="$millions",1000000,IF('Input|Step changes'!$E19="$000",1000,1))/IF($E81="$millions",1000000,IF($E81="$000",1000,1)) -> 0 | R81: ='Input|Step changes'!R19*IF('Input|Step changes'!$F19="nominal",LOOKUP($F81,Nominal_to_Real,'Input|Rate of change'!V$27:V$32),INDEX('Input|Rate of change'!$C$14:$O$22,MATCH('Input|Step changes'!$F19,'Input|Rate of change'!$C$14:$C$22,0),MATCH('Calc|Opex forecast'!$F81,'Input|Rate of change'!$C$14:$O$14,0)))*IF('Input|Step changes'!$E19="$millions",1000000,IF('Input|Step changes'!$E19="$000",1000,1))/IF($E81="$millions",1000000,IF($E81="$000",1000,1)) -> 0 | S81: ='Input|Step changes'!S19*IF('Input|Step changes'!$F19="nominal",LOOKUP($F81,Nominal_to_Real,'Input|Rate of change'!W$27:W$32),INDEX('Input|Rate of change'!$C$14:$O$22,MATCH('Input|Step changes'!$F19,'Input|Rate of change'!$C$14:$C$22,0),MATCH('Calc|Opex forecast'!$F81,'Input|Rate of change'!$C$14:$O$14,0)))*IF('Input|Step changes'!$E19="$millions",1000000,IF('Input|Step changes'!$E19="$000",1000,1))/IF($E81="$millions",1000000,IF($E81="$000",1000,1)) -> 0
C82: ='Input|Step changes'!C20 -> 0 | D82: Calculated | E82: $millions | F82: 2021-06-01 | J82: ='Input|Step changes'!J20*IF('Input|Step changes'!$F20="nominal",LOOKUP($F82,Nominal_to_Real,'Input|Rate of change'!N$27:N$32),INDEX('Input|Rate of change'!$C$14:$O$22,MATCH('Input|Step changes'!$F20,'Input|Rate of change'!$C$14:$C$22,0),MATCH('Calc|Opex forecast'!$F82,'Input|Rate of change'!$C$14:$O$14,0)))*IF('Input|Step changes'!$E20="$millions",1000000,IF('Input|Step changes'!$E20="$000",1000,1))/IF($E82="$millions",1000000,IF($E82="$000",1000,1)) -> 0 | K82: ='Input|Step changes'!K20*IF('Input|Step changes'!$F20="nominal",LOOKUP($F82,Nominal_to_Real,'Input|Rate of change'!O$27:O$32),INDEX('Input|Rate of change'!$C$14:$O$22,MATCH('Input|Step changes'!$F20,'Input|Rate of change'!$C$14:$C$22,0),MATCH('Calc|Opex forecast'!$F82,'Input|Rate of change'!$C$14:$O$14,0)))*IF('Input|Step changes'!$E20="$millions",1000000,IF('Input|Step changes'!$E20="$000",1000,1))/IF($E82="$millions",1000000,IF($E82="$000",1000,1)) -> 0 | L82: ='Input|Step changes'!L20*IF('Input|Step changes'!$F20="nominal",LOOKUP($F82,Nominal_to_Real,'Input|Rate of change'!P$27:P$32),INDEX('Input|Rate of change'!$C$14:$O$22,MATCH('Input|Step changes'!$F20,'Input|Rate of change'!$C$14:$C$22,0),MATCH('Calc|Opex forecast'!$F82,'Input|Rate of change'!$C$14:$O$14,0)))*IF('Input|Step changes'!$E20="$millions",1000000,IF('Input|Step changes'!$E20="$000",1000,1))/IF($E82="$millions",1000000,IF($E82="$000",1000,1)) -> 0 | M82: ='Input|Step changes'!M20*IF('Input|Step changes'!$F20="nominal",LOOKUP($F82,Nominal_to_Real,'Input|Rate of change'!Q$27:Q$32),INDEX('Input|Rate of change'!$C$14:$O$22,MATCH('Input|Step changes'!$F20,'Input|Rate of change'!$C$14:$C$22,0),MATCH('Calc|Opex forecast'!$F82,'Input|Rate of change'!$C$14:$O$14,0)))*IF('Input|Step changes'!$E20="$millions",1000000,IF('Input|Step changes'!$E20="$000",1000,1))/IF($E82="$millions",1000000,IF($E82="$000",1000,1)) -> 0 | N82: ='Input|Step changes'!N20*IF('Input|Step changes'!$F20="nominal",LOOKUP($F82,Nominal_to_Real,'Input|Rate of change'!R$27:R$32),INDEX('Input|Rate of change'!$C$14:$O$22,MATCH('Input|Step changes'!$F20,'Input|Rate of change'!$C$14:$C$22,0),MATCH('Calc|Opex forecast'!$F82,'Input|Rate of change'!$C$14:$O$14,0)))*IF('Input|Step changes'!$E20="$millions",1000000,IF('Input|Step changes'!$E20="$000",1000,1))/IF($E82="$millions",1000000,IF($E82="$000",1000,1)) -> 0 | O82: ='Input|Step changes'!O20*IF('Input|Step changes'!$F20="nominal",LOOKUP($F82,Nominal_to_Real,'Input|Rate of change'!S$27:S$32),INDEX('Input|Rate of change'!$C$14:$O$22,MATCH('Input|Step changes'!$F20,'Input|Rate of change'!$C$14:$C$22,0),MATCH('Calc|Opex forecast'!$F82,'Input|Rate of change'!$C$14:$O$14,0)))*IF('Input|Step changes'!$E20="$millions",1000000,IF('Input|Step changes'!$E20="$000",1000,1))/IF($E82="$millions",1000000,IF($E82="$000",1000,1)) -> 0 | P82: ='Input|Step changes'!P20*IF('Input|Step changes'!$F20="nominal",LOOKUP($F82,Nominal_to_Real,'Input|Rate of change'!T$27:T$32),INDEX('Input|Rate of change'!$C$14:$O$22,MATCH('Input|Step changes'!$F20,'Input|Rate of change'!$C$14:$C$22,0),MATCH('Calc|Opex forecast'!$F82,'Input|Rate of change'!$C$14:$O$14,0)))*IF('Input|Step changes'!$E20="$millions",1000000,IF('Input|Step changes'!$E20="$000",1000,1))/IF($E82="$millions",1000000,IF($E82="$000",1000,1)) -> 0 | Q82: ='Input|Step changes'!Q20*IF('Input|Step changes'!$F20="nominal",LOOKUP($F82,Nominal_to_Real,'Input|Rate of change'!U$27:U$32),INDEX('Input|Rate of change'!$C$14:$O$22,MATCH('Input|Step changes'!$F20,'Input|Rate of change'!$C$14:$C$22,0),MATCH('Calc|Opex forecast'!$F82,'Input|Rate of change'!$C$14:$O$14,0)))*IF('Input|Step changes'!$E20="$millions",1000000,IF('Input|Step changes'!$E20="$000",1000,1))/IF($E82="$millions",1000000,IF($E82="$000",1000,1)) -> 0 | R82: ='Input|Step changes'!R20*IF('Input|Step changes'!$F20="nominal",LOOKUP($F82,Nominal_to_Real,'Input|Rate of change'!V$27:V$32),INDEX('Input|Rate of change'!$C$14:$O$22,MATCH('Input|Step changes'!$F20,'Input|Rate of change'!$C$14:$C$22,0),MATCH('Calc|Opex forecast'!$F82,'Input|Rate of change'!$C$14:$O$14,0)))*IF('Input|Step changes'!$E20="$millions",1000000,IF('Input|Step changes'!$E20="$000",1000,1))/IF($E82="$millions",1000000,IF($E82="$000",1000,1)) -> 0 | S82: ='Input|Step changes'!S20*IF('Input|Step changes'!$F20="nominal",LOOKUP($F82,Nominal_to_Real,'Input|Rate of change'!W$27:W$32),INDEX('Input|Rate of change'!$C$14:$O$22,MATCH('Input|Step changes'!$F20,'Input|Rate of change'!$C$14:$C$22,0),MATCH('Calc|Opex forecast'!$F82,'Input|Rate of change'!$C$14:$O$14,0)))*IF('Input|Step changes'!$E20="$millions",1000000,IF('Input|Step changes'!$E20="$000",1000,1))/IF($E82="$millions",1000000,IF($E82="$000",1000,1)) -> 0
C84: Total step changes | D84: Calculated | E84: =$E$8 -> $millions | F84: 2021-06-01 | J84: =SUM(J73:J83) -> 0 | K84: =SUM(K73:K83) -> 0 | L84: 0 | M84: 0 | N84: 0 | O84: 0.4539177388 | P84: 0.9398926939 | Q84: 0 | R84: 0.05031500704 | S84: 0.815262266
B86: Calc | Category specific forecasts
C88: Category specific forecasts | D88: Source | E88: Unit | F88: Basis | J88: =IF(YEAR(J$4)>='Input|General'!$G$13,IF(YEAR(J$4)<='Input|General'!$G$14,J$4,""),"") ->  | K88: =IF(YEAR(K$4)>='Input|General'!$G$13,IF(YEAR(K$4)<='Input|General'!$G$14,K$4,""),"") ->  | L88: =IF(YEAR(L$4)>='Input|General'!$G$13,IF(YEAR(L$4)<='Input|General'!$G$14,L$4,""),"") ->  | M88: =IF(YEAR(M$4)>='Input|General'!$G$13,IF(YEAR(M$4)<='Input|General'!$G$14,M$4,""),"") ->  | N88: =IF(YEAR(N$4)>='Input|General'!$G$13,IF(YEAR(N$4)<='Input|General'!$G$14,N$4,""),"") ->  | O88: =IF(YEAR(O$4)>='Input|General'!$G$13,IF(YEAR(O$4)<='Input|General'!$G$14,O$4,""),"") -> 2022-06-01 | P88: =IF(YEAR(P$4)>='Input|General'!$G$13,IF(YEAR(P$4)<='Input|General'!$G$14,P$4,""),"") -> 2023-06-01 | Q88: =IF(YEAR(Q$4)>='Input|General'!$G$13,IF(YEAR(Q$4)<='Input|General'!$G$14,Q$4,""),"") -> 2024-06-01 | R88: =IF(YEAR(R$4)>='Input|General'!$G$13,IF(YEAR(R$4)<='Input|General'!$G$14,R$4,""),"") -> 2025-06-01 | S88: =IF(YEAR(S$4)>='Input|General'!$G$13,IF(YEAR(S$4)<='Input|General'!$G$14,S$4,""),"") -> 2026-06-01
C90: ='Input|Step changes'!C28 -> UNFT | D90: Calculated | E90: $millions | F90: =$F$8 -> 2021-06-01 | J90: =IF('Input|Step changes'!J28="",0,'Input|Step changes'!J28)*IF('Input|Step changes'!$F28="nominal",LOOKUP($F90,Nominal_to_Real,'Input|Rate of change'!N$27:N$32),INDEX('Input|Rate of change'!$C$14:$O$22,MATCH('Input|Step changes'!$F28,'Input|Rate of change'!$C$14:$C$22,0),MATCH('Calc|Opex forecast'!$F90,'Input|Rate of change'!$C$14:$O$14,0)))*IF('Input|Step changes'!$E28="$millions",1000000,IF('Input|Step changes'!$E28="$000",1000,1))/IF($E90="$millions",1000000,IF($E90="$000",1000,1)) -> 0 | K90: =IF('Input|Step changes'!K28="",0,'Input|Step changes'!K28)*IF('Input|Step changes'!$F28="nominal",LOOKUP($F90,Nominal_to_Real,'Input|Rate of change'!O$27:O$32),INDEX('Input|Rate of change'!$C$14:$O$22,MATCH('Input|Step changes'!$F28,'Input|Rate of change'!$C$14:$C$22,0),MATCH('Calc|Opex forecast'!$F90,'Input|Rate of change'!$C$14:$O$14,0)))*IF('Input|Step changes'!$E28="$millions",1000000,IF('Input|Step changes'!$E28="$000",1000,1))/IF($E90="$millions",1000000,IF($E90="$000",1000,1)) -> 0 | L90: =IF('Input|Step changes'!L28="",0,'Input|Step changes'!L28)*IF('Input|Step changes'!$F28="nominal",LOOKUP($F90,Nominal_to_Real,'Input|Rate of change'!P$27:P$32),INDEX('Input|Rate of change'!$C$14:$O$22,MATCH('Input|Step changes'!$F28,'Input|Rate of change'!$C$14:$C$22,0),MATCH('Calc|Opex forecast'!$F90,'Input|Rate of change'!$C$14:$O$14,0)))*IF('Input|Step changes'!$E28="$millions",1000000,IF('Input|Step changes'!$E28="$000",1000,1))/IF($E90="$millions",1000000,IF($E90="$000",1000,1)) -> 0 | M90: =IF('Input|Step changes'!M28="",0,'Input|Step changes'!M28)*IF('Input|Step changes'!$F28="nominal",LOOKUP($F90,Nominal_to_Real,'Input|Rate of change'!Q$27:Q$32),INDEX('Input|Rate of change'!$C$14:$O$22,MATCH('Input|Step changes'!$F28,'Input|Rate of change'!$C$14:$C$22,0),MATCH('Calc|Opex forecast'!$F90,'Input|Rate of change'!$C$14:$O$14,0)))*IF('Input|Step changes'!$E28="$millions",1000000,IF('Input|Step changes'!$E28="$000",1000,1))/IF($E90="$millions",1000000,IF($E90="$000",1000,1)) -> 0 | N90: =IF('Input|Step changes'!N28="",0,'Input|Step changes'!N28)*IF('Input|Step changes'!$F28="nominal",LOOKUP($F90,Nominal_to_Real,'Input|Rate of change'!R$27:R$32),INDEX('Input|Rate of change'!$C$14:$O$22,MATCH('Input|Step changes'!$F28,'Input|Rate of change'!$C$14:$C$22,0),MATCH('Calc|Opex forecast'!$F90,'Input|Rate of change'!$C$14:$O$14,0)))*IF('Input|Step changes'!$E28="$millions",1000000,IF('Input|Step changes'!$E28="$000",1000,1))/IF($E90="$millions",1000000,IF($E90="$000",1000,1)) -> 0 | O90: ='Input|Step changes'!O28*'Input|Rate of change'!$O$21 -> 8.539676537 | P90: ='Input|Step changes'!P28*'Input|Rate of change'!$O$21 -> 8.794196738 | Q90: ='Input|Step changes'!Q28*'Input|Rate of change'!$O$21 -> 9.054057418 | R90: ='Input|Step changes'!R28*'Input|Rate of change'!$O$21 -> 9.320515243 | S90: ='Input|Step changes'!S28*'Input|Rate of change'!$O$21 -> 9.588752126
C91: ='Input|Step changes'!C29 -> EIL | D91: Calculated | E91: $millions | F91: =$F$8 -> 2021-06-01 | J91: =IF('Input|Step changes'!J29="",0,'Input|Step changes'!J29)*IF('Input|Step changes'!$F29="nominal",LOOKUP($F91,Nominal_to_Real,'Input|Rate of change'!N$27:N$32),INDEX('Input|Rate of change'!$C$14:$O$22,MATCH('Input|Step changes'!$F29,'Input|Rate of change'!$C$14:$C$22,0),MATCH('Calc|Opex forecast'!$F91,'Input|Rate of change'!$C$14:$O$14,0)))*IF('Input|Step changes'!$E29="$millions",1000000,IF('Input|Step changes'!$E29="$000",1000,1))/IF($E91="$millions",1000000,IF($E91="$000",1000,1)) -> 0 | K91: =IF('Input|Step changes'!K29="",0,'Input|Step changes'!K29)*IF('Input|Step changes'!$F29="nominal",LOOKUP($F91,Nominal_to_Real,'Input|Rate of change'!O$27:O$32),INDEX('Input|Rate of change'!$C$14:$O$22,MATCH('Input|Step changes'!$F29,'Input|Rate of change'!$C$14:$C$22,0),MATCH('Calc|Opex forecast'!$F91,'Input|Rate of change'!$C$14:$O$14,0)))*IF('Input|Step changes'!$E29="$millions",1000000,IF('Input|Step changes'!$E29="$000",1000,1))/IF($E91="$millions",1000000,IF($E91="$000",1000,1)) -> 0 | L91: =IF('Input|Step changes'!L29="",0,'Input|Step changes'!L29)*IF('Input|Step changes'!$F29="nominal",LOOKUP($F91,Nominal_to_Real,'Input|Rate of change'!P$27:P$32),INDEX('Input|Rate of change'!$C$14:$O$22,MATCH('Input|Step changes'!$F29,'Input|Rate of change'!$C$14:$C$22,0),MATCH('Calc|Opex forecast'!$F91,'Input|Rate of change'!$C$14:$O$14,0)))*IF('Input|Step changes'!$E29="$millions",1000000,IF('Input|Step changes'!$E29="$000",1000,1))/IF($E91="$millions",1000000,IF($E91="$000",1000,1)) -> 0 | M91: =IF('Input|Step changes'!M29="",0,'Input|Step changes'!M29)*IF('Input|Step changes'!$F29="nominal",LOOKUP($F91,Nominal_to_Real,'Input|Rate of change'!Q$27:Q$32),INDEX('Input|Rate of change'!$C$14:$O$22,MATCH('Input|Step changes'!$F29,'Input|Rate of change'!$C$14:$C$22,0),MATCH('Calc|Opex forecast'!$F91,'Input|Rate of change'!$C$14:$O$14,0)))*IF('Input|Step changes'!$E29="$millions",1000000,IF('Input|Step changes'!$E29="$000",1000,1))/IF($E91="$millions",1000000,IF($E91="$000",1000,1)) -> 0 | N91: =IF('Input|Step changes'!N29="",0,'Input|Step changes'!N29)*IF('Input|Step changes'!$F29="nominal",LOOKUP($F91,Nominal_to_Real,'Input|Rate of change'!R$27:R$32),INDEX('Input|Rate of change'!$C$14:$O$22,MATCH('Input|Step changes'!$F29,'Input|Rate of change'!$C$14:$C$22,0),MATCH('Calc|Opex forecast'!$F91,'Input|Rate of change'!$C$14:$O$14,0)))*IF('Input|Step changes'!$E29="$millions",1000000,IF('Input|Step changes'!$E29="$000",1000,1))/IF($E91="$millions",1000000,IF($E91="$000",1000,1)) -> 0 | O91: ='Input|Step changes'!O29*'Input|Rate of change'!$O$21 -> 0.6958668896 | P91: ='Input|Step changes'!P29*'Input|Rate of change'!$O$21 -> 0.6705456089 | Q91: ='Input|Step changes'!Q29*'Input|Rate of change'!$O$21 -> 0.6398357854 | R91: ='Input|Step changes'!R29*'Input|Rate of change'!$O$21 -> 0.6109452114 | S91: ='Input|Step changes'!S29*'Input|Rate of change'!$O$21 -> 0.584474955
C92: ='Input|Step changes'!C30 -> UAG | D92: Calculated | E92: $millions | F92: =$F$8 -> 2021-06-01 | J92: =IF('Input|Step changes'!J30="",0,'Input|Step changes'!J30)*IF('Input|Step changes'!$F30="nominal",LOOKUP($F92,Nominal_to_Real,'Input|Rate of change'!N$27:N$32),INDEX('Input|Rate of change'!$C$14:$O$22,MATCH('Input|Step changes'!$F30,'Input|Rate of change'!$C$14:$C$22,0),MATCH('Calc|Opex forecast'!$F92,'Input|Rate of change'!$C$14:$O$14,0)))*IF('Input|Step changes'!$E30="$millions",1000000,IF('Input|Step changes'!$E30="$000",1000,1))/IF($E92="$millions",1000000,IF($E92="$000",1000,1)) -> 0 | K92: =IF('Input|Step changes'!K30="",0,'Input|Step changes'!K30)*IF('Input|Step changes'!$F30="nominal",LOOKUP($F92,Nominal_to_Real,'Input|Rate of change'!O$27:O$32),INDEX('Input|Rate of change'!$C$14:$O$22,MATCH('Input|Step changes'!$F30,'Input|Rate of change'!$C$14:$C$22,0),MATCH('Calc|Opex forecast'!$F92,'Input|Rate of change'!$C$14:$O$14,0)))*IF('Input|Step changes'!$E30="$millions",1000000,IF('Input|Step changes'!$E30="$000",1000,1))/IF($E92="$millions",1000000,IF($E92="$000",1000,1)) -> 0 | L92: =IF('Input|Step changes'!L30="",0,'Input|Step changes'!L30)*IF('Input|Step changes'!$F30="nominal",LOOKUP($F92,Nominal_to_Real,'Input|Rate of change'!P$27:P$32),INDEX('Input|Rate of change'!$C$14:$O$22,MATCH('Input|Step changes'!$F30,'Input|Rate of change'!$C$14:$C$22,0),MATCH('Calc|Opex forecast'!$F92,'Input|Rate of change'!$C$14:$O$14,0)))*IF('Input|Step changes'!$E30="$millions",1000000,IF('Input|Step changes'!$E30="$000",1000,1))/IF($E92="$millions",1000000,IF($E92="$000",1000,1)) -> 0 | M92: =IF('Input|Step changes'!M30="",0,'Input|Step changes'!M30)*IF('Input|Step changes'!$F30="nominal",LOOKUP($F92,Nominal_to_Real,'Input|Rate of change'!Q$27:Q$32),INDEX('Input|Rate of change'!$C$14:$O$22,MATCH('Input|Step changes'!$F30,'Input|Rate of change'!$C$14:$C$22,0),MATCH('Calc|Opex forecast'!$F92,'Input|Rate of change'!$C$14:$O$14,0)))*IF('Input|Step changes'!$E30="$millions",1000000,IF('Input|Step changes'!$E30="$000",1000,1))/IF($E92="$millions",1000000,IF($E92="$000",1000,1)) -> 0 | N92: =IF('Input|Step changes'!N30="",0,'Input|Step changes'!N30)*IF('Input|Step changes'!$F30="nominal",LOOKUP($F92,Nominal_to_Real,'Input|Rate of change'!R$27:R$32),INDEX('Input|Rate of change'!$C$14:$O$22,MATCH('Input|Step changes'!$F30,'Input|Rate of change'!$C$14:$C$22,0),MATCH('Calc|Opex forecast'!$F92,'Input|Rate of change'!$C$14:$O$14,0)))*IF('Input|Step changes'!$E30="$millions",1000000,IF('Input|Step changes'!$E30="$000",1000,1))/IF($E92="$millions",1000000,IF($E92="$000",1000,1)) -> 0 | O92: ='Input|Step changes'!O30*'Input|Rate of change'!$O$21 -> 1.438418869 | P92: ='Input|Step changes'!P30*'Input|Rate of change'!$O$21 -> 1.978548912 | Q92: ='Input|Step changes'!Q30*'Input|Rate of change'!$O$21 -> 1.943453871 | R92: ='Input|Step changes'!R30*'Input|Rate of change'!$O$21 -> 2.024178232 | S92: ='Input|Step changes'!S30*'Input|Rate of change'!$O$21 -> 2.077503403
C93: ='Input|Step changes'!C31 -> ITAUF | D93: Calculated | E93: $millions | F93: =$F$8 -> 2021-06-01 | J93: =IF('Input|Step changes'!J31="",0,'Input|Step changes'!J31)*IF('Input|Step changes'!$F31="nominal",LOOKUP($F93,Nominal_to_Real,'Input|Rate of change'!N$27:N$32),INDEX('Input|Rate of change'!$C$14:$O$22,MATCH('Input|Step changes'!$F31,'Input|Rate of change'!$C$14:$C$22,0),MATCH('Calc|Opex forecast'!$F93,'Input|Rate of change'!$C$14:$O$14,0)))*IF('Input|Step changes'!$E31="$millions",1000000,IF('Input|Step changes'!$E31="$000",1000,1))/IF($E93="$millions",1000000,IF($E93="$000",1000,1)) -> 0 | K93: =IF('Input|Step changes'!K31="",0,'Input|Step changes'!K31)*IF('Input|Step changes'!$F31="nominal",LOOKUP($F93,Nominal_to_Real,'Input|Rate of change'!O$27:O$32),INDEX('Input|Rate of change'!$C$14:$O$22,MATCH('Input|Step changes'!$F31,'Input|Rate of change'!$C$14:$C$22,0),MATCH('Calc|Opex forecast'!$F93,'Input|Rate of change'!$C$14:$O$14,0)))*IF('Input|Step changes'!$E31="$millions",1000000,IF('Input|Step changes'!$E31="$000",1000,1))/IF($E93="$millions",1000000,IF($E93="$000",1000,1)) -> 0 | L93: =IF('Input|Step changes'!L31="",0,'Input|Step changes'!L31)*IF('Input|Step changes'!$F31="nominal",LOOKUP($F93,Nominal_to_Real,'Input|Rate of change'!P$27:P$32),INDEX('Input|Rate of change'!$C$14:$O$22,MATCH('Input|Step changes'!$F31,'Input|Rate of change'!$C$14:$C$22,0),MATCH('Calc|Opex forecast'!$F93,'Input|Rate of change'!$C$14:$O$14,0)))*IF('Input|Step changes'!$E31="$millions",1000000,IF('Input|Step changes'!$E31="$000",1000,1))/IF($E93="$millions",1000000,IF($E93="$000",1000,1)) -> 0 | M93: =IF('Input|Step changes'!M31="",0,'Input|Step changes'!M31)*IF('Input|Step changes'!$F31="nominal",LOOKUP($F93,Nominal_to_Real,'Input|Rate of change'!Q$27:Q$32),INDEX('Input|Rate of change'!$C$14:$O$22,MATCH('Input|Step changes'!$F31,'Input|Rate of change'!$C$14:$C$22,0),MATCH('Calc|Opex forecast'!$F93,'Input|Rate of change'!$C$14:$O$14,0)))*IF('Input|Step changes'!$E31="$millions",1000000,IF('Input|Step changes'!$E31="$000",1000,1))/IF($E93="$millions",1000000,IF($E93="$000",1000,1)) -> 0 | N93: =IF('Input|Step changes'!N31="",0,'Input|Step changes'!N31)*IF('Input|Step changes'!$F31="nominal",LOOKUP($F93,Nominal_to_Real,'Input|Rate of change'!R$27:R$32),INDEX('Input|Rate of change'!$C$14:$O$22,MATCH('Input|Step changes'!$F31,'Input|Rate of change'!$C$14:$C$22,0),MATCH('Calc|Opex forecast'!$F93,'Input|Rate of change'!$C$14:$O$14,0)))*IF('Input|Step changes'!$E31="$millions",1000000,IF('Input|Step changes'!$E31="$000",1000,1))/IF($E93="$millions",1000000,IF($E93="$000",1000,1)) -> 0 | O93: ='Input|Step changes'!O31*'Input|Rate of change'!$O$21 -> 0 | P93: ='Input|Step changes'!P31*'Input|Rate of change'!$O$21 -> 0 | Q93: ='Input|Step changes'!Q31*'Input|Rate of change'!$O$21 -> 0 | R93: ='Input|Step changes'!R31*'Input|Rate of change'!$O$21 -> 0.28815 | S93: ='Input|Step changes'!S31*'Input|Rate of change'!$O$21 -> 0.28152
C94: ='Input|Step changes'!C32 -> 0 | D94: Calculated | E94: $millions | F94: =$F$8 -> 2021-06-01 | J94: =IF('Input|Step changes'!J32="",0,'Input|Step changes'!J32)*IF('Input|Step changes'!$F32="nominal",LOOKUP($F94,Nominal_to_Real,'Input|Rate of change'!N$27:N$32),INDEX('Input|Rate of change'!$C$14:$O$22,MATCH('Input|Step changes'!$F32,'Input|Rate of change'!$C$14:$C$22,0),MATCH('Calc|Opex forecast'!$F94,'Input|Rate of change'!$C$14:$O$14,0)))*IF('Input|Step changes'!$E32="$millions",1000000,IF('Input|Step changes'!$E32="$000",1000,1))/IF($E94="$millions",1000000,IF($E94="$000",1000,1)) -> 0 | K94: =IF('Input|Step changes'!K32="",0,'Input|Step changes'!K32)*IF('Input|Step changes'!$F32="nominal",LOOKUP($F94,Nominal_to_Real,'Input|Rate of change'!O$27:O$32),INDEX('Input|Rate of change'!$C$14:$O$22,MATCH('Input|Step changes'!$F32,'Input|Rate of change'!$C$14:$C$22,0),MATCH('Calc|Opex forecast'!$F94,'Input|Rate of change'!$C$14:$O$14,0)))*IF('Input|Step changes'!$E32="$millions",1000000,IF('Input|Step changes'!$E32="$000",1000,1))/IF($E94="$millions",1000000,IF($E94="$000",1000,1)) -> 0 | L94: =IF('Input|Step changes'!L32="",0,'Input|Step changes'!L32)*IF('Input|Step changes'!$F32="nominal",LOOKUP($F94,Nominal_to_Real,'Input|Rate of change'!P$27:P$32),INDEX('Input|Rate of change'!$C$14:$O$22,MATCH('Input|Step changes'!$F32,'Input|Rate of change'!$C$14:$C$22,0),MATCH('Calc|Opex forecast'!$F94,'Input|Rate of change'!$C$14:$O$14,0)))*IF('Input|Step changes'!$E32="$millions",1000000,IF('Input|Step changes'!$E32="$000",1000,1))/IF($E94="$millions",1000000,IF($E94="$000",1000,1)) -> 0 | M94: =IF('Input|Step changes'!M32="",0,'Input|Step changes'!M32)*IF('Input|Step changes'!$F32="nominal",LOOKUP($F94,Nominal_to_Real,'Input|Rate of change'!Q$27:Q$32),INDEX('Input|Rate of change'!$C$14:$O$22,MATCH('Input|Step changes'!$F32,'Input|Rate of change'!$C$14:$C$22,0),MATCH('Calc|Opex forecast'!$F94,'Input|Rate of change'!$C$14:$O$14,0)))*IF('Input|Step changes'!$E32="$millions",1000000,IF('Input|Step changes'!$E32="$000",1000,1))/IF($E94="$millions",1000000,IF($E94="$000",1000,1)) -> 0 | N94: =IF('Input|Step changes'!N32="",0,'Input|Step changes'!N32)*IF('Input|Step changes'!$F32="nominal",LOOKUP($F94,Nominal_to_Real,'Input|Rate of change'!R$27:R$32),INDEX('Input|Rate of change'!$C$14:$O$22,MATCH('Input|Step changes'!$F32,'Input|Rate of change'!$C$14:$C$22,0),MATCH('Calc|Opex forecast'!$F94,'Input|Rate of change'!$C$14:$O$14,0)))*IF('Input|Step changes'!$E32="$millions",1000000,IF('Input|Step changes'!$E32="$000",1000,1))/IF($E94="$millions",1000000,IF($E94="$000",1000,1)) -> 0 | O94: =IF('Input|Step changes'!O32="",0,'Input|Step changes'!O32)*IF('Input|Step changes'!$F32="nominal",LOOKUP($F94,Nominal_to_Real,'Input|Rate of change'!S$27:S$32),INDEX('Input|Rate of change'!$C$14:$O$22,MATCH('Input|Step changes'!$F32,'Input|Rate of change'!$C$14:$C$22,0),MATCH('Calc|Opex forecast'!$F94,'Input|Rate of change'!$C$14:$O$14,0)))*IF('Input|Step changes'!$E32="$millions",1000000,IF('Input|Step changes'!$E32="$000",1000,1))/IF($E94="$millions",1000000,IF($E94="$000",1000,1)) -> 0 | P94: =IF('Input|Step changes'!P32="",0,'Input|Step changes'!P32)*IF('Input|Step changes'!$F32="nominal",LOOKUP($F94,Nominal_to_Real,'Input|Rate of change'!T$27:T$32),INDEX('Input|Rate of change'!$C$14:$O$22,MATCH('Input|Step changes'!$F32,'Input|Rate of change'!$C$14:$C$22,0),MATCH('Calc|Opex forecast'!$F94,'Input|Rate of change'!$C$14:$O$14,0)))*IF('Input|Step changes'!$E32="$millions",1000000,IF('Input|Step changes'!$E32="$000",1000,1))/IF($E94="$millions",1000000,IF($E94="$000",1000,1)) -> 0 | Q94: =IF('Input|Step changes'!Q32="",0,'Input|Step changes'!Q32)*IF('Input|Step changes'!$F32="nominal",LOOKUP($F94,Nominal_to_Real,'Input|Rate of change'!U$27:U$32),INDEX('Input|Rate of change'!$C$14:$O$22,MATCH('Input|Step changes'!$F32,'Input|Rate of change'!$C$14:$C$22,0),MATCH('Calc|Opex forecast'!$F94,'Input|Rate of change'!$C$14:$O$14,0)))*IF('Input|Step changes'!$E32="$millions",1000000,IF('Input|Step changes'!$E32="$000",1000,1))/IF($E94="$millions",1000000,IF($E94="$000",1000,1)) -> 0 | R94: =IF('Input|Step changes'!R32="",0,'Input|Step changes'!R32)*IF('Input|Step changes'!$F32="nominal",LOOKUP($F94,Nominal_to_Real,'Input|Rate of change'!V$27:V$32),INDEX('Input|Rate of change'!$C$14:$O$22,MATCH('Input|Step changes'!$F32,'Input|Rate of change'!$C$14:$C$22,0),MATCH('Calc|Opex forecast'!$F94,'Input|Rate of change'!$C$14:$O$14,0)))*IF('Input|Step changes'!$E32="$millions",1000000,IF('Input|Step changes'!$E32="$000",1000,1))/IF($E94="$millions",1000000,IF($E94="$000",1000,1)) -> 0 | S94: =IF('Input|Step changes'!S32="",0,'Input|Step changes'!S32)*IF('Input|Step changes'!$F32="nominal",LOOKUP($F94,Nominal_to_Real,'Input|Rate of change'!W$27:W$32),INDEX('Input|Rate of change'!$C$14:$O$22,MATCH('Input|Step changes'!$F32,'Input|Rate of change'!$C$14:$C$22,0),MATCH('Calc|Opex forecast'!$F94,'Input|Rate of change'!$C$14:$O$14,0)))*IF('Input|Step changes'!$E32="$millions",1000000,IF('Input|Step changes'!$E32="$000",1000,1))/IF($E94="$millions",1000000,IF($E94="$000",1000,1)) -> 0
C96: Total category specific forecasts | D96: Calculated | E96: =$E$8 -> $millions | F96: =$F$8 -> 2021-06-01 | J96: =SUM(J89:J95) -> 0 | K96: 0 | L96: 0 | M96: 0 | N96: 0 | O96: 10.6739623 | P96: 11.44329126 | Q96: 11.63734707 | R96: 12.24378869 | S96: 12.53225048
B98: Calc | Total forecast operating expenditure
J100: =IF(YEAR(J$4)>='Input|General'!$G$13,IF(YEAR(J$4)<='Input|General'!$G$14,J$4,""),"") ->  | K100: =IF(YEAR(K$4)>='Input|General'!$G$13,IF(YEAR(K$4)<='Input|General'!$G$14,K$4,""),"") ->  | L100: =IF(YEAR(L$4)>='Input|General'!$G$13,IF(YEAR(L$4)<='Input|General'!$G$14,L$4,""),"") ->  | M100: =IF(YEAR(M$4)>='Input|General'!$G$13,IF(YEAR(M$4)<='Input|General'!$G$14,M$4,""),"") ->  | N100: =IF(YEAR(N$4)>='Input|General'!$G$13,IF(YEAR(N$4)<='Input|General'!$G$14,N$4,""),"") ->  | O100: =IF(YEAR(O$4)>='Input|General'!$G$13,IF(YEAR(O$4)<='Input|General'!$G$14,O$4,""),"") -> 2022-06-01 | P100: =IF(YEAR(P$4)>='Input|General'!$G$13,IF(YEAR(P$4)<='Input|General'!$G$14,P$4,""),"") -> 2023-06-01 | Q100: =IF(YEAR(Q$4)>='Input|General'!$G$13,IF(YEAR(Q$4)<='Input|General'!$G$14,Q$4,""),"") -> 2024-06-01 | R100: =IF(YEAR(R$4)>='Input|General'!$G$13,IF(YEAR(R$4)<='Input|General'!$G$14,R$4,""),"") -> 2025-06-01 | S100: =IF(YEAR(S$4)>='Input|General'!$G$13,IF(YEAR(S$4)<='Input|General'!$G$14,S$4,""),"") -> 2026-06-01
C102: Total forecast opex, excluding category specific forecasts | D102: Calculated | E102: =$E$8 -> $millions | F102: =$F$8 -> 2021-06-01 | J102: =IF(YEAR(J$4)>=FPFirstYear,IF(YEAR(J$4)<=FPLastYear,IF(ISBLANK(J100),"",(1+J68)*SUM($J54:$S54)+J84),""),"") ->  | O102: 22.07037087 | P102: =IF(YEAR(P$4)>=FPFirstYear,IF(YEAR(P$4)<=FPLastYear,IF(ISBLANK(P100),"",(1+P68)*SUM($J54:$S54)+P84),""),"") -> 22.65797756 | Q102: 21.84101596 | R102: 22.0186676 | S102: 22.89333904
C103: Total forecast opex, excluding debt raising costs | D103: Calculated | E103: =$E$8 -> $millions | F103: =$F$8 -> 2021-06-01 | J103: =IF(YEAR(J$4)>=FPFirstYear,IF(YEAR(J$4)<=FPLastYear,IF(ISBLANK(J100),"",(1+J68)*SUM($J54:$S54)+J84+J96),""),"") ->  | O103: 32.74433317 | P103: 34.10126882 | Q103: 33.47836303 | R103: 34.26245629 | S103: 35.42558952
C104: Total forecast opex, including debt raising costs | D104: Calculated | E104: =$E$8 -> $millions | F104: =$F$8 -> 2021-06-01 | J104: =IF(YEAR(J$4)>=FPFirstYear,IF(YEAR(J$4)<=FPLastYear,J103+'Input|Step changes'!J40,""),"") ->  | K104: =IF(YEAR(K$4)>=FPFirstYear,IF(YEAR(K$4)<=FPLastYear,K103+'Input|Step changes'!K40,""),"") ->  | L104: =IF(YEAR(L$4)>=FPFirstYear,IF(YEAR(L$4)<=FPLastYear,L103+'Input|Step changes'!L40,""),"") ->  | M104: =IF(YEAR(M$4)>=FPFirstYear,IF(YEAR(M$4)<=FPLastYear,M103+'Input|Step changes'!M40,""),"") ->  | N104: =IF(YEAR(N$4)>=FPFirstYear,IF(YEAR(N$4)<=FPLastYear,N103+'Input|Step changes'!N40,""),"") ->  | O104: =IF(YEAR(O$4)>=FPFirstYear,IF(YEAR(O$4)<=FPLastYear,O103+'Input|Step changes'!O40,""),"") -> 32.93839542 | P104: =IF(YEAR(P$4)>=FPFirstYear,IF(YEAR(P$4)<=FPLastYear,P103+'Input|Step changes'!P40,""),"") -> 34.29517863 | Q104: =IF(YEAR(Q$4)>=FPFirstYear,IF(YEAR(Q$4)<=FPLastYear,Q103+'Input|Step changes'!Q40,""),"") -> 33.671559 | R104: =IF(YEAR(R$4)>=FPFirstYear,IF(YEAR(R$4)<=FPLastYear,R103+'Input|Step changes'!R40,""),"") -> 34.45316678 | S104: =IF(YEAR(S$4)>=FPFirstYear,IF(YEAR(S$4)<=FPLastYear,S103+'Input|Step changes'!S40,""),"") -> 35.61288095
B106: End

Sheet Output|Models
B1: =Index!$B$1 -> AER opex model | J1: Back to Index | L1: Key: | M1: Input | N1: External Link | O1: Internal Link | R1: Worksheet check: | S1: =IF(COUNTA($W$8:$W$22)=COUNTIF($W$8:$W$22,"OK"),"OK","Check") -> OK | U1: Overall Check: | V1: ='Check|List'!$S$1 -> Ok
B2: =Index!$C$14 -> Output | Models
J3: Year ending
D4: Source | E4: Unit | F4: Basis | J4: =DATE(PPFirstYear,MONTH('Input|General'!$G$9),1) -> 2017-06-01 | K4: =DATE(PPFirstYear+1,MONTH('Input|General'!$G$9),1) -> 2018-06-01 | L4: =DATE(PPFirstYear+2,MONTH('Input|General'!$G$9),1) -> 2019-06-01 | M4: =DATE(PPFirstYear+3,MONTH('Input|General'!$G$9),1) -> 2020-06-01 | N4: =DATE(PPFirstYear+4,MONTH('Input|General'!$G$9),1) -> 2021-06-01 | O4: =DATE(PPFirstYear+5,MONTH('Input|General'!$G$9),1) -> 2022-06-01 | P4: =DATE(PPFirstYear+6,MONTH('Input|General'!$G$9),1) -> 2023-06-01 | Q4: =DATE(PPFirstYear+7,MONTH('Input|General'!$G$9),1) -> 2024-06-01 | R4: =DATE(PPFirstYear+8,MONTH('Input|General'!$G$9),1) -> 2025-06-01 | S4: =DATE(PPFirstYear+9,MONTH('Input|General'!$G$9),1) -> 2026-06-01
B8: Inputs for Post Tax Revenue Model | E8: $millions | F8: =DATE(PPLastYear,MONTH('Input|General'!$G$9),1) -> 2021-06-01 | J8: Note. The dollar base should be consistent with the post tax revenue model
C11: Operating expenditure | D11: Source | E11: Unit | F11: Basis | J11: =IF(YEAR(J$4)>='Input|General'!$G$13,IF(YEAR(J$4)<='Input|General'!$G$14,J$4,""),"") ->  | K11: =IF(YEAR(K$4)>='Input|General'!$G$13,IF(YEAR(K$4)<='Input|General'!$G$14,K$4,""),"") ->  | L11: =IF(YEAR(L$4)>='Input|General'!$G$13,IF(YEAR(L$4)<='Input|General'!$G$14,L$4,""),"") ->  | M11: =IF(YEAR(M$4)>='Input|General'!$G$13,IF(YEAR(M$4)<='Input|General'!$G$14,M$4,""),"") ->  | N11: =IF(YEAR(N$4)>='Input|General'!$G$13,IF(YEAR(N$4)<='Input|General'!$G$14,N$4,""),"") ->  | O11: =IF(YEAR(O$4)>='Input|General'!$G$13,IF(YEAR(O$4)<='Input|General'!$G$14,O$4,""),"") -> 2022-06-01 | P11: =IF(YEAR(P$4)>='Input|General'!$G$13,IF(YEAR(P$4)<='Input|General'!$G$14,P$4,""),"") -> 2023-06-01 | Q11: =IF(YEAR(Q$4)>='Input|General'!$G$13,IF(YEAR(Q$4)<='Input|General'!$G$14,Q$4,""),"") -> 2024-06-01 | R11: =IF(YEAR(R$4)>='Input|General'!$G$13,IF(YEAR(R$4)<='Input|General'!$G$14,R$4,""),"") -> 2025-06-01 | S11: =IF(YEAR(S$4)>='Input|General'!$G$13,IF(YEAR(S$4)<='Input|General'!$G$14,S$4,""),"") -> 2026-06-01 | U11: Notes
C13: ='Calc|Opex forecast'!C102 -> Total forecast opex, excluding category specific forecasts | D13: Calc | Opex forecast | E13: =$E$8 -> $millions | F13: =$F$8 -> 2021-06-01 | J13: =IF(J11="",0,'Calc|Opex forecast'!J102*IF('Calc|Opex forecast'!$F$102="nominal",LOOKUP($F13,Nominal_to_Real,'Input|Rate of change'!P$27:P$32),INDEX('Input|Rate of change'!$C$14:$O$22,MATCH('Calc|Opex forecast'!$F$102,'Input|Rate of change'!$C$14:$C$22,0),MATCH('Output|Models'!$F13,'Input|Rate of change'!$C$14:$O$14,0)))*IF('Calc|Opex forecast'!$E$102="$millions",1000000,IF('Calc|Opex forecast'!$E$102="$000",1000,1))/IF($E13="$millions",1000000,IF($E13="$000",1000,1))) -> 0 | K13: =IF(K11="",0,'Calc|Opex forecast'!K102*IF('Calc|Opex forecast'!$F$102="nominal",LOOKUP($F13,Nominal_to_Real,'Input|Rate of change'!Q$27:Q$32),INDEX('Input|Rate of change'!$C$14:$O$22,MATCH('Calc|Opex forecast'!$F$102,'Input|Rate of change'!$C$14:$C$22,0),MATCH('Output|Models'!$F13,'Input|Rate of change'!$C$14:$O$14,0)))*IF('Calc|Opex forecast'!$E$102="$millions",1000000,IF('Calc|Opex forecast'!$E$102="$000",1000,1))/IF($E13="$millions",1000000,IF($E13="$000",1000,1))) -> 0 | L13: =IF(L11="",0,'Calc|Opex forecast'!L102*IF('Calc|Opex forecast'!$F$102="nominal",LOOKUP($F13,Nominal_to_Real,'Input|Rate of change'!R$27:R$32),INDEX('Input|Rate of change'!$C$14:$O$22,MATCH('Calc|Opex forecast'!$F$102,'Input|Rate of change'!$C$14:$C$22,0),MATCH('Output|Models'!$F13,'Input|Rate of change'!$C$14:$O$14,0)))*IF('Calc|Opex forecast'!$E$102="$millions",1000000,IF('Calc|Opex forecast'!$E$102="$000",1000,1))/IF($E13="$millions",1000000,IF($E13="$000",1000,1))) -> 0 | M13: =IF(M11="",0,'Calc|Opex forecast'!M102*IF('Calc|Opex forecast'!$F$102="nominal",LOOKUP($F13,Nominal_to_Real,'Input|Rate of change'!S$27:S$32),INDEX('Input|Rate of change'!$C$14:$O$22,MATCH('Calc|Opex forecast'!$F$102,'Input|Rate of change'!$C$14:$C$22,0),MATCH('Output|Models'!$F13,'Input|Rate of change'!$C$14:$O$14,0)))*IF('Calc|Opex forecast'!$E$102="$millions",1000000,IF('Calc|Opex forecast'!$E$102="$000",1000,1))/IF($E13="$millions",1000000,IF($E13="$000",1000,1))) -> 0 | N13: =IF(N11="",0,'Calc|Opex forecast'!N102*IF('Calc|Opex forecast'!$F$102="nominal",LOOKUP($F13,Nominal_to_Real,'Input|Rate of change'!T$27:T$32),INDEX('Input|Rate of change'!$C$14:$O$22,MATCH('Calc|Opex forecast'!$F$102,'Input|Rate of change'!$C$14:$C$22,0),MATCH('Output|Models'!$F13,'Input|Rate of change'!$C$14:$O$14,0)))*IF('Calc|Opex forecast'!$E$102="$millions",1000000,IF('Calc|Opex forecast'!$E$102="$000",1000,1))/IF($E13="$millions",1000000,IF($E13="$000",1000,1))) -> 0 | O13: =IF(O11="",0,'Calc|Opex forecast'!O102*IF('Calc|Opex forecast'!$F$102="nominal",LOOKUP($F13,Nominal_to_Real,'Input|Rate of change'!U$27:U$32),INDEX('Input|Rate of change'!$C$14:$O$22,MATCH('Calc|Opex forecast'!$F$102,'Input|Rate of change'!$C$14:$C$22,0),MATCH('Output|Models'!$F13,'Input|Rate of change'!$C$14:$O$14,0)))*IF('Calc|Opex forecast'!$E$102="$millions",1000000,IF('Calc|Opex forecast'!$E$102="$000",1000,1))/IF($E13="$millions",1000000,IF($E13="$000",1000,1)))+ IF(O$11="",0,'Calc|Opex forecast'!O93*IF('Calc|Opex forecast'!$F93="nominal",LOOKUP($F17,Nominal_to_Real,'Input|Rate of change'!U$27:U$32),INDEX('Input|Rate of change'!$C$14:$O$22,MATCH('Calc|Opex forecast'!$F93,'Input|Rate of change'!$C$14:$C$22,0),MATCH('Output|Models'!$F17,'Input|Rate of change'!$C$14:$O$14,0)))*IF('Calc|Opex forecast'!$E93="$millions",1000000,IF('Calc|Opex forecast'!$E93="$000",1000,1))/IF($E17="$millions",1000000,IF($E17="$000",1000,1))) -> 22.07037087 | P13: =IF(P11="",0,'Calc|Opex forecast'!P102*IF('Calc|Opex forecast'!$F$102="nominal",LOOKUP($F13,Nominal_to_Real,'Input|Rate of change'!V$27:V$32),INDEX('Input|Rate of change'!$C$14:$O$22,MATCH('Calc|Opex forecast'!$F$102,'Input|Rate of change'!$C$14:$C$22,0),MATCH('Output|Models'!$F13,'Input|Rate of change'!$C$14:$O$14,0)))*IF('Calc|Opex forecast'!$E$102="$millions",1000000,IF('Calc|Opex forecast'!$E$102="$000",1000,1))/IF($E13="$millions",1000000,IF($E13="$000",1000,1)))+ IF(P$11="",0,'Calc|Opex forecast'!P93*IF('Calc|Opex forecast'!$F93="nominal",LOOKUP($F17,Nominal_to_Real,'Input|Rate of change'!V$27:V$32),INDEX('Input|Rate of change'!$C$14:$O$22,MATCH('Calc|Opex forecast'!$F93,'Input|Rate of change'!$C$14:$C$22,0),MATCH('Output|Models'!$F17,'Input|Rate of change'!$C$14:$O$14,0)))*IF('Calc|Opex forecast'!$E93="$millions",1000000,IF('Calc|Opex forecast'!$E93="$000",1000,1))/IF($E17="$millions",1000000,IF($E17="$000",1000,1))) -> 22.65797756 | Q13: =IF(Q11="",0,'Calc|Opex forecast'!Q102*IF('Calc|Opex forecast'!$F$102="nominal",LOOKUP($F13,Nominal_to_Real,'Input|Rate of change'!W$27:W$32),INDEX('Input|Rate of change'!$C$14:$O$22,MATCH('Calc|Opex forecast'!$F$102,'Input|Rate of change'!$C$14:$C$22,0),MATCH('Output|Models'!$F13,'Input|Rate of change'!$C$14:$O$14,0)))*IF('Calc|Opex forecast'!$E$102="$millions",1000000,IF('Calc|Opex forecast'!$E$102="$000",1000,1))/IF($E13="$millions",1000000,IF($E13="$000",1000,1)))+ IF(Q$11="",0,'Calc|Opex forecast'!Q93*IF('Calc|Opex forecast'!$F93="nominal",LOOKUP($F17,Nominal_to_Real,'Input|Rate of change'!W$27:W$32),INDEX('Input|Rate of change'!$C$14:$O$22,MATCH('Calc|Opex forecast'!$F93,'Input|Rate of change'!$C$14:$C$22,0),MATCH('Output|Models'!$F17,'Input|Rate of change'!$C$14:$O$14,0)))*IF('Calc|Opex forecast'!$E93="$millions",1000000,IF('Calc|Opex forecast'!$E93="$000",1000,1))/IF($E17="$millions",1000000,IF($E17="$000",1000,1))) -> 21.84101596 | R13: =IF(R11="",0,'Calc|Opex forecast'!R102*IF('Calc|Opex forecast'!$F$102="nominal",LOOKUP($F13,Nominal_to_Real,'Input|Rate of change'!X$27:X$32),INDEX('Input|Rate of change'!$C$14:$O$22,MATCH('Calc|Opex forecast'!$F$102,'Input|Rate of change'!$C$14:$C$22,0),MATCH('Output|Models'!$F13,'Input|Rate of change'!$C$14:$O$14,0)))*IF('Calc|Opex forecast'!$E$102="$millions",1000000,IF('Calc|Opex forecast'!$E$102="$000",1000,1))/IF($E13="$millions",1000000,IF($E13="$000",1000,1)))+ IF(R$11="",0,'Calc|Opex forecast'!R93*IF('Calc|Opex forecast'!$F93="nominal",LOOKUP($F17,Nominal_to_Real,'Input|Rate of change'!X$27:X$32),INDEX('Input|Rate of change'!$C$14:$O$22,MATCH('Calc|Opex forecast'!$F93,'Input|Rate of change'!$C$14:$C$22,0),MATCH('Output|Models'!$F17,'Input|Rate of change'!$C$14:$O$14,0)))*IF('Calc|Opex forecast'!$E93="$millions",1000000,IF('Calc|Opex forecast'!$E93="$000",1000,1))/IF($E17="$millions",1000000,IF($E17="$000",1000,1))) -> 22.3068176 | S13: =IF(S11="",0,'Calc|Opex forecast'!S102*IF('Calc|Opex forecast'!$F$102="nominal",LOOKUP($F13,Nominal_to_Real,'Input|Rate of change'!Y$27:Y$32),INDEX('Input|Rate of change'!$C$14:$O$22,MATCH('Calc|Opex forecast'!$F$102,'Input|Rate of change'!$C$14:$C$22,0),MATCH('Output|Models'!$F13,'Input|Rate of change'!$C$14:$O$14,0)))*IF('Calc|Opex forecast'!$E$102="$millions",1000000,IF('Calc|Opex forecast'!$E$102="$000",1000,1))/IF($E13="$millions",1000000,IF($E13="$000",1000,1)))+ IF(S$11="",0,'Calc|Opex forecast'!S93*IF('Calc|Opex forecast'!$F93="nominal",LOOKUP($F17,Nominal_to_Real,'Input|Rate of change'!Y$27:Y$32),INDEX('Input|Rate of change'!$C$14:$O$22,MATCH('Calc|Opex forecast'!$F93,'Input|Rate of change'!$C$14:$C$22,0),MATCH('Output|Models'!$F17,'Input|Rate of change'!$C$14:$O$14,0)))*IF('Calc|Opex forecast'!$E93="$millions",1000000,IF('Calc|Opex forecast'!$E93="$000",1000,1))/IF($E17="$millions",1000000,IF($E17="$000",1000,1))) -> 23.17485904
C14: ='Input|Step changes'!C28 -> UNFT | D14: Calc | Opex forecast | E14: $millions | F14: 2021-06-01 | J14: =IF(J$11="",0,'Calc|Opex forecast'!J90*IF('Calc|Opex forecast'!$F90="nominal",LOOKUP($F14,Nominal_to_Real,'Input|Rate of change'!P$27:P$32),INDEX('Input|Rate of change'!$C$14:$O$22,MATCH('Calc|Opex forecast'!$F90,'Input|Rate of change'!$C$14:$C$22,0),MATCH('Output|Models'!$F14,'Input|Rate of change'!$C$14:$O$14,0)))*IF('Calc|Opex forecast'!$E90="$millions",1000000,IF('Calc|Opex forecast'!$E90="$000",1000,1))/IF($E14="$millions",1000000,IF($E14="$000",1000,1))) -> 0 | K14: =IF(K$11="",0,'Calc|Opex forecast'!K90*IF('Calc|Opex forecast'!$F90="nominal",LOOKUP($F14,Nominal_to_Real,'Input|Rate of change'!Q$27:Q$32),INDEX('Input|Rate of change'!$C$14:$O$22,MATCH('Calc|Opex forecast'!$F90,'Input|Rate of change'!$C$14:$C$22,0),MATCH('Output|Models'!$F14,'Input|Rate of change'!$C$14:$O$14,0)))*IF('Calc|Opex forecast'!$E90="$millions",1000000,IF('Calc|Opex forecast'!$E90="$000",1000,1))/IF($E14="$millions",1000000,IF($E14="$000",1000,1))) -> 0 | L14: =IF(L$11="",0,'Calc|Opex forecast'!L90*IF('Calc|Opex forecast'!$F90="nominal",LOOKUP($F14,Nominal_to_Real,'Input|Rate of change'!R$27:R$32),INDEX('Input|Rate of change'!$C$14:$O$22,MATCH('Calc|Opex forecast'!$F90,'Input|Rate of change'!$C$14:$C$22,0),MATCH('Output|Models'!$F14,'Input|Rate of change'!$C$14:$O$14,0)))*IF('Calc|Opex forecast'!$E90="$millions",1000000,IF('Calc|Opex forecast'!$E90="$000",1000,1))/IF($E14="$millions",1000000,IF($E14="$000",1000,1))) -> 0 | M14: =IF(M$11="",0,'Calc|Opex forecast'!M90*IF('Calc|Opex forecast'!$F90="nominal",LOOKUP($F14,Nominal_to_Real,'Input|Rate of change'!S$27:S$32),INDEX('Input|Rate of change'!$C$14:$O$22,MATCH('Calc|Opex forecast'!$F90,'Input|Rate of change'!$C$14:$C$22,0),MATCH('Output|Models'!$F14,'Input|Rate of change'!$C$14:$O$14,0)))*IF('Calc|Opex forecast'!$E90="$millions",1000000,IF('Calc|Opex forecast'!$E90="$000",1000,1))/IF($E14="$millions",1000000,IF($E14="$000",1000,1))) -> 0 | N14: =IF(N$11="",0,'Calc|Opex forecast'!N90*IF('Calc|Opex forecast'!$F90="nominal",LOOKUP($F14,Nominal_to_Real,'Input|Rate of change'!T$27:T$32),INDEX('Input|Rate of change'!$C$14:$O$22,MATCH('Calc|Opex forecast'!$F90,'Input|Rate of change'!$C$14:$C$22,0),MATCH('Output|Models'!$F14,'Input|Rate of change'!$C$14:$O$14,0)))*IF('Calc|Opex forecast'!$E90="$millions",1000000,IF('Calc|Opex forecast'!$E90="$000",1000,1))/IF($E14="$millions",1000000,IF($E14="$000",1000,1))) -> 0 | O14: =IF(O$11="",0,'Calc|Opex forecast'!O90*IF('Calc|Opex forecast'!$F90="nominal",LOOKUP($F14,Nominal_to_Real,'Input|Rate of change'!U$27:U$32),INDEX('Input|Rate of change'!$C$14:$O$22,MATCH('Calc|Opex forecast'!$F90,'Input|Rate of change'!$C$14:$C$22,0),MATCH('Output|Models'!$F14,'Input|Rate of change'!$C$14:$O$14,0)))*IF('Calc|Opex forecast'!$E90="$millions",1000000,IF('Calc|Opex forecast'!$E90="$000",1000,1))/IF($E14="$millions",1000000,IF($E14="$000",1000,1))) -> 8.539676537 | P14: =IF(P$11="",0,'Calc|Opex forecast'!P90*IF('Calc|Opex forecast'!$F90="nominal",LOOKUP($F14,Nominal_to_Real,'Input|Rate of change'!V$27:V$32),INDEX('Input|Rate of change'!$C$14:$O$22,MATCH('Calc|Opex forecast'!$F90,'Input|Rate of change'!$C$14:$C$22,0),MATCH('Output|Models'!$F14,'Input|Rate of change'!$C$14:$O$14,0)))*IF('Calc|Opex forecast'!$E90="$millions",1000000,IF('Calc|Opex forecast'!$E90="$000",1000,1))/IF($E14="$millions",1000000,IF($E14="$000",1000,1))) -> 8.794196738 | Q14: =IF(Q$11="",0,'Calc|Opex forecast'!Q90*IF('Calc|Opex forecast'!$F90="nominal",LOOKUP($F14,Nominal_to_Real,'Input|Rate of change'!W$27:W$32),INDEX('Input|Rate of change'!$C$14:$O$22,MATCH('Calc|Opex forecast'!$F90,'Input|Rate of change'!$C$14:$C$22,0),MATCH('Output|Models'!$F14,'Input|Rate of change'!$C$14:$O$14,0)))*IF('Calc|Opex forecast'!$E90="$millions",1000000,IF('Calc|Opex forecast'!$E90="$000",1000,1))/IF($E14="$millions",1000000,IF($E14="$000",1000,1))) -> 9.054057418 | R14: =IF(R$11="",0,'Calc|Opex forecast'!R90*IF('Calc|Opex forecast'!$F90="nominal",LOOKUP($F14,Nominal_to_Real,'Input|Rate of change'!X$27:X$32),INDEX('Input|Rate of change'!$C$14:$O$22,MATCH('Calc|Opex forecast'!$F90,'Input|Rate of change'!$C$14:$C$22,0),MATCH('Output|Models'!$F14,'Input|Rate of change'!$C$14:$O$14,0)))*IF('Calc|Opex forecast'!$E90="$millions",1000000,IF('Calc|Opex forecast'!$E90="$000",1000,1))/IF($E14="$millions",1000000,IF($E14="$000",1000,1))) -> 9.320515243 | S14: =IF(S$11="",0,'Calc|Opex forecast'!S90*IF('Calc|Opex forecast'!$F90="nominal",LOOKUP($F14,Nominal_to_Real,'Input|Rate of change'!Y$27:Y$32),INDEX('Input|Rate of change'!$C$14:$O$22,MATCH('Calc|Opex forecast'!$F90,'Input|Rate of change'!$C$14:$C$22,0),MATCH('Output|Models'!$F14,'Input|Rate of change'!$C$14:$O$14,0)))*IF('Calc|Opex forecast'!$E90="$millions",1000000,IF('Calc|Opex forecast'!$E90="$000",1000,1))/IF($E14="$millions",1000000,IF($E14="$000",1000,1))) -> 9.588752126
C15: ='Input|Step changes'!C29 -> EIL | D15: Calc | Opex forecast | E15: $millions | F15: 2021-06-01 | J15: =IF(J$11="",0,'Calc|Opex forecast'!J91*IF('Calc|Opex forecast'!$F91="nominal",LOOKUP($F15,Nominal_to_Real,'Input|Rate of change'!P$27:P$32),INDEX('Input|Rate of change'!$C$14:$O$22,MATCH('Calc|Opex forecast'!$F91,'Input|Rate of change'!$C$14:$C$22,0),MATCH('Output|Models'!$F15,'Input|Rate of change'!$C$14:$O$14,0)))*IF('Calc|Opex forecast'!$E91="$millions",1000000,IF('Calc|Opex forecast'!$E91="$000",1000,1))/IF($E15="$millions",1000000,IF($E15="$000",1000,1))) -> 0 | K15: =IF(K$11="",0,'Calc|Opex forecast'!K91*IF('Calc|Opex forecast'!$F91="nominal",LOOKUP($F15,Nominal_to_Real,'Input|Rate of change'!Q$27:Q$32),INDEX('Input|Rate of change'!$C$14:$O$22,MATCH('Calc|Opex forecast'!$F91,'Input|Rate of change'!$C$14:$C$22,0),MATCH('Output|Models'!$F15,'Input|Rate of change'!$C$14:$O$14,0)))*IF('Calc|Opex forecast'!$E91="$millions",1000000,IF('Calc|Opex forecast'!$E91="$000",1000,1))/IF($E15="$millions",1000000,IF($E15="$000",1000,1))) -> 0 | L15: =IF(L$11="",0,'Calc|Opex forecast'!L91*IF('Calc|Opex forecast'!$F91="nominal",LOOKUP($F15,Nominal_to_Real,'Input|Rate of change'!R$27:R$32),INDEX('Input|Rate of change'!$C$14:$O$22,MATCH('Calc|Opex forecast'!$F91,'Input|Rate of change'!$C$14:$C$22,0),MATCH('Output|Models'!$F15,'Input|Rate of change'!$C$14:$O$14,0)))*IF('Calc|Opex forecast'!$E91="$millions",1000000,IF('Calc|Opex forecast'!$E91="$000",1000,1))/IF($E15="$millions",1000000,IF($E15="$000",1000,1))) -> 0 | M15: =IF(M$11="",0,'Calc|Opex forecast'!M91*IF('Calc|Opex forecast'!$F91="nominal",LOOKUP($F15,Nominal_to_Real,'Input|Rate of change'!S$27:S$32),INDEX('Input|Rate of change'!$C$14:$O$22,MATCH('Calc|Opex forecast'!$F91,'Input|Rate of change'!$C$14:$C$22,0),MATCH('Output|Models'!$F15,'Input|Rate of change'!$C$14:$O$14,0)))*IF('Calc|Opex forecast'!$E91="$millions",1000000,IF('Calc|Opex forecast'!$E91="$000",1000,1))/IF($E15="$millions",1000000,IF($E15="$000",1000,1))) -> 0 | N15: =IF(N$11="",0,'Calc|Opex forecast'!N91*IF('Calc|Opex forecast'!$F91="nominal",LOOKUP($F15,Nominal_to_Real,'Input|Rate of change'!T$27:T$32),INDEX('Input|Rate of change'!$C$14:$O$22,MATCH('Calc|Opex forecast'!$F91,'Input|Rate of change'!$C$14:$C$22,0),MATCH('Output|Models'!$F15,'Input|Rate of change'!$C$14:$O$14,0)))*IF('Calc|Opex forecast'!$E91="$millions",1000000,IF('Calc|Opex forecast'!$E91="$000",1000,1))/IF($E15="$millions",1000000,IF($E15="$000",1000,1))) -> 0 | O15: =IF(O$11="",0,'Calc|Opex forecast'!O91*IF('Calc|Opex forecast'!$F91="nominal",LOOKUP($F15,Nominal_to_Real,'Input|Rate of change'!U$27:U$32),INDEX('Input|Rate of change'!$C$14:$O$22,MATCH('Calc|Opex forecast'!$F91,'Input|Rate of change'!$C$14:$C$22,0),MATCH('Output|Models'!$F15,'Input|Rate of change'!$C$14:$O$14,0)))*IF('Calc|Opex forecast'!$E91="$millions",1000000,IF('Calc|Opex forecast'!$E91="$000",1000,1))/IF($E15="$millions",1000000,IF($E15="$000",1000,1))) -> 0.6958668896 | P15: =IF(P$11="",0,'Calc|Opex forecast'!P91*IF('Calc|Opex forecast'!$F91="nominal",LOOKUP($F15,Nominal_to_Real,'Input|Rate of change'!V$27:V$32),INDEX('Input|Rate of change'!$C$14:$O$22,MATCH('Calc|Opex forecast'!$F91,'Input|Rate of change'!$C$14:$C$22,0),MATCH('Output|Models'!$F15,'Input|Rate of change'!$C$14:$O$14,0)))*IF('Calc|Opex forecast'!$E91="$millions",1000000,IF('Calc|Opex forecast'!$E91="$000",1000,1))/IF($E15="$millions",1000000,IF($E15="$000",1000,1))) -> 0.6705456089 | Q15: =IF(Q$11="",0,'Calc|Opex forecast'!Q91*IF('Calc|Opex forecast'!$F91="nominal",LOOKUP($F15,Nominal_to_Real,'Input|Rate of change'!W$27:W$32),INDEX('Input|Rate of change'!$C$14:$O$22,MATCH('Calc|Opex forecast'!$F91,'Input|Rate of change'!$C$14:$C$22,0),MATCH('Output|Models'!$F15,'Input|Rate of change'!$C$14:$O$14,0)))*IF('Calc|Opex forecast'!$E91="$millions",1000000,IF('Calc|Opex forecast'!$E91="$000",1000,1))/IF($E15="$millions",1000000,IF($E15="$000",1000,1))) -> 0.6398357854 | R15: =IF(R$11="",0,'Calc|Opex forecast'!R91*IF('Calc|Opex forecast'!$F91="nominal",LOOKUP($F15,Nominal_to_Real,'Input|Rate of change'!X$27:X$32),INDEX('Input|Rate of change'!$C$14:$O$22,MATCH('Calc|Opex forecast'!$F91,'Input|Rate of change'!$C$14:$C$22,0),MATCH('Output|Models'!$F15,'Input|Rate of change'!$C$14:$O$14,0)))*IF('Calc|Opex forecast'!$E91="$millions",1000000,IF('Calc|Opex forecast'!$E91="$000",1000,1))/IF($E15="$millions",1000000,IF($E15="$000",1000,1))) -> 0.6109452114 | S15: =IF(S$11="",0,'Calc|Opex forecast'!S91*IF('Calc|Opex forecast'!$F91="nominal",LOOKUP($F15,Nominal_to_Real,'Input|Rate of change'!Y$27:Y$32),INDEX('Input|Rate of change'!$C$14:$O$22,MATCH('Calc|Opex forecast'!$F91,'Input|Rate of change'!$C$14:$C$22,0),MATCH('Output|Models'!$F15,'Input|Rate of change'!$C$14:$O$14,0)))*IF('Calc|Opex forecast'!$E91="$millions",1000000,IF('Calc|Opex forecast'!$E91="$000",1000,1))/IF($E15="$millions",1000000,IF($E15="$000",1000,1))) -> 0.584474955
C16: ='Input|Step changes'!C30 -> UAG | D16: Calc | Opex forecast | E16: $millions | F16: 2021-06-01 | J16: =IF(J$11="",0,'Calc|Opex forecast'!J92*IF('Calc|Opex forecast'!$F92="nominal",LOOKUP($F16,Nominal_to_Real,'Input|Rate of change'!P$27:P$32),INDEX('Input|Rate of change'!$C$14:$O$22,MATCH('Calc|Opex forecast'!$F92,'Input|Rate of change'!$C$14:$C$22,0),MATCH('Output|Models'!$F16,'Input|Rate of change'!$C$14:$O$14,0)))*IF('Calc|Opex forecast'!$E92="$millions",1000000,IF('Calc|Opex forecast'!$E92="$000",1000,1))/IF($E16="$millions",1000000,IF($E16="$000",1000,1))) -> 0 | K16: =IF(K$11="",0,'Calc|Opex forecast'!K92*IF('Calc|Opex forecast'!$F92="nominal",LOOKUP($F16,Nominal_to_Real,'Input|Rate of change'!Q$27:Q$32),INDEX('Input|Rate of change'!$C$14:$O$22,MATCH('Calc|Opex forecast'!$F92,'Input|Rate of change'!$C$14:$C$22,0),MATCH('Output|Models'!$F16,'Input|Rate of change'!$C$14:$O$14,0)))*IF('Calc|Opex forecast'!$E92="$millions",1000000,IF('Calc|Opex forecast'!$E92="$000",1000,1))/IF($E16="$millions",1000000,IF($E16="$000",1000,1))) -> 0 | L16: =IF(L$11="",0,'Calc|Opex forecast'!L92*IF('Calc|Opex forecast'!$F92="nominal",LOOKUP($F16,Nominal_to_Real,'Input|Rate of change'!R$27:R$32),INDEX('Input|Rate of change'!$C$14:$O$22,MATCH('Calc|Opex forecast'!$F92,'Input|Rate of change'!$C$14:$C$22,0),MATCH('Output|Models'!$F16,'Input|Rate of change'!$C$14:$O$14,0)))*IF('Calc|Opex forecast'!$E92="$millions",1000000,IF('Calc|Opex forecast'!$E92="$000",1000,1))/IF($E16="$millions",1000000,IF($E16="$000",1000,1))) -> 0 | M16: =IF(M$11="",0,'Calc|Opex forecast'!M92*IF('Calc|Opex forecast'!$F92="nominal",LOOKUP($F16,Nominal_to_Real,'Input|Rate of change'!S$27:S$32),INDEX('Input|Rate of change'!$C$14:$O$22,MATCH('Calc|Opex forecast'!$F92,'Input|Rate of change'!$C$14:$C$22,0),MATCH('Output|Models'!$F16,'Input|Rate of change'!$C$14:$O$14,0)))*IF('Calc|Opex forecast'!$E92="$millions",1000000,IF('Calc|Opex forecast'!$E92="$000",1000,1))/IF($E16="$millions",1000000,IF($E16="$000",1000,1))) -> 0 | N16: =IF(N$11="",0,'Calc|Opex forecast'!N92*IF('Calc|Opex forecast'!$F92="nominal",LOOKUP($F16,Nominal_to_Real,'Input|Rate of change'!T$27:T$32),INDEX('Input|Rate of change'!$C$14:$O$22,MATCH('Calc|Opex forecast'!$F92,'Input|Rate of change'!$C$14:$C$22,0),MATCH('Output|Models'!$F16,'Input|Rate of change'!$C$14:$O$14,0)))*IF('Calc|Opex forecast'!$E92="$millions",1000000,IF('Calc|Opex forecast'!$E92="$000",1000,1))/IF($E16="$millions",1000000,IF($E16="$000",1000,1))) -> 0 | O16: =IF(O$11="",0,'Calc|Opex forecast'!O92*IF('Calc|Opex forecast'!$F92="nominal",LOOKUP($F16,Nominal_to_Real,'Input|Rate of change'!U$27:U$32),INDEX('Input|Rate of change'!$C$14:$O$22,MATCH('Calc|Opex forecast'!$F92,'Input|Rate of change'!$C$14:$C$22,0),MATCH('Output|Models'!$F16,'Input|Rate of change'!$C$14:$O$14,0)))*IF('Calc|Opex forecast'!$E92="$millions",1000000,IF('Calc|Opex forecast'!$E92="$000",1000,1))/IF($E16="$millions",1000000,IF($E16="$000",1000,1))) -> 1.438418869 | P16: =IF(P$11="",0,'Calc|Opex forecast'!P92*IF('Calc|Opex forecast'!$F92="nominal",LOOKUP($F16,Nominal_to_Real,'Input|Rate of change'!V$27:V$32),INDEX('Input|Rate of change'!$C$14:$O$22,MATCH('Calc|Opex forecast'!$F92,'Input|Rate of change'!$C$14:$C$22,0),MATCH('Output|Models'!$F16,'Input|Rate of change'!$C$14:$O$14,0)))*IF('Calc|Opex forecast'!$E92="$millions",1000000,IF('Calc|Opex forecast'!$E92="$000",1000,1))/IF($E16="$millions",1000000,IF($E16="$000",1000,1))) -> 1.978548912 | Q16: =IF(Q$11="",0,'Calc|Opex forecast'!Q92*IF('Calc|Opex forecast'!$F92="nominal",LOOKUP($F16,Nominal_to_Real,'Input|Rate of change'!W$27:W$32),INDEX('Input|Rate of change'!$C$14:$O$22,MATCH('Calc|Opex forecast'!$F92,'Input|Rate of change'!$C$14:$C$22,0),MATCH('Output|Models'!$F16,'Input|Rate of change'!$C$14:$O$14,0)))*IF('Calc|Opex forecast'!$E92="$millions",1000000,IF('Calc|Opex forecast'!$E92="$000",1000,1))/IF($E16="$millions",1000000,IF($E16="$000",1000,1))) -> 1.943453871 | R16: =IF(R$11="",0,'Calc|Opex forecast'!R92*IF('Calc|Opex forecast'!$F92="nominal",LOOKUP($F16,Nominal_to_Real,'Input|Rate of change'!X$27:X$32),INDEX('Input|Rate of change'!$C$14:$O$22,MATCH('Calc|Opex forecast'!$F92,'Input|Rate of change'!$C$14:$C$22,0),MATCH('Output|Models'!$F16,'Input|Rate of change'!$C$14:$O$14,0)))*IF('Calc|Opex forecast'!$E92="$millions",1000000,IF('Calc|Opex forecast'!$E92="$000",1000,1))/IF($E16="$millions",1000000,IF($E16="$000",1000,1))) -> 2.024178232 | S16: =IF(S$11="",0,'Calc|Opex forecast'!S92*IF('Calc|Opex forecast'!$F92="nominal",LOOKUP($F16,Nominal_to_Real,'Input|Rate of change'!Y$27:Y$32),INDEX('Input|Rate of change'!$C$14:$O$22,MATCH('Calc|Opex forecast'!$F92,'Input|Rate of change'!$C$14:$C$22,0),MATCH('Output|Models'!$F16,'Input|Rate of change'!$C$14:$O$14,0)))*IF('Calc|Opex forecast'!$E92="$millions",1000000,IF('Calc|Opex forecast'!$E92="$000",1000,1))/IF($E16="$millions",1000000,IF($E16="$000",1000,1))) -> 2.077503403
C17: ='Input|Step changes'!C31 -> ITAUF | D17: Calc | Opex forecast | E17: $millions | F17: 2021-06-01 | J17: =IF(J$11="",0,'Calc|Opex forecast'!J93*IF('Calc|Opex forecast'!$F93="nominal",LOOKUP($F17,Nominal_to_Real,'Input|Rate of change'!P$27:P$32),INDEX('Input|Rate of change'!$C$14:$O$22,MATCH('Calc|Opex forecast'!$F93,'Input|Rate of change'!$C$14:$C$22,0),MATCH('Output|Models'!$F17,'Input|Rate of change'!$C$14:$O$14,0)))*IF('Calc|Opex forecast'!$E93="$millions",1000000,IF('Calc|Opex forecast'!$E93="$000",1000,1))/IF($E17="$millions",1000000,IF($E17="$000",1000,1))) -> 0 | K17: =IF(K$11="",0,'Calc|Opex forecast'!K93*IF('Calc|Opex forecast'!$F93="nominal",LOOKUP($F17,Nominal_to_Real,'Input|Rate of change'!Q$27:Q$32),INDEX('Input|Rate of change'!$C$14:$O$22,MATCH('Calc|Opex forecast'!$F93,'Input|Rate of change'!$C$14:$C$22,0),MATCH('Output|Models'!$F17,'Input|Rate of change'!$C$14:$O$14,0)))*IF('Calc|Opex forecast'!$E93="$millions",1000000,IF('Calc|Opex forecast'!$E93="$000",1000,1))/IF($E17="$millions",1000000,IF($E17="$000",1000,1))) -> 0 | L17: =IF(L$11="",0,'Calc|Opex forecast'!L93*IF('Calc|Opex forecast'!$F93="nominal",LOOKUP($F17,Nominal_to_Real,'Input|Rate of change'!R$27:R$32),INDEX('Input|Rate of change'!$C$14:$O$22,MATCH('Calc|Opex forecast'!$F93,'Input|Rate of change'!$C$14:$C$22,0),MATCH('Output|Models'!$F17,'Input|Rate of change'!$C$14:$O$14,0)))*IF('Calc|Opex forecast'!$E93="$millions",1000000,IF('Calc|Opex forecast'!$E93="$000",1000,1))/IF($E17="$millions",1000000,IF($E17="$000",1000,1))) -> 0 | M17: =IF(M$11="",0,'Calc|Opex forecast'!M93*IF('Calc|Opex forecast'!$F93="nominal",LOOKUP($F17,Nominal_to_Real,'Input|Rate of change'!S$27:S$32),INDEX('Input|Rate of change'!$C$14:$O$22,MATCH('Calc|Opex forecast'!$F93,'Input|Rate of change'!$C$14:$C$22,0),MATCH('Output|Models'!$F17,'Input|Rate of change'!$C$14:$O$14,0)))*IF('Calc|Opex forecast'!$E93="$millions",1000000,IF('Calc|Opex forecast'!$E93="$000",1000,1))/IF($E17="$millions",1000000,IF($E17="$000",1000,1))) -> 0 | N17: =IF(N$11="",0,'Calc|Opex forecast'!N93*IF('Calc|Opex forecast'!$F93="nominal",LOOKUP($F17,Nominal_to_Real,'Input|Rate of change'!T$27:T$32),INDEX('Input|Rate of change'!$C$14:$O$22,MATCH('Calc|Opex forecast'!$F93,'Input|Rate of change'!$C$14:$C$22,0),MATCH('Output|Models'!$F17,'Input|Rate of change'!$C$14:$O$14,0)))*IF('Calc|Opex forecast'!$E93="$millions",1000000,IF('Calc|Opex forecast'!$E93="$000",1000,1))/IF($E17="$millions",1000000,IF($E17="$000",1000,1))) -> 0
C18: ='Input|Step changes'!C32 -> 0 | D18: Calc | Opex forecast | E18: $millions | F18: 2021-06-01 | J18: =IF(J$11="",0,'Calc|Opex forecast'!J94*IF('Calc|Opex forecast'!$F94="nominal",LOOKUP($F18,Nominal_to_Real,'Input|Rate of change'!P$27:P$32),INDEX('Input|Rate of change'!$C$14:$O$22,MATCH('Calc|Opex forecast'!$F94,'Input|Rate of change'!$C$14:$C$22,0),MATCH('Output|Models'!$F18,'Input|Rate of change'!$C$14:$O$14,0)))*IF('Calc|Opex forecast'!$E94="$millions",1000000,IF('Calc|Opex forecast'!$E94="$000",1000,1))/IF($E18="$millions",1000000,IF($E18="$000",1000,1))) -> 0 | K18: =IF(K$11="",0,'Calc|Opex forecast'!K94*IF('Calc|Opex forecast'!$F94="nominal",LOOKUP($F18,Nominal_to_Real,'Input|Rate of change'!Q$27:Q$32),INDEX('Input|Rate of change'!$C$14:$O$22,MATCH('Calc|Opex forecast'!$F94,'Input|Rate of change'!$C$14:$C$22,0),MATCH('Output|Models'!$F18,'Input|Rate of change'!$C$14:$O$14,0)))*IF('Calc|Opex forecast'!$E94="$millions",1000000,IF('Calc|Opex forecast'!$E94="$000",1000,1))/IF($E18="$millions",1000000,IF($E18="$000",1000,1))) -> 0 | L18: =IF(L$11="",0,'Calc|Opex forecast'!L94*IF('Calc|Opex forecast'!$F94="nominal",LOOKUP($F18,Nominal_to_Real,'Input|Rate of change'!R$27:R$32),INDEX('Input|Rate of change'!$C$14:$O$22,MATCH('Calc|Opex forecast'!$F94,'Input|Rate of change'!$C$14:$C$22,0),MATCH('Output|Models'!$F18,'Input|Rate of change'!$C$14:$O$14,0)))*IF('Calc|Opex forecast'!$E94="$millions",1000000,IF('Calc|Opex forecast'!$E94="$000",1000,1))/IF($E18="$millions",1000000,IF($E18="$000",1000,1))) -> 0 | M18: =IF(M$11="",0,'Calc|Opex forecast'!M94*IF('Calc|Opex forecast'!$F94="nominal",LOOKUP($F18,Nominal_to_Real,'Input|Rate of change'!S$27:S$32),INDEX('Input|Rate of change'!$C$14:$O$22,MATCH('Calc|Opex forecast'!$F94,'Input|Rate of change'!$C$14:$C$22,0),MATCH('Output|Models'!$F18,'Input|Rate of change'!$C$14:$O$14,0)))*IF('Calc|Opex forecast'!$E94="$millions",1000000,IF('Calc|Opex forecast'!$E94="$000",1000,1))/IF($E18="$millions",1000000,IF($E18="$000",1000,1))) -> 0 | N18: =IF(N$11="",0,'Calc|Opex forecast'!N94*IF('Calc|Opex forecast'!$F94="nominal",LOOKUP($F18,Nominal_to_Real,'Input|Rate of change'!T$27:T$32),INDEX('Input|Rate of change'!$C$14:$O$22,MATCH('Calc|Opex forecast'!$F94,'Input|Rate of change'!$C$14:$C$22,0),MATCH('Output|Models'!$F18,'Input|Rate of change'!$C$14:$O$14,0)))*IF('Calc|Opex forecast'!$E94="$millions",1000000,IF('Calc|Opex forecast'!$E94="$000",1000,1))/IF($E18="$millions",1000000,IF($E18="$000",1000,1))) -> 0 | O18: =IF(O$11="",0,'Calc|Opex forecast'!O94*IF('Calc|Opex forecast'!$F94="nominal",LOOKUP($F18,Nominal_to_Real,'Input|Rate of change'!U$27:U$32),INDEX('Input|Rate of change'!$C$14:$O$22,MATCH('Calc|Opex forecast'!$F94,'Input|Rate of change'!$C$14:$C$22,0),MATCH('Output|Models'!$F18,'Input|Rate of change'!$C$14:$O$14,0)))*IF('Calc|Opex forecast'!$E94="$millions",1000000,IF('Calc|Opex forecast'!$E94="$000",1000,1))/IF($E18="$millions",1000000,IF($E18="$000",1000,1))) -> 0 | P18: =IF(P$11="",0,'Calc|Opex forecast'!P94*IF('Calc|Opex forecast'!$F94="nominal",LOOKUP($F18,Nominal_to_Real,'Input|Rate of change'!V$27:V$32),INDEX('Input|Rate of change'!$C$14:$O$22,MATCH('Calc|Opex forecast'!$F94,'Input|Rate of change'!$C$14:$C$22,0),MATCH('Output|Models'!$F18,'Input|Rate of change'!$C$14:$O$14,0)))*IF('Calc|Opex forecast'!$E94="$millions",1000000,IF('Calc|Opex forecast'!$E94="$000",1000,1))/IF($E18="$millions",1000000,IF($E18="$000",1000,1))) -> 0 | Q18: =IF(Q$11="",0,'Calc|Opex forecast'!Q94*IF('Calc|Opex forecast'!$F94="nominal",LOOKUP($F18,Nominal_to_Real,'Input|Rate of change'!W$27:W$32),INDEX('Input|Rate of change'!$C$14:$O$22,MATCH('Calc|Opex forecast'!$F94,'Input|Rate of change'!$C$14:$C$22,0),MATCH('Output|Models'!$F18,'Input|Rate of change'!$C$14:$O$14,0)))*IF('Calc|Opex forecast'!$E94="$millions",1000000,IF('Calc|Opex forecast'!$E94="$000",1000,1))/IF($E18="$millions",1000000,IF($E18="$000",1000,1))) -> 0 | R18: =IF(R$11="",0,'Calc|Opex forecast'!R94*IF('Calc|Opex forecast'!$F94="nominal",LOOKUP($F18,Nominal_to_Real,'Input|Rate of change'!X$27:X$32),INDEX('Input|Rate of change'!$C$14:$O$22,MATCH('Calc|Opex forecast'!$F94,'Input|Rate of change'!$C$14:$C$22,0),MATCH('Output|Models'!$F18,'Input|Rate of change'!$C$14:$O$14,0)))*IF('Calc|Opex forecast'!$E94="$millions",1000000,IF('Calc|Opex forecast'!$E94="$000",1000,1))/IF($E18="$millions",1000000,IF($E18="$000",1000,1))) -> 0 | S18: =IF(S$11="",0,'Calc|Opex forecast'!S94*IF('Calc|Opex forecast'!$F94="nominal",LOOKUP($F18,Nominal_to_Real,'Input|Rate of change'!Y$27:Y$32),INDEX('Input|Rate of change'!$C$14:$O$22,MATCH('Calc|Opex forecast'!$F94,'Input|Rate of change'!$C$14:$C$22,0),MATCH('Output|Models'!$F18,'Input|Rate of change'!$C$14:$O$14,0)))*IF('Calc|Opex forecast'!$E94="$millions",1000000,IF('Calc|Opex forecast'!$E94="$000",1000,1))/IF($E18="$millions",1000000,IF($E18="$000",1000,1))) -> 0
C20: Check | O20: =IF(ROUND(SUM(O13:O18)-'Calc|Opex forecast'!O103,6)=0,"Ok","Check") -> Ok | P20: =IF(ROUND(SUM(P13:P18)-'Calc|Opex forecast'!P103,6)=0,"Ok","Check") -> Ok | Q20: =IF(ROUND(SUM(Q13:Q18)-'Calc|Opex forecast'!Q103,6)=0,"Ok","Check") -> Ok | R20: =IF(ROUND(SUM(R13:R18)-'Calc|Opex forecast'!R103,6)=0,"Ok","Check") -> Ok | S20: =IF(ROUND(SUM(S13:S18)-'Calc|Opex forecast'!S103,6)=0,"Ok","Check") -> Ok | W20: =IF(COUNTIF(J20:T20,"Check")=0,"Ok","Check") -> Ok
B22: End

Sheet Output|RIN
B1: =Index!$B$1 -> AER opex model | J1: Back to Index | L1: Key: | M1: Input | N1: External Link | O1: Internal Link | P1: Empty cell | R1: Worksheet check: | S1: =IF(COUNTA($W$4:$W$47)=COUNTIF($W$4:$W$47,"Ok"),"Ok","Check") -> Ok | U1: Overall Check: | V1: ='Check|List'!$S$1 -> Ok
B2: =Index!$C$15 -> Output | RIN
J3: Year ending
D4: Source | E4: Unit | F4: Basis | J4: =DATE(PPFirstYear,MONTH('Input|General'!$G$9),1) -> 2017-06-01 | K4: =DATE(PPFirstYear+1,MONTH('Input|General'!$G$9),1) -> 2018-06-01 | L4: =DATE(PPFirstYear+2,MONTH('Input|General'!$G$9),1) -> 2019-06-01 | M4: =DATE(PPFirstYear+3,MONTH('Input|General'!$G$9),1) -> 2020-06-01 | N4: =DATE(PPFirstYear+4,MONTH('Input|General'!$G$9),1) -> 2021-06-01 | O4: =DATE(PPFirstYear+5,MONTH('Input|General'!$G$9),1) -> 2022-06-01 | P4: =DATE(PPFirstYear+6,MONTH('Input|General'!$G$9),1) -> 2023-06-01 | Q4: =DATE(PPFirstYear+7,MONTH('Input|General'!$G$9),1) -> 2024-06-01 | R4: =DATE(PPFirstYear+8,MONTH('Input|General'!$G$9),1) -> 2025-06-01 | S4: =DATE(PPFirstYear+9,MONTH('Input|General'!$G$9),1) -> 2026-06-01
B8: Output | Reset RIN | E8: $millions | F8: =DATE(PPLastYear,MONTH('Input|General'!$G$9),1) -> 2021-06-01
C10: Operating expenditure (exc. DRC) | D10: Source | E10: Unit | F10: Basis | J10: =J4 -> 2017-06-01 | K10: 2018-06-01 | L10: 2019-06-01 | M10: 2020-06-01 | N10: 2021-06-01 | O10: 2022-06-01 | P10: 2023-06-01 | Q10: 2024-06-01 | R10: 2025-06-01 | S10: 2026-06-01
C12: Base year total opex, excluding category specific | D12: Calc | Opex forecast | E12: =$E$8 -> $millions | F12: =$F$8 -> 2021-06-01 | K12: =('Input|Reported opex'!K37+'Input|Reported opex'!K53)*'Input|Rate of change'!L32 -> 20.42513286 | L12: =('Input|Reported opex'!L37+'Input|Reported opex'!L53)*'Input|Rate of change'!M32 -> 20.36672841 | M12: ='Calc|Opex forecast'!M13+('Input|Reported opex'!M53*'Input|Rate of change'!N32) -> 21.17709761 | N12: =M12+M18-N18 -> 21.44348008 | O12: ='Calc|Opex forecast'!N54 -> 21.46261269 | P12: =O12 -> 21.46261269 | Q12: =P12 -> 21.46261269 | R12: =Q12 -> 21.46261269 | S12: =R12 -> 21.46261269
C13: Increment from base year to final year | D13: Calc | Opex forecast | E13: =$E$8 -> $millions | F13: =$F$8 -> 2021-06-01 | N13: ='Calc|Opex forecast'!N31 -> 0.01913261505
C14: Price growth | D14: Calc | Opex forecast | E14: $millions | F14: 2021-06-01 | O14: =SUM(O12:O13)*(O43-1) -> 0.09165687723 | P14: =SUM(P12:P13)*(P43-1) -> 0.1818640023 | Q14: =SUM(Q12:Q13)*(Q43-1) -> 0.3002147329 | R14: =SUM(R12:R13)*(R43-1) -> 0.426876112 | S14: =SUM(S12:S13)*(S43-1) -> 0.5373849484
C15: Output growth | D15: Calc | Opex forecast | E15: $millions | F15: 2021-06-01 | O15: =SUM(O12:O13)*(O43*O44-O43) -> 0.1708089566 | P15: =SUM(P12:P13)*(P43*P44-P43) -> 0.2924288027 | Q15: =SUM(Q12:Q13)*(Q43*Q44-Q43) -> 0.4091074301 | R15: =SUM(R12:R13)*(R43*R44-R43) -> 0.5237783353 | S15: =SUM(S12:S13)*(S43*S44-S43) -> 0.6384078953
C16: Productivity growth | D16: Calc | Opex forecast | E16: $millions | F16: 2021-06-01 | O16: =SUM(O12:O13)*(O43*O44*O45-O43*O44) -> -0.1086253926 | P16: =SUM(P12:P13)*(P43*P44*P45-P43*P44) -> -0.2188206323 | Q16: =SUM(Q12:Q13)*(Q43*Q44*Q45-Q43*Q44) -> -0.3309188992 | R16: =SUM(R12:R13)*(R43*R44*R45-R43*R44) -> -0.4449145454 | S16: =SUM(S12:S13)*(S43*S44*S45-S43*S44) -> -0.5603287644
C17: Step changes | D17: Calc | Opex forecast | E17: $millions | F17: 2021-06-01 | O17: ='Calc|Opex forecast'!O84 -> 0.4539177388 | P17: ='Calc|Opex forecast'!P84 -> 0.9398926939 | Q17: ='Calc|Opex forecast'!Q84 -> 0 | R17: ='Calc|Opex forecast'!R84 -> 0.05031500704 | S17: ='Calc|Opex forecast'!S84 -> 0.815262266
C18: Category specific | D18: Calc | Opex forecast | E18: $millions | F18: 2021-06-01 | M18: =-'Input|Reported opex'!M53*'Input|Rate of change'!N32 -> 11.0031261 | N18: =-'Calc|Opex forecast'!$N$35 -> 10.73674363 | O18: ='Calc|Opex forecast'!O96 -> 10.6739623 | P18: ='Calc|Opex forecast'!P96 -> 11.44329126 | Q18: ='Calc|Opex forecast'!Q96 -> 11.63734707 | R18: ='Calc|Opex forecast'!R96 -> 12.24378869 | S18: ='Calc|Opex forecast'!S96 -> 12.53225048
N19: =N18/M18-1 -> -0.02420970824
C20: Total opex (exc. DRC) | D20: Calculated | E20: =$E$8 -> $millions | F20: =$F$8 -> 2021-06-01 | M20: =SUM(M12:M18) -> 32.18022371 | N20: =SUM(N12:N18) -> 32.19935632 | O20: 32.74433317 | P20: 34.10126882 | Q20: 33.47836303 | R20: 34.26245629 | S20: 35.42558952
C22: Check | M22: =IF(ROUND(M20-('Calc|Opex forecast'!M26+'Calc|Opex forecast'!N28),6)=0,"OK","Check") -> OK | N22: =IF(ROUND('Calc|Opex forecast'!N54-(N20-N18)-'Calc|Opex forecast'!N38,6)=0,"OK","Check") -> OK | O22: =IF(ROUND(SUM('Output|Models'!O13:O18)-O20,6)=0,"OK","Check") -> OK | P22: =IF(ROUND(SUM('Output|Models'!P13:P18)-P20,6)=0,"OK","Check") -> OK | Q22: =IF(ROUND(SUM('Output|Models'!Q13:Q18)-Q20,6)=0,"OK","Check") -> OK | R22: =IF(ROUND(SUM('Output|Models'!R13:R18)-R20,6)=0,"OK","Check") -> OK | S22: =IF(ROUND(SUM('Output|Models'!S13:S18)-S20,6)=0,"OK","Check") -> OK | W22: =IF(COUNTA(O22:S22)=COUNTIF(O22:S22,"Ok"),"Ok","Check") -> Ok
C24: Operating expenditure (inc. DRC) | D24: Source | E24: Unit | F24: Basis | M24: =M4 -> 2020-06-01 | N24: 2021-06-01 | O24: 2022-06-01 | P24: 2023-06-01 | Q24: 2024-06-01 | R24: 2025-06-01 | S24: 2026-06-01
C26: Total opex excluding DRC | D26: Above | E26: =$E$8 -> $millions | F26: =$F$8 -> 2021-06-01 | M26: =M20 -> 32.18022371 | N26: 32.19935632 | O26: 32.74433317 | P26: 34.10126882 | Q26: 33.47836303 | R26: 34.26245629 | S26: 35.42558952
C27: Debt raising costs | D27: Input|Step changes | E27: =$E$8 -> $millions | F27: =$F$8 -> 2021-06-01 | O27: ='Input|Step changes'!O40 -> 0.194062249 | P27: ='Input|Step changes'!P40 -> 0.1939098107 | Q27: ='Input|Step changes'!Q40 -> 0.1931959724 | R27: ='Input|Step changes'!R40 -> 0.1907104873 | S27: ='Input|Step changes'!S40 -> 0.1872914243
C29: Total opex (inc. DRC) | D29: Calculated | E29: =$E$8 -> $millions | F29: =$F$8 -> 2021-06-01 | M29: =SUM(M26:M27) -> 32.18022371 | N29: 32.19935632 | O29: 32.93839542 | P29: 34.29517863 | Q29: 33.671559 | R29: 34.45316678 | S29: 35.61288095
C31: Check | O31: =IF(ROUND('Calc|Opex forecast'!O104-O29,6)=0,"OK","Check") -> OK | P31: =IF(ROUND('Calc|Opex forecast'!P104-P29,6)=0,"OK","Check") -> OK | Q31: =IF(ROUND('Calc|Opex forecast'!Q104-Q29,6)=0,"OK","Check") -> OK | R31: =IF(ROUND('Calc|Opex forecast'!R104-R29,6)=0,"OK","Check") -> OK | S31: =IF(ROUND('Calc|Opex forecast'!S104-S29,6)=0,"OK","Check") -> OK | W31: =IF(COUNTA(O31:S31)=COUNTIF(O31:S31,"Ok"),"Ok","Check") -> Ok
C33: Operating expenditure - non-recurrent costs in the base year | M33: =M4 -> 2020-06-01 | N33: =N4 -> 2021-06-01 | O33: 2022-06-01 | P33: 2023-06-01 | Q33: 2024-06-01 | R33: 2025-06-01 | S33: 2026-06-01
C35: Non-recurrent - Transformation costs | D35: Input|Reported opex | E35: =$E$8 -> $millions | F35: =$F$8 -> 2021-06-01 | M35: =-'Input|Reported opex'!$N$65 -> 0
C37: Total opex (inc. DRC) | D37: Calculated | E37: =$E$8 -> $millions | F37: =$F$8 -> 2021-06-01 | M37: =M35+M29 -> 32.18022371 | N37: =N35+N29 -> 32.19935632 | O37: 32.93839542 | P37: 34.29517863 | Q37: 33.671559 | R37: 34.45316678 | S37: 35.61288095
B39: Calc | Trend in Opex Model | E39: $millions | F39: =DATE(PPLastYear,MONTH('Input|General'!$G$9),1) -> 2021-06-01
C41: Rate of change - factor | D41: Source | E41: Unit | F41: Basis | O41: =O$4 -> 2022-06-01 | P41: =P$4 -> 2023-06-01 | Q41: =Q$4 -> 2024-06-01 | R41: =R$4 -> 2025-06-01 | S41: =S$4 -> 2026-06-01
C43: =C14 -> Price growth | D43: Calc | Opex forecast | E43: =$E$8 -> $millions | F43: =$F$8 -> 2021-06-01 | O43: =1+'Calc|Opex forecast'!O63 -> 1.004270537 | P43: =(1+'Calc|Opex forecast'!P63)*O43 -> 1.008473526 | Q43: =(1+'Calc|Opex forecast'!Q63)*P43 -> 1.0139878 | R43: =(1+'Calc|Opex forecast'!R63)*Q43 -> 1.019889289 | S43: =(1+'Calc|Opex forecast'!S63)*R43 -> 1.025038189
C44: =C15 -> Output growth | D44: Calc | Opex forecast | E44: =$E$8 -> $millions | F44: =$F$8 -> 2021-06-01 | O44: =1+'Calc|Opex forecast'!O61 -> 1.0079246 | P44: =(1+'Calc|Opex forecast'!P61)*O44 -> 1.013510551 | Q44: =(1+'Calc|Opex forecast'!Q61)*P44 -> 1.01879845 | R44: =(1+'Calc|Opex forecast'!R61)*Q44 -> 1.023928304 | S44: =(1+'Calc|Opex forecast'!S61)*R44 -> 1.029018544
C45: =C16 -> Productivity growth | D45: Calc | Opex forecast | E45: =$E$8 -> $millions | F45: =$F$8 -> 2021-06-01 | O45: =1-'Calc|Opex forecast'!O65 -> 0.995 | P45: =(1-'Calc|Opex forecast'!P65)*O45 -> 0.990025 | Q45: =(1-'Calc|Opex forecast'!Q65)*P45 -> 0.985074875 | R45: =(1-'Calc|Opex forecast'!R65)*Q45 -> 0.9801495006 | S45: =(1-'Calc|Opex forecast'!S65)*R45 -> 0.9752487531
B47: End

Sheet Lookup|Tables
B1: =Index!$B$1 -> AER opex model | J1: Back to Index | L1: Key: | M1: Input | N1: External Link | O1: Internal Link | U1: Overall Check: | V1: ='Check|List'!$S$1 -> Ok
B2: =Index!$C$16 -> Lookup | Tables
B7: Unit Denominations
C9: =B7 -> Unit Denominations | D9: Source | G9: Ref
C10: Dollars | D10: AER | G10: $dollars
C11: Thousands | D11: AER | G11: $000
C12: Millions | D12: AER | G12: $millions
C14: Percent | D14: AER | G14: Per cent
C15: Unit | D15: AER | G15: unit
C16: Number | D16: AER | G16: number
C17: Factor | D17: AER | G17: factor
C19: Actual | D19: AER | G19: Actual
C20: Estimate | D20: AER | G20: Estimate
C22: Yes | D22: JGN | G22: Yes
C23: No | D23: JGN | G23: No
B25: Months
C27: =B25 -> Months | D27: Source | G27: Ref
C28: month 1 | D28: AER | G28: 2000-01-01
C29: month 2 | D29: AER | G29: 2000-02-01
C30: month 3 | D30: AER | G30: 2000-03-01
C31: month 4 | D31: AER | G31: 2000-04-01
C32: month 5 | D32: AER | G32: 2000-05-01
C33: month 6 | D33: AER | G33: 2000-06-01
C34: month 7 | D34: AER | G34: 2000-07-01
C35: month 8 | D35: AER | G35: 2000-08-01
C36: month 9 | D36: AER | G36: 2000-09-01
C37: month 10 | D37: AER | G37: 2000-10-01
C38: month 11 | D38: AER | G38: 2000-11-01
C39: month 12 | D39: AER | G39: 2000-12-01
B41: Years
C43: =B41 -> Years | D43: Source | G43: Calendar Year | H43: Year Ending | I43: Financial Year
C44: 2011-06-01 | D44: AER | G44: 2011 | H44: =DATE(G44,MONTH('Input|General'!$G$9),1) -> 2011-06-01 | I44: =G44-1&"–"&RIGHT(G44,2) -> 2010–11
C45: 2012-06-01 | D45: AER | G45: 2012 | H45: =DATE(G45,MONTH('Input|General'!$G$9),1) -> 2012-06-01 | I45: =G45-1&"–"&RIGHT(G45,2) -> 2011–12
C46: 2013-06-01 | D46: AER | G46: 2013 | H46: =DATE(G46,MONTH('Input|General'!$G$9),1) -> 2013-06-01 | I46: 2012–13
C47: 2014-06-01 | D47: AER | G47: 2014 | H47: =DATE(G47,MONTH('Input|General'!$G$9),1) -> 2014-06-01 | I47: 2013–14
C48: 2015-06-01 | D48: AER | G48: 2015 | H48: =DATE(G48,MONTH('Input|General'!$G$9),1) -> 2015-06-01 | I48: 2014–15
C49: 2016-06-01 | D49: AER | G49: 2016 | H49: =DATE(G49,MONTH('Input|General'!$G$9),1) -> 2016-06-01 | I49: 2015–16
C50: 2017-06-01 | D50: AER | G50: 2017 | H50: =DATE(G50,MONTH('Input|General'!$G$9),1) -> 2017-06-01 | I50: 2016–17
C51: 2018-06-01 | D51: AER | G51: 2018 | H51: =DATE(G51,MONTH('Input|General'!$G$9),1) -> 2018-06-01 | I51: 2017–18
C52: 2019-06-01 | D52: AER | G52: 2019 | H52: =DATE(G52,MONTH('Input|General'!$G$9),1) -> 2019-06-01 | I52: 2018–19
C53: 2020-06-01 | D53: AER | G53: 2020 | H53: =DATE(G53,MONTH('Input|General'!$G$9),1) -> 2020-06-01 | I53: 2019–20
C54: 2021-06-01 | D54: AER | G54: 2021 | H54: =DATE(G54,MONTH('Input|General'!$G$9),1) -> 2021-06-01 | I54: 2020–21
C55: 2022-06-01 | D55: AER | G55: 2022 | H55: =DATE(G55,MONTH('Input|General'!$G$9),1) -> 2022-06-01 | I55: 2021–22
C56: 2023-06-01 | D56: AER | G56: 2023 | H56: =DATE(G56,MONTH('Input|General'!$G$9),1) -> 2023-06-01 | I56: 2022–23
C57: 2024-06-01 | D57: AER | G57: 2024 | H57: =DATE(G57,MONTH('Input|General'!$G$9),1) -> 2024-06-01 | I57: 2023–24
C58: 2025-06-01 | D58: AER | G58: 2025 | H58: =DATE(G58,MONTH('Input|General'!$G$9),1) -> 2025-06-01 | I58: 2024–25
C59: 2026-06-01 | D59: AER | G59: 2026 | H59: =DATE(G59,MONTH('Input|General'!$G$9),1) -> 2026-06-01 | I59: 2025–26
C60: 2027-06-01 | D60: AER | G60: 2027 | H60: =DATE(G60,MONTH('Input|General'!$G$9),1) -> 2027-06-01 | I60: 2026–27
C61: 2028-06-01 | D61: AER | G61: 2028 | H61: =DATE(G61,MONTH('Input|General'!$G$9),1) -> 2028-06-01 | I61: 2027–28
C62: 2029-06-01 | D62: AER | G62: 2029 | H62: =DATE(G62,MONTH('Input|General'!$G$9),1) -> 2029-06-01 | I62: 2028–29
C63: 2030-06-01 | D63: AER | G63: 2030 | H63: =DATE(G63,MONTH('Input|General'!$G$9),1) -> 2030-06-01 | I63: 2029–30
B65: Regulatory years
C67: =B65 -> Regulatory years | D67: Source | G67: Year | H67: Year ending
C68: Previous period year 1 | D68: calculated | G68: =IF(MONTH('Input|General'!$G$9)=12,PPFirstYear,PPFirstYear-1&"–"&RIGHT(PPFirstYear,2)) -> 2016–17 | H68: =DATE(PPFirstYear,MONTH('Input|General'!$G$9),1) -> 2017-06-01
C69: Previous period year 2 | D69: calculated | G69: =IF(PPLastYear-PPFirstYear<1,"",LEFT(G68,4)+1&"–"&RIGHT(G68,2)+1) -> 2017–18 | H69: =IF(PPLastYear-PPFirstYear<1,"",DATE(PPFirstYear+1,MONTH('Input|General'!$G$9),1)) -> 2018-06-01
C70: Previous period year 3 | D70: calculated | G70: =IF(PPLastYear-PPFirstYear<2,"",LEFT(G69,4)+1&"–"&RIGHT(G69,2)+1) -> 2018–19 | H70: =IF(PPLastYear-PPFirstYear<2,"",DATE(PPFirstYear+2,MONTH('Input|General'!$G$9),1)) -> 2019-06-01
C71: Previous period year 4 | D71: calculated | G71: =IF(PPLastYear-PPFirstYear<3,"",LEFT(G70,4)+1&"–"&RIGHT(G70,2)+1) -> 2019–20 | H71: =IF(PPLastYear-PPFirstYear<3,"",DATE(PPFirstYear+3,MONTH('Input|General'!$G$9),1)) -> 2020-06-01
C72: Previous period year 5 | D72: calculated | G72: =IF(PPLastYear-PPFirstYear<4,"",LEFT(G71,4)+1&"–"&RIGHT(G71,2)+1) -> 2020–21 | H72: =IF(PPLastYear-PPFirstYear<4,"",DATE(PPFirstYear+4,MONTH('Input|General'!$G$9),1)) -> 2021-06-01
C73: Forecast period year 1 | D73: calculated | G73: =IF(MONTH('Input|General'!$G$9)=12,FPFirstYear,FPFirstYear-1&"–"&RIGHT(FPFirstYear,2)) -> 2021–22 | H73: =DATE(FPFirstYear,MONTH('Input|General'!$G$9),1) -> 2022-06-01
C74: Forecast period year 2 | D74: calculated | G74: =IF(FPLastYear-FPFirstYear<1,"",LEFT(G73,4)+1&"–"&RIGHT(G73,2)+1) -> 2022–23 | H74: =IF(FPLastYear-FPFirstYear<1,"",DATE(FPFirstYear+1,MONTH('Input|General'!$G$9),1)) -> 2023-06-01
C75: Forecast period year 3 | D75: calculated | G75: =IF(FPLastYear-FPFirstYear<2,"",LEFT(G74,4)+1&"–"&RIGHT(G74,2)+1) -> 2023–24 | H75: =IF(FPLastYear-FPFirstYear<2,"",DATE(FPFirstYear+2,MONTH('Input|General'!$G$9),1)) -> 2024-06-01
C76: Forecast period year 4 | D76: calculated | G76: =IF(FPLastYear-FPFirstYear<3,"",LEFT(G75,4)+1&"–"&RIGHT(G75,2)+1) -> 2024–25 | H76: =IF(FPLastYear-FPFirstYear<3,"",DATE(FPFirstYear+3,MONTH('Input|General'!$G$9),1)) -> 2025-06-01
C77: Forecast period year 5 | D77: calculated | G77: =IF(FPLastYear-FPFirstYear<4,"",LEFT(G76,4)+1&"–"&RIGHT(G76,2)+1) -> 2025–26 | H77: =IF(FPLastYear-FPFirstYear<4,"",DATE(FPFirstYear+4,MONTH('Input|General'!$G$9),1)) -> 2026-06-01
B79: End

Sheet Check|List
B1: =Index!$B$1 -> AER opex model | J1: Back to Index | L1: Key: | M1: Input | N1: External Link | O1: Internal Link | R1: Overall Check: | S1: =IF(COUNTIF(G10:G17,"Check")=0,"Ok","Check") -> Ok
B2: =Index!$C$17 -> Check | List
B7: Check List
C9: Sheet | D9: Source | E9: Unit | G9: Status
C10: =Index!C7 -> Input | General | D10: =C10 -> Input | General | E10: Ok/Check | G10: ='Input|General'!S1 -> OK
C11: =Index!C8 -> Input | Inflation | D11: =C11 -> Input | Inflation | E11: Ok/Check | G11: ='Input|Inflation'!T1 -> OK
C12: =Index!C9 -> Input | Reported opex | D12: =C12 -> Input | Reported opex | E12: Ok/Check | G12: ='Input|Reported opex'!S1 -> OK
C13: =Index!C10 -> Input | Rate of change | D13: Input | Rate of change | E13: Ok/Check | G13: ='Input|Rate of change'!T1 -> Ok
C14: =Index!C11 -> Input | Step changes | D14: Input | Step changes | E14: Ok/Check | G14: ='Input|Step changes'!S1 -> OK
C15: =Index!C13 -> Calc | Opex Forecast | D15: Calc | Opex Forecast | E15: Ok/Check | G15: ='Calc|Opex forecast'!S1 -> OK
C16: =Index!C14 -> Output | Models | D16: =C16 -> Output | Models | E16: Ok/Check | G16: ='Output|Models'!S1 -> OK
C17: =Index!C15 -> Output | RIN | D17: Output | RIN | E17: Ok/Check | G17: ='Output|RIN'!S1 -> Ok
B19: End
